{"text_format":"3","workbook":"xlsx","n_sheets":12,"sheets":["IAN","FEB","MAR","APR","MAI","IUN","IUL","AUG","SEP","OCT","NOV","DEC"],"not_rendered":{"defined_names":40},"read":"whole","date_system":"1900"}

{"sheet":"IAN","index":0,"n_rows":20,"n_cols":9,"rows_kept":20,"merged":[[16,2,17,2],[16,3,17,3],[17,4,19,8]]}
[null,"IAN","DUM",{"$f":"UPPER(TEXT(D3,\"aaa\"))","v":"LUN"},"MAR","MIE","JOI","VIN","SÂM"]
[null,{"$f":"YEAR(TODAY())","v":2018}]
[null,null,{"$f":"ZileȘiSăptămâni+DATE(AnCalendar,1,1)-WEEKDAY(DATE(AnCalendar,1,1),(ÎnceputSăptămână=\"LUN\")+1)+1","v":"2017-12-31"},"2018-01-01","2018-01-02","2018-01-03","2018-01-04","2018-01-05","2018-01-06"]
[null,null,{"$f":"IF(DAY(ZiCalendar)=1,CONCATENATE(\"Săptămâna \",WEEKNUM(ZiCalendar),\"/Ziua \",ZiCalendar-DATE(YEAR(ZiCalendar),1,0)),CONCATENATE(\"Ziua \",ZiCalendar-DATE(YEAR(ZiCalendar),1,0)))","v":"Ziua 365"},{"$f":"IF(DAY(ZiCalendar)=1,CONCATENATE(\"Săptămâna \",WEEKNUM(ZiCalendar),\"/Ziua \",ZiCalendar-DATE(YEAR(ZiCalendar),1,0)),CONCATENATE(\"Ziua \",ZiCalendar-DATE(YEAR(ZiCalendar),1,0)))","v":"Săptămâna 1/Ziua 1"},{"$f":"IF(DAY(ZiCalendar)=1,CONCATENATE(\"Săptămâna \",WEEKNUM(ZiCalendar),\"/Ziua \",ZiCalendar-DATE(YEAR(ZiCalendar),1,0)),CONCATENATE(\"Ziua \",ZiCalendar-DATE(YEAR(ZiCalendar),1,0)))","v":"Ziua 2"},{"$f":"IF(DAY(ZiCalendar)=1,CONCATENATE(\"Săptămâna \",WEEKNUM(ZiCalendar),\"/Ziua \",ZiCalendar-DATE(YEAR(ZiCalendar),1,0)),CONCATENATE(\"Ziua \",ZiCalendar-DATE(YEAR(ZiCalendar),1,0)))","v":"Ziua 3"},{"$f":"IF(DAY(ZiCalendar)=1,CONCATENATE(\"Săptămâna \",WEEKNUM(ZiCalendar),\"/Ziua \",ZiCalendar-DATE(YEAR(ZiCalendar),1,0)),CONCATENATE(\"Ziua \",ZiCalendar-DATE(YEAR(ZiCalendar),1,0)))","v":"Ziua 4"},{"$f":"IF(DAY(ZiCalendar)=1,CONCATENATE(\"Săptămâna \",WEEKNUM(ZiCalendar),\"/Ziua \",ZiCalendar-DATE(YEAR(ZiCalendar),1,0)),CONCATENATE(\"Ziua \",ZiCalendar-DATE(YEAR(ZiCalendar),1,0)))","v":"Ziua 5"},{"$f":"IF(DAY(ZiCalendar)=1,CONCATENATE(\"Săptămâna \",WEEKNUM(ZiCalendar),\"/Ziua \",ZiCalendar-DATE(YEAR(ZiCalendar),1,0)),CONCATENATE(\"Ziua \",ZiCalendar-DATE(YEAR(ZiCalendar),1,0)))","v":"Ziua 6"}]
[]
[null,null,{"$f":"ZileȘiSăptămâni+DATE(AnCalendar,1,1)-WEEKDAY(DATE(AnCalendar,1,1),(ÎnceputSăptămână=\"LUN\")+1)+8","v":"2018-01-07"},"2018-01-08","2018-01-09","2018-01-10","2018-01-11","2018-01-12","2018-01-13"]
[null,null,{"$f":"IF(WEEKDAY(ZiCalendar)=ValoareÎnceputSăptămână,CONCATENATE(\"Săptămâna \",WEEKNUM(ZiCalendar),\"/Ziua \",ZiCalendar-DATE(YEAR(ZiCalendar),1,0)),CONCATENATE(\"Ziua \",ZiCalendar-DATE(YEAR(ZiCalendar),1,0)))","v":"Săptămâna 2/Ziua 7"},{"$f":"IF(WEEKDAY(ZiCalendar)=ValoareÎnceputSăptămână,CONCATENATE(\"Săptămâna \",WEEKNUM(ZiCalendar),\"/Ziua \",ZiCalendar-DATE(YEAR(ZiCalendar),1,0)),CONCATENATE(\"Ziua \",ZiCalendar-DATE(YEAR(ZiCalendar),1,0)))","v":"Ziua 8"},{"$f":"IF(WEEKDAY(ZiCalendar)=ValoareÎnceputSăptămână,CONCATENATE(\"Săptămâna \",WEEKNUM(ZiCalendar),\"/Ziua \",ZiCalendar-DATE(YEAR(ZiCalendar),1,0)),CONCATENATE(\"Ziua \",ZiCalendar-DATE(YEAR(ZiCalendar),1,0)))","v":"Ziua 9"},{"$f":"IF(WEEKDAY(ZiCalendar)=ValoareÎnceputSăptămână,CONCATENATE(\"Săptămâna \",WEEKNUM(ZiCalendar),\"/Ziua \",ZiCalendar-DATE(YEAR(ZiCalendar),1,0)),CONCATENATE(\"Ziua \",ZiCalendar-DATE(YEAR(ZiCalendar),1,0)))","v":"Ziua 10"},{"$f":"IF(WEEKDAY(ZiCalendar)=ValoareÎnceputSăptămână,CONCATENATE(\"Săptămâna \",WEEKNUM(ZiCalendar),\"/Ziua \",ZiCalendar-DATE(YEAR(ZiCalendar),1,0)),CONCATENATE(\"Ziua \",ZiCalendar-DATE(YEAR(ZiCalendar),1,0)))","v":"Ziua 11"},{"$f":"IF(WEEKDAY(ZiCalendar)=ValoareÎnceputSăptămână,CONCATENATE(\"Săptămâna \",WEEKNUM(ZiCalendar),\"/Ziua \",ZiCalendar-DATE(YEAR(ZiCalendar),1,0)),CONCATENATE(\"Ziua \",ZiCalendar-DATE(YEAR(ZiCalendar),1,0)))","v":"Ziua 12"},{"$f":"IF(WEEKDAY(ZiCalendar)=ValoareÎnceputSăptămână,CONCATENATE(\"Săptămâna \",WEEKNUM(ZiCalendar),\"/Ziua \",ZiCalendar-DATE(YEAR(ZiCalendar),1,0)),CONCATENATE(\"Ziua \",ZiCalendar-DATE(YEAR(ZiCalendar),1,0)))","v":"Ziua 13"}]
[]
[null,null,{"$f":"ZileȘiSăptămâni+DATE(AnCalendar,1,1)-WEEKDAY(DATE(AnCalendar,1,1),(ÎnceputSăptămână=\"LUN\")+1)+15","v":"2018-01-14"},"2018-01-15","2018-01-16","2018-01-17","2018-01-18","2018-01-19","2018-01-20"]
[null,null,{"$f":"IF(WEEKDAY(ZiCalendar)=ValoareÎnceputSăptămână,CONCATENATE(\"Săptămâna \",WEEKNUM(ZiCalendar),\"/Ziua \",ZiCalendar-DATE(YEAR(ZiCalendar),1,0)),CONCATENATE(\"Ziua \",ZiCalendar-DATE(YEAR(ZiCalendar),1,0)))","v":"Săptămâna 3/Ziua 14"},{"$f":"IF(WEEKDAY(ZiCalendar)=ValoareÎnceputSăptămână,CONCATENATE(\"Săptămâna \",WEEKNUM(ZiCalendar),\"/Ziua \",ZiCalendar-DATE(YEAR(ZiCalendar),1,0)),CONCATENATE(\"Ziua \",ZiCalendar-DATE(YEAR(ZiCalendar),1,0)))","v":"Ziua 15"},{"$f":"IF(WEEKDAY(ZiCalendar)=ValoareÎnceputSăptămână,CONCATENATE(\"Săptămâna \",WEEKNUM(ZiCalendar),\"/Ziua \",ZiCalendar-DATE(YEAR(ZiCalendar),1,0)),CONCATENATE(\"Ziua \",ZiCalendar-DATE(YEAR(ZiCalendar),1,0)))","v":"Ziua 16"},{"$f":"IF(WEEKDAY(ZiCalendar)=ValoareÎnceputSăptămână,CONCATENATE(\"Săptămâna \",WEEKNUM(ZiCalendar),\"/Ziua \",ZiCalendar-DATE(YEAR(ZiCalendar),1,0)),CONCATENATE(\"Ziua \",ZiCalendar-DATE(YEAR(ZiCalendar),1,0)))","v":"Ziua 17"},{"$f":"IF(WEEKDAY(ZiCalendar)=ValoareÎnceputSăptămână,CONCATENATE(\"Săptămâna \",WEEKNUM(ZiCalendar),\"/Ziua \",ZiCalendar-DATE(YEAR(ZiCalendar),1,0)),CONCATENATE(\"Ziua \",ZiCalendar-DATE(YEAR(ZiCalendar),1,0)))","v":"Ziua 18"},{"$f":"IF(WEEKDAY(ZiCalendar)=ValoareÎnceputSăptămână,CONCATENATE(\"Săptămâna \",WEEKNUM(ZiCalendar),\"/Ziua \",ZiCalendar-DATE(YEAR(ZiCalendar),1,0)),CONCATENATE(\"Ziua \",ZiCalendar-DATE(YEAR(ZiCalendar),1,0)))","v":"Ziua 19"},{"$f":"IF(WEEKDAY(ZiCalendar)=ValoareÎnceputSăptămână,CONCATENATE(\"Săptămâna \",WEEKNUM(ZiCalendar),\"/Ziua \",ZiCalendar-DATE(YEAR(ZiCalendar),1,0)),CONCATENATE(\"Ziua \",ZiCalendar-DATE(YEAR(ZiCalendar),1,0)))","v":"Ziua 20"}]
[]
[null,null,{"$f":"ZileȘiSăptămâni+DATE(AnCalendar,1,1)-WEEKDAY(DATE(AnCalendar,1,1),(ÎnceputSăptămână=\"LUN\")+1)+22","v":"2018-01-21"},"2018-01-22","2018-01-23","2018-01-24","2018-01-25","2018-01-26","2018-01-27"]
[null,null,{"$f":"IF(WEEKDAY(ZiCalendar)=ValoareÎnceputSăptămână,CONCATENATE(\"Săptămâna \",WEEKNUM(ZiCalendar),\"/Ziua \",ZiCalendar-DATE(YEAR(ZiCalendar),1,0)),CONCATENATE(\"Ziua \",ZiCalendar-DATE(YEAR(ZiCalendar),1,0)))","v":"Săptămâna 4/Ziua 21"},{"$f":"IF(WEEKDAY(ZiCalendar)=ValoareÎnceputSăptămână,CONCATENATE(\"Săptămâna \",WEEKNUM(ZiCalendar),\"/Ziua \",ZiCalendar-DATE(YEAR(ZiCalendar),1,0)),CONCATENATE(\"Ziua \",ZiCalendar-DATE(YEAR(ZiCalendar),1,0)))","v":"Ziua 22"},{"$f":"IF(WEEKDAY(ZiCalendar)=ValoareÎnceputSăptămână,CONCATENATE(\"Săptămâna \",WEEKNUM(ZiCalendar),\"/Ziua \",ZiCalendar-DATE(YEAR(ZiCalendar),1,0)),CONCATENATE(\"Ziua \",ZiCalendar-DATE(YEAR(ZiCalendar),1,0)))","v":"Ziua 23"},{"$f":"IF(WEEKDAY(ZiCalendar)=ValoareÎnceputSăptămână,CONCATENATE(\"Săptămâna \",WEEKNUM(ZiCalendar),\"/Ziua \",ZiCalendar-DATE(YEAR(ZiCalendar),1,0)),CONCATENATE(\"Ziua \",ZiCalendar-DATE(YEAR(ZiCalendar),1,0)))","v":"Ziua 24"},{"$f":"IF(WEEKDAY(ZiCalendar)=ValoareÎnceputSăptămână,CONCATENATE(\"Săptămâna \",WEEKNUM(ZiCalendar),\"/Ziua \",ZiCalendar-DATE(YEAR(ZiCalendar),1,0)),CONCATENATE(\"Ziua \",ZiCalendar-DATE(YEAR(ZiCalendar),1,0)))","v":"Ziua 25"},{"$f":"IF(WEEKDAY(ZiCalendar)=ValoareÎnceputSăptămână,CONCATENATE(\"Săptămâna \",WEEKNUM(ZiCalendar),\"/Ziua \",ZiCalendar-DATE(YEAR(ZiCalendar),1,0)),CONCATENATE(\"Ziua \",ZiCalendar-DATE(YEAR(ZiCalendar),1,0)))","v":"Ziua 26"},{"$f":"IF(WEEKDAY(ZiCalendar)=ValoareÎnceputSăptămână,CONCATENATE(\"Săptămâna \",WEEKNUM(ZiCalendar),\"/Ziua \",ZiCalendar-DATE(YEAR(ZiCalendar),1,0)),CONCATENATE(\"Ziua \",ZiCalendar-DATE(YEAR(ZiCalendar),1,0)))","v":"Ziua 27"}]
[]
[null,null,{"$f":"ZileȘiSăptămâni+DATE(AnCalendar,1,1)-WEEKDAY(DATE(AnCalendar,1,1),(ÎnceputSăptămână=\"LUN\")+1)+29","v":"2018-01-28"},"2018-01-29","2018-01-30","2018-01-31","2018-02-01","2018-02-02","2018-02-03"]
[null,null,{"$f":"IF(WEEKDAY(ZiCalendar)=ValoareÎnceputSăptămână,CONCATENATE(\"Săptămâna \",WEEKNUM(ZiCalendar),\"/Ziua \",ZiCalendar-DATE(YEAR(ZiCalendar),1,0)),CONCATENATE(\"Ziua \",ZiCalendar-DATE(YEAR(ZiCalendar),1,0)))","v":"Săptămâna 5/Ziua 28"},{"$f":"IF(WEEKDAY(ZiCalendar)=ValoareÎnceputSăptămână,CONCATENATE(\"Săptămâna \",WEEKNUM(ZiCalendar),\"/Ziua \",ZiCalendar-DATE(YEAR(ZiCalendar),1,0)),CONCATENATE(\"Ziua \",ZiCalendar-DATE(YEAR(ZiCalendar),1,0)))","v":"Ziua 29"},{"$f":"IF(WEEKDAY(ZiCalendar)=ValoareÎnceputSăptămână,CONCATENATE(\"Săptămâna \",WEEKNUM(ZiCalendar),\"/Ziua \",ZiCalendar-DATE(YEAR(ZiCalendar),1,0)),CONCATENATE(\"Ziua \",ZiCalendar-DATE(YEAR(ZiCalendar),1,0)))","v":"Ziua 30"},{"$f":"IF(WEEKDAY(ZiCalendar)=ValoareÎnceputSăptămână,CONCATENATE(\"Săptămâna \",WEEKNUM(ZiCalendar),\"/Ziua \",ZiCalendar-DATE(YEAR(ZiCalendar),1,0)),CONCATENATE(\"Ziua \",ZiCalendar-DATE(YEAR(ZiCalendar),1,0)))","v":"Ziua 31"},{"$f":"IF(WEEKDAY(ZiCalendar)=ValoareÎnceputSăptămână,CONCATENATE(\"Săptămâna \",WEEKNUM(ZiCalendar),\"/Ziua \",ZiCalendar-DATE(YEAR(ZiCalendar),1,0)),CONCATENATE(\"Ziua \",ZiCalendar-DATE(YEAR(ZiCalendar),1,0)))","v":"Ziua 32"},{"$f":"IF(WEEKDAY(ZiCalendar)=ValoareÎnceputSăptămână,CONCATENATE(\"Săptămâna \",WEEKNUM(ZiCalendar),\"/Ziua \",ZiCalendar-DATE(YEAR(ZiCalendar),1,0)),CONCATENATE(\"Ziua \",ZiCalendar-DATE(YEAR(ZiCalendar),1,0)))","v":"Ziua 33"},{"$f":"IF(WEEKDAY(ZiCalendar)=ValoareÎnceputSăptămână,CONCATENATE(\"Săptămâna \",WEEKNUM(ZiCalendar),\"/Ziua \",ZiCalendar-DATE(YEAR(ZiCalendar),1,0)),CONCATENATE(\"Ziua \",ZiCalendar-DATE(YEAR(ZiCalendar),1,0)))","v":"Ziua 34"}]
[{"$nulls":4},"NOTE"]
[]
[null,null,{"$f":"ZileȘiSăptămâni+DATE(AnCalendar,1,1)-WEEKDAY(DATE(AnCalendar,1,1),(ÎnceputSăptămână=\"LUN\")+1)+36","v":"2018-02-04"},"2018-02-05"]
[null,null,{"$f":"IF(WEEKDAY(ZiCalendar)=ValoareÎnceputSăptămână,CONCATENATE(\"Săptămâna \",WEEKNUM(ZiCalendar),\"/Ziua \",ZiCalendar-DATE(YEAR(ZiCalendar),1,0)),CONCATENATE(\"Ziua \",ZiCalendar-DATE(YEAR(ZiCalendar),1,0)))","v":"Săptămâna 6/Ziua 35"},{"$f":"IF(WEEKDAY(ZiCalendar)=ValoareÎnceputSăptămână,CONCATENATE(\"Săptămâna \",WEEKNUM(ZiCalendar),\"/Ziua \",ZiCalendar-DATE(YEAR(ZiCalendar),1,0)),CONCATENATE(\"Ziua \",ZiCalendar-DATE(YEAR(ZiCalendar),1,0)))","v":"Ziua 36"}]

{"sheet":"FEB","index":1,"n_rows":20,"n_cols":9,"rows_kept":20,"merged":[[16,2,17,2],[17,4,19,8]]}
[null,"FEB",{"$f":"UPPER(TEXT(ÎnceputSăptămână,\"ddd\"))","v":"DUM"},{"$f":"UPPER(TEXT(D3,\"aaa\"))","v":"LUN"},"MAR","MIE","JOI","VIN","SÂM"]
[null,{"$f":"AnCalendar","v":2018}]
[null,null,{"$f":"ZileȘiSăptămâni+DATE(AnCalendar,2,1)-WEEKDAY(DATE(AnCalendar,2,1),(ÎnceputSăptămână=\"LUN\")+1)+1","v":"2018-01-28"},"2018-01-29","2018-01-30","2018-01-31","2018-02-01","2018-02-02","2018-02-03"]
[null,null,{"$f":"IF(DAY(ZiCalendar)=1,CONCATENATE(\"Săptămâna \",WEEKNUM(ZiCalendar),\"/Ziua \",ZiCalendar-DATE(YEAR(ZiCalendar),1,0)),CONCATENATE(\"Ziua \",ZiCalendar-DATE(YEAR(ZiCalendar),1,0)))","v":"Ziua 28"},{"$f":"IF(DAY(ZiCalendar)=1,CONCATENATE(\"Săptămâna \",WEEKNUM(ZiCalendar),\"/Ziua \",ZiCalendar-DATE(YEAR(ZiCalendar),1,0)),CONCATENATE(\"Ziua \",ZiCalendar-DATE(YEAR(ZiCalendar),1,0)))","v":"Ziua 29"},{"$f":"IF(DAY(ZiCalendar)=1,CONCATENATE(\"Săptămâna \",WEEKNUM(ZiCalendar),\"/Ziua \",ZiCalendar-DATE(YEAR(ZiCalendar),1,0)),CONCATENATE(\"Ziua \",ZiCalendar-DATE(YEAR(ZiCalendar),1,0)))","v":"Ziua 30"},{"$f":"IF(DAY(ZiCalendar)=1,CONCATENATE(\"Săptămâna \",WEEKNUM(ZiCalendar),\"/Ziua \",ZiCalendar-DATE(YEAR(ZiCalendar),1,0)),CONCATENATE(\"Ziua \",ZiCalendar-DATE(YEAR(ZiCalendar),1,0)))","v":"Ziua 31"},{"$f":"IF(DAY(ZiCalendar)=1,CONCATENATE(\"Săptămâna \",WEEKNUM(ZiCalendar),\"/Ziua \",ZiCalendar-DATE(YEAR(ZiCalendar),1,0)),CONCATENATE(\"Ziua \",ZiCalendar-DATE(YEAR(ZiCalendar),1,0)))","v":"Săptămâna 5/Ziua 32"},{"$f":"IF(DAY(ZiCalendar)=1,CONCATENATE(\"Săptămâna \",WEEKNUM(ZiCalendar),\"/Ziua \",ZiCalendar-DATE(YEAR(ZiCalendar),1,0)),CONCATENATE(\"Ziua \",ZiCalendar-DATE(YEAR(ZiCalendar),1,0)))","v":"Ziua 33"},{"$f":"IF(DAY(ZiCalendar)=1,CONCATENATE(\"Săptămâna \",WEEKNUM(ZiCalendar),\"/Ziua \",ZiCalendar-DATE(YEAR(ZiCalendar),1,0)),CONCATENATE(\"Ziua \",ZiCalendar-DATE(YEAR(ZiCalendar),1,0)))","v":"Ziua 34"}]
[]
[null,null,{"$f":"ZileȘiSăptămâni+DATE(AnCalendar,2,1)-WEEKDAY(DATE(AnCalendar,2,1),(ÎnceputSăptămână=\"LUN\")+1)+8","v":"2018-02-04"},"2018-02-05","2018-02-06","2018-02-07","2018-02-08","2018-02-09","2018-02-10"]
[null,null,{"$f":"IF(WEEKDAY(ZiCalendar)=ValoareÎnceputSăptămână,CONCATENATE(\"Săptămâna \",WEEKNUM(ZiCalendar),\"/Ziua \",ZiCalendar-DATE(YEAR(ZiCalendar),1,0)),CONCATENATE(\"Ziua \",ZiCalendar-DATE(YEAR(ZiCalendar),1,0)))","v":"Săptămâna 6/Ziua 35"},{"$f":"IF(WEEKDAY(ZiCalendar)=ValoareÎnceputSăptămână,CONCATENATE(\"Săptămâna \",WEEKNUM(ZiCalendar),\"/Ziua \",ZiCalendar-DATE(YEAR(ZiCalendar),1,0)),CONCATENATE(\"Ziua \",ZiCalendar-DATE(YEAR(ZiCalendar),1,0)))","v":"Ziua 36"},{"$f":"IF(WEEKDAY(ZiCalendar)=ValoareÎnceputSăptămână,CONCATENATE(\"Săptămâna \",WEEKNUM(ZiCalendar),\"/Ziua \",ZiCalendar-DATE(YEAR(ZiCalendar),1,0)),CONCATENATE(\"Ziua \",ZiCalendar-DATE(YEAR(ZiCalendar),1,0)))","v":"Ziua 37"},{"$f":"IF(WEEKDAY(ZiCalendar)=ValoareÎnceputSăptămână,CONCATENATE(\"Săptămâna \",WEEKNUM(ZiCalendar),\"/Ziua \",ZiCalendar-DATE(YEAR(ZiCalendar),1,0)),CONCATENATE(\"Ziua \",ZiCalendar-DATE(YEAR(ZiCalendar),1,0)))","v":"Ziua 38"},{"$f":"IF(WEEKDAY(ZiCalendar)=ValoareÎnceputSăptămână,CONCATENATE(\"Săptămâna \",WEEKNUM(ZiCalendar),\"/Ziua \",ZiCalendar-DATE(YEAR(ZiCalendar),1,0)),CONCATENATE(\"Ziua \",ZiCalendar-DATE(YEAR(ZiCalendar),1,0)))","v":"Ziua 39"},{"$f":"IF(WEEKDAY(ZiCalendar)=ValoareÎnceputSăptămână,CONCATENATE(\"Săptămâna \",WEEKNUM(ZiCalendar),\"/Ziua \",ZiCalendar-DATE(YEAR(ZiCalendar),1,0)),CONCATENATE(\"Ziua \",ZiCalendar-DATE(YEAR(ZiCalendar),1,0)))","v":"Ziua 40"},{"$f":"IF(WEEKDAY(ZiCalendar)=ValoareÎnceputSăptămână,CONCATENATE(\"Săptămâna \",WEEKNUM(ZiCalendar),\"/Ziua \",ZiCalendar-DATE(YEAR(ZiCalendar),1,0)),CONCATENATE(\"Ziua \",ZiCalendar-DATE(YEAR(ZiCalendar),1,0)))","v":"Ziua 41"}]
[]
[null,null,{"$f":"ZileȘiSăptămâni+DATE(AnCalendar,2,1)-WEEKDAY(DATE(AnCalendar,2,1),(ÎnceputSăptămână=\"LUN\")+1)+15","v":"2018-02-11"},"2018-02-12","2018-02-13","2018-02-14","2018-02-15","2018-02-16","2018-02-17"]
[null,null,{"$f":"IF(WEEKDAY(ZiCalendar)=ValoareÎnceputSăptămână,CONCATENATE(\"Săptămâna \",WEEKNUM(ZiCalendar),\"/Ziua \",ZiCalendar-DATE(YEAR(ZiCalendar),1,0)),CONCATENATE(\"Ziua \",ZiCalendar-DATE(YEAR(ZiCalendar),1,0)))","v":"Săptămâna 7/Ziua 42"},{"$f":"IF(WEEKDAY(ZiCalendar)=ValoareÎnceputSăptămână,CONCATENATE(\"Săptămâna \",WEEKNUM(ZiCalendar),\"/Ziua \",ZiCalendar-DATE(YEAR(ZiCalendar),1,0)),CONCATENATE(\"Ziua \",ZiCalendar-DATE(YEAR(ZiCalendar),1,0)))","v":"Ziua 43"},{"$f":"IF(WEEKDAY(ZiCalendar)=ValoareÎnceputSăptămână,CONCATENATE(\"Săptămâna \",WEEKNUM(ZiCalendar),\"/Ziua \",ZiCalendar-DATE(YEAR(ZiCalendar),1,0)),CONCATENATE(\"Ziua \",ZiCalendar-DATE(YEAR(ZiCalendar),1,0)))","v":"Ziua 44"},{"$f":"IF(WEEKDAY(ZiCalendar)=ValoareÎnceputSăptămână,CONCATENATE(\"Săptămâna \",WEEKNUM(ZiCalendar),\"/Ziua \",ZiCalendar-DATE(YEAR(ZiCalendar),1,0)),CONCATENATE(\"Ziua \",ZiCalendar-DATE(YEAR(ZiCalendar),1,0)))","v":"Ziua 45"},{"$f":"IF(WEEKDAY(ZiCalendar)=ValoareÎnceputSăptămână,CONCATENATE(\"Săptămâna \",WEEKNUM(ZiCalendar),\"/Ziua \",ZiCalendar-DATE(YEAR(ZiCalendar),1,0)),CONCATENATE(\"Ziua \",ZiCalendar-DATE(YEAR(ZiCalendar),1,0)))","v":"Ziua 46"},{"$f":"IF(WEEKDAY(ZiCalendar)=ValoareÎnceputSăptămână,CONCATENATE(\"Săptămâna \",WEEKNUM(ZiCalendar),\"/Ziua \",ZiCalendar-DATE(YEAR(ZiCalendar),1,0)),CONCATENATE(\"Ziua \",ZiCalendar-DATE(YEAR(ZiCalendar),1,0)))","v":"Ziua 47"},{"$f":"IF(WEEKDAY(ZiCalendar)=ValoareÎnceputSăptămână,CONCATENATE(\"Săptămâna \",WEEKNUM(ZiCalendar),\"/Ziua \",ZiCalendar-DATE(YEAR(ZiCalendar),1,0)),CONCATENATE(\"Ziua \",ZiCalendar-DATE(YEAR(ZiCalendar),1,0)))","v":"Ziua 48"}]
[]
[null,null,{"$f":"ZileȘiSăptămâni+DATE(AnCalendar,2,1)-WEEKDAY(DATE(AnCalendar,2,1),(ÎnceputSăptămână=\"LUN\")+1)+22","v":"2018-02-18"},"2018-02-19","2018-02-20","2018-02-21","2018-02-22","2018-02-23","2018-02-24"]
[null,null,{"$f":"IF(WEEKDAY(ZiCalendar)=ValoareÎnceputSăptămână,CONCATENATE(\"Săptămâna \",WEEKNUM(ZiCalendar),\"/Ziua \",ZiCalendar-DATE(YEAR(ZiCalendar),1,0)),CONCATENATE(\"Ziua \",ZiCalendar-DATE(YEAR(ZiCalendar),1,0)))","v":"Săptămâna 8/Ziua 49"},{"$f":"IF(WEEKDAY(ZiCalendar)=ValoareÎnceputSăptămână,CONCATENATE(\"Săptămâna \",WEEKNUM(ZiCalendar),\"/Ziua \",ZiCalendar-DATE(YEAR(ZiCalendar),1,0)),CONCATENATE(\"Ziua \",ZiCalendar-DATE(YEAR(ZiCalendar),1,0)))","v":"Ziua 50"},{"$f":"IF(WEEKDAY(ZiCalendar)=ValoareÎnceputSăptămână,CONCATENATE(\"Săptămâna \",WEEKNUM(ZiCalendar),\"/Ziua \",ZiCalendar-DATE(YEAR(ZiCalendar),1,0)),CONCATENATE(\"Ziua \",ZiCalendar-DATE(YEAR(ZiCalendar),1,0)))","v":"Ziua 51"},{"$f":"IF(WEEKDAY(ZiCalendar)=ValoareÎnceputSăptămână,CONCATENATE(\"Săptămâna \",WEEKNUM(ZiCalendar),\"/Ziua \",ZiCalendar-DATE(YEAR(ZiCalendar),1,0)),CONCATENATE(\"Ziua \",ZiCalendar-DATE(YEAR(ZiCalendar),1,0)))","v":"Ziua 52"},{"$f":"IF(WEEKDAY(ZiCalendar)=ValoareÎnceputSăptămână,CONCATENATE(\"Săptămâna \",WEEKNUM(ZiCalendar),\"/Ziua \",ZiCalendar-DATE(YEAR(ZiCalendar),1,0)),CONCATENATE(\"Ziua \",ZiCalendar-DATE(YEAR(ZiCalendar),1,0)))","v":"Ziua 53"},{"$f":"IF(WEEKDAY(ZiCalendar)=ValoareÎnceputSăptămână,CONCATENATE(\"Săptămâna \",WEEKNUM(ZiCalendar),\"/Ziua \",ZiCalendar-DATE(YEAR(ZiCalendar),1,0)),CONCATENATE(\"Ziua \",ZiCalendar-DATE(YEAR(ZiCalendar),1,0)))","v":"Ziua 54"},{"$f":"IF(WEEKDAY(ZiCalendar)=ValoareÎnceputSăptămână,CONCATENATE(\"Săptămâna \",WEEKNUM(ZiCalendar),\"/Ziua \",ZiCalendar-DATE(YEAR(ZiCalendar),1,0)),CONCATENATE(\"Ziua \",ZiCalendar-DATE(YEAR(ZiCalendar),1,0)))","v":"Ziua 55"}]
[]
[null,null,{"$f":"ZileȘiSăptămâni+DATE(AnCalendar,2,1)-WEEKDAY(DATE(AnCalendar,2,1),(ÎnceputSăptămână=\"LUN\")+1)+29","v":"2018-02-25"},"2018-02-26","2018-02-27","2018-02-28","2018-03-01","2018-03-02","2018-03-03"]
[null,null,{"$f":"IF(WEEKDAY(ZiCalendar)=ValoareÎnceputSăptămână,CONCATENATE(\"Săptămâna \",WEEKNUM(ZiCalendar),\"/Ziua \",ZiCalendar-DATE(YEAR(ZiCalendar),1,0)),CONCATENATE(\"Ziua \",ZiCalendar-DATE(YEAR(ZiCalendar),1,0)))","v":"Săptămâna 9/Ziua 56"},{"$f":"IF(WEEKDAY(ZiCalendar)=ValoareÎnceputSăptămână,CONCATENATE(\"Săptămâna \",WEEKNUM(ZiCalendar),\"/Ziua \",ZiCalendar-DATE(YEAR(ZiCalendar),1,0)),CONCATENATE(\"Ziua \",ZiCalendar-DATE(YEAR(ZiCalendar),1,0)))","v":"Ziua 57"},{"$f":"IF(WEEKDAY(ZiCalendar)=ValoareÎnceputSăptămână,CONCATENATE(\"Săptămâna \",WEEKNUM(ZiCalendar),\"/Ziua \",ZiCalendar-DATE(YEAR(ZiCalendar),1,0)),CONCATENATE(\"Ziua \",ZiCalendar-DATE(YEAR(ZiCalendar),1,0)))","v":"Ziua 58"},{"$f":"IF(WEEKDAY(ZiCalendar)=ValoareÎnceputSăptămână,CONCATENATE(\"Săptămâna \",WEEKNUM(ZiCalendar),\"/Ziua \",ZiCalendar-DATE(YEAR(ZiCalendar),1,0)),CONCATENATE(\"Ziua \",ZiCalendar-DATE(YEAR(ZiCalendar),1,0)))","v":"Ziua 59"},{"$f":"IF(WEEKDAY(ZiCalendar)=ValoareÎnceputSăptămână,CONCATENATE(\"Săptămâna \",WEEKNUM(ZiCalendar),\"/Ziua \",ZiCalendar-DATE(YEAR(ZiCalendar),1,0)),CONCATENATE(\"Ziua \",ZiCalendar-DATE(YEAR(ZiCalendar),1,0)))","v":"Ziua 60"},{"$f":"IF(WEEKDAY(ZiCalendar)=ValoareÎnceputSăptămână,CONCATENATE(\"Săptămâna \",WEEKNUM(ZiCalendar),\"/Ziua \",ZiCalendar-DATE(YEAR(ZiCalendar),1,0)),CONCATENATE(\"Ziua \",ZiCalendar-DATE(YEAR(ZiCalendar),1,0)))","v":"Ziua 61"},{"$f":"IF(WEEKDAY(ZiCalendar)=ValoareÎnceputSăptămână,CONCATENATE(\"Săptămâna \",WEEKNUM(ZiCalendar),\"/Ziua \",ZiCalendar-DATE(YEAR(ZiCalendar),1,0)),CONCATENATE(\"Ziua \",ZiCalendar-DATE(YEAR(ZiCalendar),1,0)))","v":"Ziua 62"}]
[{"$nulls":4},"NOTE"]
[]
[null,null,{"$f":"ZileȘiSăptămâni+DATE(AnCalendar,2,1)-WEEKDAY(DATE(AnCalendar,2,1),(ÎnceputSăptămână=\"LUN\")+1)+36","v":"2018-03-04"},"2018-03-05"]
[null,null,{"$f":"IF(WEEKDAY(ZiCalendar)=ValoareÎnceputSăptămână,CONCATENATE(\"Săptămâna \",WEEKNUM(ZiCalendar),\"/Ziua \",ZiCalendar-DATE(YEAR(ZiCalendar),1,0)),CONCATENATE(\"Ziua \",ZiCalendar-DATE(YEAR(ZiCalendar),1,0)))","v":"Săptămâna 10/Ziua 63"},{"$f":"IF(WEEKDAY(ZiCalendar)=ValoareÎnceputSăptămână,CONCATENATE(\"Săptămâna \",WEEKNUM(ZiCalendar),\"/Ziua \",ZiCalendar-DATE(YEAR(ZiCalendar),1,0)),CONCATENATE(\"Ziua \",ZiCalendar-DATE(YEAR(ZiCalendar),1,0)))","v":"Ziua 64"}]

{"sheet":"MAR","index":2,"n_rows":20,"n_cols":9,"rows_kept":20,"merged":[[16,2,17,2],[17,4,19,8]]}
[null,"MAR",{"$f":"UPPER(TEXT(ÎnceputSăptămână,\"ddd\"))","v":"DUM"},{"$f":"UPPER(TEXT(D3,\"aaa\"))","v":"LUN"},"MAR","MIE","JOI","VIN","SÂM"]
[null,{"$f":"AnCalendar","v":2018}]
[null,null,{"$f":"ZileȘiSăptămâni+DATE(AnCalendar,3,1)-WEEKDAY(DATE(AnCalendar,3,1),(ÎnceputSăptămână=\"LUN\")+1)+1","v":"2018-02-25"},"2018-02-26","2018-02-27","2018-02-28","2018-03-01","2018-03-02","2018-03-03"]
[null,null,{"$f":"IF(DAY(ZiCalendar)=1,CONCATENATE(\"Săptămâna \",WEEKNUM(ZiCalendar),\"/Ziua \",ZiCalendar-DATE(YEAR(ZiCalendar),1,0)),CONCATENATE(\"Ziua \",ZiCalendar-DATE(YEAR(ZiCalendar),1,0)))","v":"Ziua 56"},{"$f":"IF(DAY(ZiCalendar)=1,CONCATENATE(\"Săptămâna \",WEEKNUM(ZiCalendar),\"/Ziua \",ZiCalendar-DATE(YEAR(ZiCalendar),1,0)),CONCATENATE(\"Ziua \",ZiCalendar-DATE(YEAR(ZiCalendar),1,0)))","v":"Ziua 57"},{"$f":"IF(DAY(ZiCalendar)=1,CONCATENATE(\"Săptămâna \",WEEKNUM(ZiCalendar),\"/Ziua \",ZiCalendar-DATE(YEAR(ZiCalendar),1,0)),CONCATENATE(\"Ziua \",ZiCalendar-DATE(YEAR(ZiCalendar),1,0)))","v":"Ziua 58"},{"$f":"IF(DAY(ZiCalendar)=1,CONCATENATE(\"Săptămâna \",WEEKNUM(ZiCalendar),\"/Ziua \",ZiCalendar-DATE(YEAR(ZiCalendar),1,0)),CONCATENATE(\"Ziua \",ZiCalendar-DATE(YEAR(ZiCalendar),1,0)))","v":"Ziua 59"},{"$f":"IF(DAY(ZiCalendar)=1,CONCATENATE(\"Săptămâna \",WEEKNUM(ZiCalendar),\"/Ziua \",ZiCalendar-DATE(YEAR(ZiCalendar),1,0)),CONCATENATE(\"Ziua \",ZiCalendar-DATE(YEAR(ZiCalendar),1,0)))","v":"Săptămâna 9/Ziua 60"},{"$f":"IF(DAY(ZiCalendar)=1,CONCATENATE(\"Săptămâna \",WEEKNUM(ZiCalendar),\"/Ziua \",ZiCalendar-DATE(YEAR(ZiCalendar),1,0)),CONCATENATE(\"Ziua \",ZiCalendar-DATE(YEAR(ZiCalendar),1,0)))","v":"Ziua 61"},{"$f":"IF(DAY(ZiCalendar)=1,CONCATENATE(\"Săptămâna \",WEEKNUM(ZiCalendar),\"/Ziua \",ZiCalendar-DATE(YEAR(ZiCalendar),1,0)),CONCATENATE(\"Ziua \",ZiCalendar-DATE(YEAR(ZiCalendar),1,0)))","v":"Ziua 62"}]
[]
[null,null,{"$f":"ZileȘiSăptămâni+DATE(AnCalendar,3,1)-WEEKDAY(DATE(AnCalendar,3,1),(ÎnceputSăptămână=\"LUN\")+1)+8","v":"2018-03-04"},"2018-03-05","2018-03-06","2018-03-07","2018-03-08","2018-03-09","2018-03-10"]
[null,null,{"$f":"IF(WEEKDAY(ZiCalendar)=ValoareÎnceputSăptămână,CONCATENATE(\"Săptămâna \",WEEKNUM(ZiCalendar),\"/Ziua \",ZiCalendar-DATE(YEAR(ZiCalendar),1,0)),CONCATENATE(\"Ziua \",ZiCalendar-DATE(YEAR(ZiCalendar),1,0)))","v":"Săptămâna 10/Ziua 63"},{"$f":"IF(WEEKDAY(ZiCalendar)=ValoareÎnceputSăptămână,CONCATENATE(\"Săptămâna \",WEEKNUM(ZiCalendar),\"/Ziua \",ZiCalendar-DATE(YEAR(ZiCalendar),1,0)),CONCATENATE(\"Ziua \",ZiCalendar-DATE(YEAR(ZiCalendar),1,0)))","v":"Ziua 64"},{"$f":"IF(WEEKDAY(ZiCalendar)=ValoareÎnceputSăptămână,CONCATENATE(\"Săptămâna \",WEEKNUM(ZiCalendar),\"/Ziua \",ZiCalendar-DATE(YEAR(ZiCalendar),1,0)),CONCATENATE(\"Ziua \",ZiCalendar-DATE(YEAR(ZiCalendar),1,0)))","v":"Ziua 65"},{"$f":"IF(WEEKDAY(ZiCalendar)=ValoareÎnceputSăptămână,CONCATENATE(\"Săptămâna \",WEEKNUM(ZiCalendar),\"/Ziua \",ZiCalendar-DATE(YEAR(ZiCalendar),1,0)),CONCATENATE(\"Ziua \",ZiCalendar-DATE(YEAR(ZiCalendar),1,0)))","v":"Ziua 66"},{"$f":"IF(WEEKDAY(ZiCalendar)=ValoareÎnceputSăptămână,CONCATENATE(\"Săptămâna \",WEEKNUM(ZiCalendar),\"/Ziua \",ZiCalendar-DATE(YEAR(ZiCalendar),1,0)),CONCATENATE(\"Ziua \",ZiCalendar-DATE(YEAR(ZiCalendar),1,0)))","v":"Ziua 67"},{"$f":"IF(WEEKDAY(ZiCalendar)=ValoareÎnceputSăptămână,CONCATENATE(\"Săptămâna \",WEEKNUM(ZiCalendar),\"/Ziua \",ZiCalendar-DATE(YEAR(ZiCalendar),1,0)),CONCATENATE(\"Ziua \",ZiCalendar-DATE(YEAR(ZiCalendar),1,0)))","v":"Ziua 68"},{"$f":"IF(WEEKDAY(ZiCalendar)=ValoareÎnceputSăptămână,CONCATENATE(\"Săptămâna \",WEEKNUM(ZiCalendar),\"/Ziua \",ZiCalendar-DATE(YEAR(ZiCalendar),1,0)),CONCATENATE(\"Ziua \",ZiCalendar-DATE(YEAR(ZiCalendar),1,0)))","v":"Ziua 69"}]
[]
[null,null,{"$f":"ZileȘiSăptămâni+DATE(AnCalendar,3,1)-WEEKDAY(DATE(AnCalendar,3,1),(ÎnceputSăptămână=\"LUN\")+1)+15","v":"2018-03-11"},"2018-03-12","2018-03-13","2018-03-14","2018-03-15","2018-03-16","2018-03-17"]
[null,null,{"$f":"IF(WEEKDAY(ZiCalendar)=ValoareÎnceputSăptămână,CONCATENATE(\"Săptămâna \",WEEKNUM(ZiCalendar),\"/Ziua \",ZiCalendar-DATE(YEAR(ZiCalendar),1,0)),CONCATENATE(\"Ziua \",ZiCalendar-DATE(YEAR(ZiCalendar),1,0)))","v":"Săptămâna 11/Ziua 70"},{"$f":"IF(WEEKDAY(ZiCalendar)=ValoareÎnceputSăptămână,CONCATENATE(\"Săptămâna \",WEEKNUM(ZiCalendar),\"/Ziua \",ZiCalendar-DATE(YEAR(ZiCalendar),1,0)),CONCATENATE(\"Ziua \",ZiCalendar-DATE(YEAR(ZiCalendar),1,0)))","v":"Ziua 71"},{"$f":"IF(WEEKDAY(ZiCalendar)=ValoareÎnceputSăptămână,CONCATENATE(\"Săptămâna \",WEEKNUM(ZiCalendar),\"/Ziua \",ZiCalendar-DATE(YEAR(ZiCalendar),1,0)),CONCATENATE(\"Ziua \",ZiCalendar-DATE(YEAR(ZiCalendar),1,0)))","v":"Ziua 72"},{"$f":"IF(WEEKDAY(ZiCalendar)=ValoareÎnceputSăptămână,CONCATENATE(\"Săptămâna \",WEEKNUM(ZiCalendar),\"/Ziua \",ZiCalendar-DATE(YEAR(ZiCalendar),1,0)),CONCATENATE(\"Ziua \",ZiCalendar-DATE(YEAR(ZiCalendar),1,0)))","v":"Ziua 73"},{"$f":"IF(WEEKDAY(ZiCalendar)=ValoareÎnceputSăptămână,CONCATENATE(\"Săptămâna \",WEEKNUM(ZiCalendar),\"/Ziua \",ZiCalendar-DATE(YEAR(ZiCalendar),1,0)),CONCATENATE(\"Ziua \",ZiCalendar-DATE(YEAR(ZiCalendar),1,0)))","v":"Ziua 74"},{"$f":"IF(WEEKDAY(ZiCalendar)=ValoareÎnceputSăptămână,CONCATENATE(\"Săptămâna \",WEEKNUM(ZiCalendar),\"/Ziua \",ZiCalendar-DATE(YEAR(ZiCalendar),1,0)),CONCATENATE(\"Ziua \",ZiCalendar-DATE(YEAR(ZiCalendar),1,0)))","v":"Ziua 75"},{"$f":"IF(WEEKDAY(ZiCalendar)=ValoareÎnceputSăptămână,CONCATENATE(\"Săptămâna \",WEEKNUM(ZiCalendar),\"/Ziua \",ZiCalendar-DATE(YEAR(ZiCalendar),1,0)),CONCATENATE(\"Ziua \",ZiCalendar-DATE(YEAR(ZiCalendar),1,0)))","v":"Ziua 76"}]
[]
[null,null,{"$f":"ZileȘiSăptămâni+DATE(AnCalendar,3,1)-WEEKDAY(DATE(AnCalendar,3,1),(ÎnceputSăptămână=\"LUN\")+1)+22","v":"2018-03-18"},"2018-03-19","2018-03-20","2018-03-21","2018-03-22","2018-03-23","2018-03-24"]
[null,null,{"$f":"IF(WEEKDAY(ZiCalendar)=ValoareÎnceputSăptămână,CONCATENATE(\"Săptămâna \",WEEKNUM(ZiCalendar),\"/Ziua \",ZiCalendar-DATE(YEAR(ZiCalendar),1,0)),CONCATENATE(\"Ziua \",ZiCalendar-DATE(YEAR(ZiCalendar),1,0)))","v":"Săptămâna 12/Ziua 77"},{"$f":"IF(WEEKDAY(ZiCalendar)=ValoareÎnceputSăptămână,CONCATENATE(\"Săptămâna \",WEEKNUM(ZiCalendar),\"/Ziua \",ZiCalendar-DATE(YEAR(ZiCalendar),1,0)),CONCATENATE(\"Ziua \",ZiCalendar-DATE(YEAR(ZiCalendar),1,0)))","v":"Ziua 78"},{"$f":"IF(WEEKDAY(ZiCalendar)=ValoareÎnceputSăptămână,CONCATENATE(\"Săptămâna \",WEEKNUM(ZiCalendar),\"/Ziua \",ZiCalendar-DATE(YEAR(ZiCalendar),1,0)),CONCATENATE(\"Ziua \",ZiCalendar-DATE(YEAR(ZiCalendar),1,0)))","v":"Ziua 79"},{"$f":"IF(WEEKDAY(ZiCalendar)=ValoareÎnceputSăptămână,CONCATENATE(\"Săptămâna \",WEEKNUM(ZiCalendar),\"/Ziua \",ZiCalendar-DATE(YEAR(ZiCalendar),1,0)),CONCATENATE(\"Ziua \",ZiCalendar-DATE(YEAR(ZiCalendar),1,0)))","v":"Ziua 80"},{"$f":"IF(WEEKDAY(ZiCalendar)=ValoareÎnceputSăptămână,CONCATENATE(\"Săptămâna \",WEEKNUM(ZiCalendar),\"/Ziua \",ZiCalendar-DATE(YEAR(ZiCalendar),1,0)),CONCATENATE(\"Ziua \",ZiCalendar-DATE(YEAR(ZiCalendar),1,0)))","v":"Ziua 81"},{"$f":"IF(WEEKDAY(ZiCalendar)=ValoareÎnceputSăptămână,CONCATENATE(\"Săptămâna \",WEEKNUM(ZiCalendar),\"/Ziua \",ZiCalendar-DATE(YEAR(ZiCalendar),1,0)),CONCATENATE(\"Ziua \",ZiCalendar-DATE(YEAR(ZiCalendar),1,0)))","v":"Ziua 82"},{"$f":"IF(WEEKDAY(ZiCalendar)=ValoareÎnceputSăptămână,CONCATENATE(\"Săptămâna \",WEEKNUM(ZiCalendar),\"/Ziua \",ZiCalendar-DATE(YEAR(ZiCalendar),1,0)),CONCATENATE(\"Ziua \",ZiCalendar-DATE(YEAR(ZiCalendar),1,0)))","v":"Ziua 83"}]
[]
[null,null,{"$f":"ZileȘiSăptămâni+DATE(AnCalendar,3,1)-WEEKDAY(DATE(AnCalendar,3,1),(ÎnceputSăptămână=\"LUN\")+1)+29","v":"2018-03-25"},"2018-03-26","2018-03-27","2018-03-28","2018-03-29","2018-03-30","2018-03-31"]
[null,null,{"$f":"IF(WEEKDAY(ZiCalendar)=ValoareÎnceputSăptămână,CONCATENATE(\"Săptămâna \",WEEKNUM(ZiCalendar),\"/Ziua \",ZiCalendar-DATE(YEAR(ZiCalendar),1,0)),CONCATENATE(\"Ziua \",ZiCalendar-DATE(YEAR(ZiCalendar),1,0)))","v":"Săptămâna 13/Ziua 84"},{"$f":"IF(WEEKDAY(ZiCalendar)=ValoareÎnceputSăptămână,CONCATENATE(\"Săptămâna \",WEEKNUM(ZiCalendar),\"/Ziua \",ZiCalendar-DATE(YEAR(ZiCalendar),1,0)),CONCATENATE(\"Ziua \",ZiCalendar-DATE(YEAR(ZiCalendar),1,0)))","v":"Ziua 85"},{"$f":"IF(WEEKDAY(ZiCalendar)=ValoareÎnceputSăptămână,CONCATENATE(\"Săptămâna \",WEEKNUM(ZiCalendar),\"/Ziua \",ZiCalendar-DATE(YEAR(ZiCalendar),1,0)),CONCATENATE(\"Ziua \",ZiCalendar-DATE(YEAR(ZiCalendar),1,0)))","v":"Ziua 86"},{"$f":"IF(WEEKDAY(ZiCalendar)=ValoareÎnceputSăptămână,CONCATENATE(\"Săptămâna \",WEEKNUM(ZiCalendar),\"/Ziua \",ZiCalendar-DATE(YEAR(ZiCalendar),1,0)),CONCATENATE(\"Ziua \",ZiCalendar-DATE(YEAR(ZiCalendar),1,0)))","v":"Ziua 87"},{"$f":"IF(WEEKDAY(ZiCalendar)=ValoareÎnceputSăptămână,CONCATENATE(\"Săptămâna \",WEEKNUM(ZiCalendar),\"/Ziua \",ZiCalendar-DATE(YEAR(ZiCalendar),1,0)),CONCATENATE(\"Ziua \",ZiCalendar-DATE(YEAR(ZiCalendar),1,0)))","v":"Ziua 88"},{"$f":"IF(WEEKDAY(ZiCalendar)=ValoareÎnceputSăptămână,CONCATENATE(\"Săptămâna \",WEEKNUM(ZiCalendar),\"/Ziua \",ZiCalendar-DATE(YEAR(ZiCalendar),1,0)),CONCATENATE(\"Ziua \",ZiCalendar-DATE(YEAR(ZiCalendar),1,0)))","v":"Ziua 89"},{"$f":"IF(WEEKDAY(ZiCalendar)=ValoareÎnceputSăptămână,CONCATENATE(\"Săptămâna \",WEEKNUM(ZiCalendar),\"/Ziua \",ZiCalendar-DATE(YEAR(ZiCalendar),1,0)),CONCATENATE(\"Ziua \",ZiCalendar-DATE(YEAR(ZiCalendar),1,0)))","v":"Ziua 90"}]
[{"$nulls":4},"NOTE"]
[]
[null,null,{"$f":"ZileȘiSăptămâni+DATE(AnCalendar,3,1)-WEEKDAY(DATE(AnCalendar,3,1),(ÎnceputSăptămână=\"LUN\")+1)+36","v":"2018-04-01"},"2018-04-02"]
[null,null,{"$f":"IF(WEEKDAY(ZiCalendar)=ValoareÎnceputSăptămână,CONCATENATE(\"Săptămâna \",WEEKNUM(ZiCalendar),\"/Ziua \",ZiCalendar-DATE(YEAR(ZiCalendar),1,0)),CONCATENATE(\"Ziua \",ZiCalendar-DATE(YEAR(ZiCalendar),1,0)))","v":"Săptămâna 14/Ziua 91"},{"$f":"IF(WEEKDAY(ZiCalendar)=ValoareÎnceputSăptămână,CONCATENATE(\"Săptămâna \",WEEKNUM(ZiCalendar),\"/Ziua \",ZiCalendar-DATE(YEAR(ZiCalendar),1,0)),CONCATENATE(\"Ziua \",ZiCalendar-DATE(YEAR(ZiCalendar),1,0)))","v":"Ziua 92"}]

{"sheet":"APR","index":3,"n_rows":20,"n_cols":9,"rows_kept":20,"merged":[[16,2,17,2],[17,4,19,8]]}
[null,"APR",{"$f":"UPPER(TEXT(ÎnceputSăptămână,\"ddd\"))","v":"DUM"},{"$f":"UPPER(TEXT(D3,\"aaa\"))","v":"LUN"},"MAR","MIE","JOI","VIN","SÂM"]
[null,{"$f":"AnCalendar","v":2018}]
[null,null,{"$f":"ZileȘiSăptămâni+DATE(AnCalendar,4,1)-WEEKDAY(DATE(AnCalendar,4,1),(ÎnceputSăptămână=\"LUN\")+1)+1","v":"2018-04-01"},"2018-04-02","2018-04-03","2018-04-04","2018-04-05","2018-04-06","2018-04-07"]
[null,null,{"$f":"IF(DAY(ZiCalendar)=1,CONCATENATE(\"Săptămâna \",WEEKNUM(ZiCalendar),\"/Ziua \",ZiCalendar-DATE(YEAR(ZiCalendar),1,0)),CONCATENATE(\"Ziua \",ZiCalendar-DATE(YEAR(ZiCalendar),1,0)))","v":"Săptămâna 14/Ziua 91"},{"$f":"IF(DAY(ZiCalendar)=1,CONCATENATE(\"Săptămâna \",WEEKNUM(ZiCalendar),\"/Ziua \",ZiCalendar-DATE(YEAR(ZiCalendar),1,0)),CONCATENATE(\"Ziua \",ZiCalendar-DATE(YEAR(ZiCalendar),1,0)))","v":"Ziua 92"},{"$f":"IF(DAY(ZiCalendar)=1,CONCATENATE(\"Săptămâna \",WEEKNUM(ZiCalendar),\"/Ziua \",ZiCalendar-DATE(YEAR(ZiCalendar),1,0)),CONCATENATE(\"Ziua \",ZiCalendar-DATE(YEAR(ZiCalendar),1,0)))","v":"Ziua 93"},{"$f":"IF(DAY(ZiCalendar)=1,CONCATENATE(\"Săptămâna \",WEEKNUM(ZiCalendar),\"/Ziua \",ZiCalendar-DATE(YEAR(ZiCalendar),1,0)),CONCATENATE(\"Ziua \",ZiCalendar-DATE(YEAR(ZiCalendar),1,0)))","v":"Ziua 94"},{"$f":"IF(DAY(ZiCalendar)=1,CONCATENATE(\"Săptămâna \",WEEKNUM(ZiCalendar),\"/Ziua \",ZiCalendar-DATE(YEAR(ZiCalendar),1,0)),CONCATENATE(\"Ziua \",ZiCalendar-DATE(YEAR(ZiCalendar),1,0)))","v":"Ziua 95"},{"$f":"IF(DAY(ZiCalendar)=1,CONCATENATE(\"Săptămâna \",WEEKNUM(ZiCalendar),\"/Ziua \",ZiCalendar-DATE(YEAR(ZiCalendar),1,0)),CONCATENATE(\"Ziua \",ZiCalendar-DATE(YEAR(ZiCalendar),1,0)))","v":"Ziua 96"},{"$f":"IF(DAY(ZiCalendar)=1,CONCATENATE(\"Săptămâna \",WEEKNUM(ZiCalendar),\"/Ziua \",ZiCalendar-DATE(YEAR(ZiCalendar),1,0)),CONCATENATE(\"Ziua \",ZiCalendar-DATE(YEAR(ZiCalendar),1,0)))","v":"Ziua 97"}]
[]
[null,null,{"$f":"ZileȘiSăptămâni+DATE(AnCalendar,4,1)-WEEKDAY(DATE(AnCalendar,4,1),(ÎnceputSăptămână=\"LUN\")+1)+8","v":"2018-04-08"},"2018-04-09","2018-04-10","2018-04-11","2018-04-12","2018-04-13","2018-04-14"]
[null,null,{"$f":"IF(WEEKDAY(ZiCalendar)=ValoareÎnceputSăptămână,CONCATENATE(\"Săptămâna \",WEEKNUM(ZiCalendar),\"/Ziua \",ZiCalendar-DATE(YEAR(ZiCalendar),1,0)),CONCATENATE(\"Ziua \",ZiCalendar-DATE(YEAR(ZiCalendar),1,0)))","v":"Săptămâna 15/Ziua 98"},{"$f":"IF(WEEKDAY(ZiCalendar)=ValoareÎnceputSăptămână,CONCATENATE(\"Săptămâna \",WEEKNUM(ZiCalendar),\"/Ziua \",ZiCalendar-DATE(YEAR(ZiCalendar),1,0)),CONCATENATE(\"Ziua \",ZiCalendar-DATE(YEAR(ZiCalendar),1,0)))","v":"Ziua 99"},{"$f":"IF(WEEKDAY(ZiCalendar)=ValoareÎnceputSăptămână,CONCATENATE(\"Săptămâna \",WEEKNUM(ZiCalendar),\"/Ziua \",ZiCalendar-DATE(YEAR(ZiCalendar),1,0)),CONCATENATE(\"Ziua \",ZiCalendar-DATE(YEAR(ZiCalendar),1,0)))","v":"Ziua 100"},{"$f":"IF(WEEKDAY(ZiCalendar)=ValoareÎnceputSăptămână,CONCATENATE(\"Săptămâna \",WEEKNUM(ZiCalendar),\"/Ziua \",ZiCalendar-DATE(YEAR(ZiCalendar),1,0)),CONCATENATE(\"Ziua \",ZiCalendar-DATE(YEAR(ZiCalendar),1,0)))","v":"Ziua 101"},{"$f":"IF(WEEKDAY(ZiCalendar)=ValoareÎnceputSăptămână,CONCATENATE(\"Săptămâna \",WEEKNUM(ZiCalendar),\"/Ziua \",ZiCalendar-DATE(YEAR(ZiCalendar),1,0)),CONCATENATE(\"Ziua \",ZiCalendar-DATE(YEAR(ZiCalendar),1,0)))","v":"Ziua 102"},{"$f":"IF(WEEKDAY(ZiCalendar)=ValoareÎnceputSăptămână,CONCATENATE(\"Săptămâna \",WEEKNUM(ZiCalendar),\"/Ziua \",ZiCalendar-DATE(YEAR(ZiCalendar),1,0)),CONCATENATE(\"Ziua \",ZiCalendar-DATE(YEAR(ZiCalendar),1,0)))","v":"Ziua 103"},{"$f":"IF(WEEKDAY(ZiCalendar)=ValoareÎnceputSăptămână,CONCATENATE(\"Săptămâna \",WEEKNUM(ZiCalendar),\"/Ziua \",ZiCalendar-DATE(YEAR(ZiCalendar),1,0)),CONCATENATE(\"Ziua \",ZiCalendar-DATE(YEAR(ZiCalendar),1,0)))","v":"Ziua 104"}]
[]
[null,null,{"$f":"ZileȘiSăptămâni+DATE(AnCalendar,4,1)-WEEKDAY(DATE(AnCalendar,4,1),(ÎnceputSăptămână=\"LUN\")+1)+15","v":"2018-04-15"},"2018-04-16","2018-04-17","2018-04-18","2018-04-19","2018-04-20","2018-04-21"]
[null,null,{"$f":"IF(WEEKDAY(ZiCalendar)=ValoareÎnceputSăptămână,CONCATENATE(\"Săptămâna \",WEEKNUM(ZiCalendar),\"/Ziua \",ZiCalendar-DATE(YEAR(ZiCalendar),1,0)),CONCATENATE(\"Ziua \",ZiCalendar-DATE(YEAR(ZiCalendar),1,0)))","v":"Săptămâna 16/Ziua 105"},{"$f":"IF(WEEKDAY(ZiCalendar)=ValoareÎnceputSăptămână,CONCATENATE(\"Săptămâna \",WEEKNUM(ZiCalendar),\"/Ziua \",ZiCalendar-DATE(YEAR(ZiCalendar),1,0)),CONCATENATE(\"Ziua \",ZiCalendar-DATE(YEAR(ZiCalendar),1,0)))","v":"Ziua 106"},{"$f":"IF(WEEKDAY(ZiCalendar)=ValoareÎnceputSăptămână,CONCATENATE(\"Săptămâna \",WEEKNUM(ZiCalendar),\"/Ziua \",ZiCalendar-DATE(YEAR(ZiCalendar),1,0)),CONCATENATE(\"Ziua \",ZiCalendar-DATE(YEAR(ZiCalendar),1,0)))","v":"Ziua 107"},{"$f":"IF(WEEKDAY(ZiCalendar)=ValoareÎnceputSăptămână,CONCATENATE(\"Săptămâna \",WEEKNUM(ZiCalendar),\"/Ziua \",ZiCalendar-DATE(YEAR(ZiCalendar),1,0)),CONCATENATE(\"Ziua \",ZiCalendar-DATE(YEAR(ZiCalendar),1,0)))","v":"Ziua 108"},{"$f":"IF(WEEKDAY(ZiCalendar)=ValoareÎnceputSăptămână,CONCATENATE(\"Săptămâna \",WEEKNUM(ZiCalendar),\"/Ziua \",ZiCalendar-DATE(YEAR(ZiCalendar),1,0)),CONCATENATE(\"Ziua \",ZiCalendar-DATE(YEAR(ZiCalendar),1,0)))","v":"Ziua 109"},{"$f":"IF(WEEKDAY(ZiCalendar)=ValoareÎnceputSăptămână,CONCATENATE(\"Săptămâna \",WEEKNUM(ZiCalendar),\"/Ziua \",ZiCalendar-DATE(YEAR(ZiCalendar),1,0)),CONCATENATE(\"Ziua \",ZiCalendar-DATE(YEAR(ZiCalendar),1,0)))","v":"Ziua 110"},{"$f":"IF(WEEKDAY(ZiCalendar)=ValoareÎnceputSăptămână,CONCATENATE(\"Săptămâna \",WEEKNUM(ZiCalendar),\"/Ziua \",ZiCalendar-DATE(YEAR(ZiCalendar),1,0)),CONCATENATE(\"Ziua \",ZiCalendar-DATE(YEAR(ZiCalendar),1,0)))","v":"Ziua 111"}]
[]
[null,null,{"$f":"ZileȘiSăptămâni+DATE(AnCalendar,4,1)-WEEKDAY(DATE(AnCalendar,4,1),(ÎnceputSăptămână=\"LUN\")+1)+22","v":"2018-04-22"},"2018-04-23","2018-04-24","2018-04-25","2018-04-26","2018-04-27","2018-04-28"]
[null,null,{"$f":"IF(WEEKDAY(ZiCalendar)=ValoareÎnceputSăptămână,CONCATENATE(\"Săptămâna \",WEEKNUM(ZiCalendar),\"/Ziua \",ZiCalendar-DATE(YEAR(ZiCalendar),1,0)),CONCATENATE(\"Ziua \",ZiCalendar-DATE(YEAR(ZiCalendar),1,0)))","v":"Săptămâna 17/Ziua 112"},{"$f":"IF(WEEKDAY(ZiCalendar)=ValoareÎnceputSăptămână,CONCATENATE(\"Săptămâna \",WEEKNUM(ZiCalendar),\"/Ziua \",ZiCalendar-DATE(YEAR(ZiCalendar),1,0)),CONCATENATE(\"Ziua \",ZiCalendar-DATE(YEAR(ZiCalendar),1,0)))","v":"Ziua 113"},{"$f":"IF(WEEKDAY(ZiCalendar)=ValoareÎnceputSăptămână,CONCATENATE(\"Săptămâna \",WEEKNUM(ZiCalendar),\"/Ziua \",ZiCalendar-DATE(YEAR(ZiCalendar),1,0)),CONCATENATE(\"Ziua \",ZiCalendar-DATE(YEAR(ZiCalendar),1,0)))","v":"Ziua 114"},{"$f":"IF(WEEKDAY(ZiCalendar)=ValoareÎnceputSăptămână,CONCATENATE(\"Săptămâna \",WEEKNUM(ZiCalendar),\"/Ziua \",ZiCalendar-DATE(YEAR(ZiCalendar),1,0)),CONCATENATE(\"Ziua \",ZiCalendar-DATE(YEAR(ZiCalendar),1,0)))","v":"Ziua 115"},{"$f":"IF(WEEKDAY(ZiCalendar)=ValoareÎnceputSăptămână,CONCATENATE(\"Săptămâna \",WEEKNUM(ZiCalendar),\"/Ziua \",ZiCalendar-DATE(YEAR(ZiCalendar),1,0)),CONCATENATE(\"Ziua \",ZiCalendar-DATE(YEAR(ZiCalendar),1,0)))","v":"Ziua 116"},{"$f":"IF(WEEKDAY(ZiCalendar)=ValoareÎnceputSăptămână,CONCATENATE(\"Săptămâna \",WEEKNUM(ZiCalendar),\"/Ziua \",ZiCalendar-DATE(YEAR(ZiCalendar),1,0)),CONCATENATE(\"Ziua \",ZiCalendar-DATE(YEAR(ZiCalendar),1,0)))","v":"Ziua 117"},{"$f":"IF(WEEKDAY(ZiCalendar)=ValoareÎnceputSăptămână,CONCATENATE(\"Săptămâna \",WEEKNUM(ZiCalendar),\"/Ziua \",ZiCalendar-DATE(YEAR(ZiCalendar),1,0)),CONCATENATE(\"Ziua \",ZiCalendar-DATE(YEAR(ZiCalendar),1,0)))","v":"Ziua 118"}]
[]
[null,null,{"$f":"ZileȘiSăptămâni+DATE(AnCalendar,4,1)-WEEKDAY(DATE(AnCalendar,4,1),(ÎnceputSăptămână=\"LUN\")+1)+29","v":"2018-04-29"},"2018-04-30","2018-05-01","2018-05-02","2018-05-03","2018-05-04","2018-05-05"]
[null,null,{"$f":"IF(WEEKDAY(ZiCalendar)=ValoareÎnceputSăptămână,CONCATENATE(\"Săptămâna \",WEEKNUM(ZiCalendar),\"/Ziua \",ZiCalendar-DATE(YEAR(ZiCalendar),1,0)),CONCATENATE(\"Ziua \",ZiCalendar-DATE(YEAR(ZiCalendar),1,0)))","v":"Săptămâna 18/Ziua 119"},{"$f":"IF(WEEKDAY(ZiCalendar)=ValoareÎnceputSăptămână,CONCATENATE(\"Săptămâna \",WEEKNUM(ZiCalendar),\"/Ziua \",ZiCalendar-DATE(YEAR(ZiCalendar),1,0)),CONCATENATE(\"Ziua \",ZiCalendar-DATE(YEAR(ZiCalendar),1,0)))","v":"Ziua 120"},{"$f":"IF(WEEKDAY(ZiCalendar)=ValoareÎnceputSăptămână,CONCATENATE(\"Săptămâna \",WEEKNUM(ZiCalendar),\"/Ziua \",ZiCalendar-DATE(YEAR(ZiCalendar),1,0)),CONCATENATE(\"Ziua \",ZiCalendar-DATE(YEAR(ZiCalendar),1,0)))","v":"Ziua 121"},{"$f":"IF(WEEKDAY(ZiCalendar)=ValoareÎnceputSăptămână,CONCATENATE(\"Săptămâna \",WEEKNUM(ZiCalendar),\"/Ziua \",ZiCalendar-DATE(YEAR(ZiCalendar),1,0)),CONCATENATE(\"Ziua \",ZiCalendar-DATE(YEAR(ZiCalendar),1,0)))","v":"Ziua 122"},{"$f":"IF(WEEKDAY(ZiCalendar)=ValoareÎnceputSăptămână,CONCATENATE(\"Săptămâna \",WEEKNUM(ZiCalendar),\"/Ziua \",ZiCalendar-DATE(YEAR(ZiCalendar),1,0)),CONCATENATE(\"Ziua \",ZiCalendar-DATE(YEAR(ZiCalendar),1,0)))","v":"Ziua 123"},{"$f":"IF(WEEKDAY(ZiCalendar)=ValoareÎnceputSăptămână,CONCATENATE(\"Săptămâna \",WEEKNUM(ZiCalendar),\"/Ziua \",ZiCalendar-DATE(YEAR(ZiCalendar),1,0)),CONCATENATE(\"Ziua \",ZiCalendar-DATE(YEAR(ZiCalendar),1,0)))","v":"Ziua 124"},{"$f":"IF(WEEKDAY(ZiCalendar)=ValoareÎnceputSăptămână,CONCATENATE(\"Săptămâna \",WEEKNUM(ZiCalendar),\"/Ziua \",ZiCalendar-DATE(YEAR(ZiCalendar),1,0)),CONCATENATE(\"Ziua \",ZiCalendar-DATE(YEAR(ZiCalendar),1,0)))","v":"Ziua 125"}]
[{"$nulls":4},"NOTE"]
[]
[null,null,{"$f":"ZileȘiSăptămâni+DATE(AnCalendar,4,1)-WEEKDAY(DATE(AnCalendar,4,1),(ÎnceputSăptămână=\"LUN\")+1)+36","v":"2018-05-06"},"2018-05-07"]
[null,null,{"$f":"IF(WEEKDAY(ZiCalendar)=ValoareÎnceputSăptămână,CONCATENATE(\"Săptămâna \",WEEKNUM(ZiCalendar),\"/Ziua \",ZiCalendar-DATE(YEAR(ZiCalendar),1,0)),CONCATENATE(\"Ziua \",ZiCalendar-DATE(YEAR(ZiCalendar),1,0)))","v":"Săptămâna 19/Ziua 126"},{"$f":"IF(WEEKDAY(ZiCalendar)=ValoareÎnceputSăptămână,CONCATENATE(\"Săptămâna \",WEEKNUM(ZiCalendar),\"/Ziua \",ZiCalendar-DATE(YEAR(ZiCalendar),1,0)),CONCATENATE(\"Ziua \",ZiCalendar-DATE(YEAR(ZiCalendar),1,0)))","v":"Ziua 127"}]

{"sheet":"MAI","index":4,"n_rows":20,"n_cols":9,"rows_kept":20,"merged":[[16,2,17,2],[17,4,19,8]]}
[null,"MAI",{"$f":"UPPER(TEXT(ÎnceputSăptămână,\"ddd\"))","v":"DUM"},{"$f":"UPPER(TEXT(D3,\"aaa\"))","v":"LUN"},"MAR","MIE","JOI","VIN","SÂM"]
[null,{"$f":"AnCalendar","v":2018}]
[null,null,{"$f":"ZileȘiSăptămâni+DATE(AnCalendar,5,1)-WEEKDAY(DATE(AnCalendar,5,1),(ÎnceputSăptămână=\"LUN\")+1)+1","v":"2018-04-29"},"2018-04-30","2018-05-01","2018-05-02","2018-05-03","2018-05-04","2018-05-05"]
[null,null,{"$f":"IF(DAY(ZiCalendar)=1,CONCATENATE(\"Săptămâna \",WEEKNUM(ZiCalendar),\"/Ziua \",ZiCalendar-DATE(YEAR(ZiCalendar),1,0)),CONCATENATE(\"Ziua \",ZiCalendar-DATE(YEAR(ZiCalendar),1,0)))","v":"Ziua 119"},{"$f":"IF(DAY(ZiCalendar)=1,CONCATENATE(\"Săptămâna \",WEEKNUM(ZiCalendar),\"/Ziua \",ZiCalendar-DATE(YEAR(ZiCalendar),1,0)),CONCATENATE(\"Ziua \",ZiCalendar-DATE(YEAR(ZiCalendar),1,0)))","v":"Ziua 120"},{"$f":"IF(DAY(ZiCalendar)=1,CONCATENATE(\"Săptămâna \",WEEKNUM(ZiCalendar),\"/Ziua \",ZiCalendar-DATE(YEAR(ZiCalendar),1,0)),CONCATENATE(\"Ziua \",ZiCalendar-DATE(YEAR(ZiCalendar),1,0)))","v":"Săptămâna 18/Ziua 121"},{"$f":"IF(DAY(ZiCalendar)=1,CONCATENATE(\"Săptămâna \",WEEKNUM(ZiCalendar),\"/Ziua \",ZiCalendar-DATE(YEAR(ZiCalendar),1,0)),CONCATENATE(\"Ziua \",ZiCalendar-DATE(YEAR(ZiCalendar),1,0)))","v":"Ziua 122"},{"$f":"IF(DAY(ZiCalendar)=1,CONCATENATE(\"Săptămâna \",WEEKNUM(ZiCalendar),\"/Ziua \",ZiCalendar-DATE(YEAR(ZiCalendar),1,0)),CONCATENATE(\"Ziua \",ZiCalendar-DATE(YEAR(ZiCalendar),1,0)))","v":"Ziua 123"},{"$f":"IF(DAY(ZiCalendar)=1,CONCATENATE(\"Săptămâna \",WEEKNUM(ZiCalendar),\"/Ziua \",ZiCalendar-DATE(YEAR(ZiCalendar),1,0)),CONCATENATE(\"Ziua \",ZiCalendar-DATE(YEAR(ZiCalendar),1,0)))","v":"Ziua 124"},{"$f":"IF(DAY(ZiCalendar)=1,CONCATENATE(\"Săptămâna \",WEEKNUM(ZiCalendar),\"/Ziua \",ZiCalendar-DATE(YEAR(ZiCalendar),1,0)),CONCATENATE(\"Ziua \",ZiCalendar-DATE(YEAR(ZiCalendar),1,0)))","v":"Ziua 125"}]
[]
[null,null,{"$f":"ZileȘiSăptămâni+DATE(AnCalendar,5,1)-WEEKDAY(DATE(AnCalendar,5,1),(ÎnceputSăptămână=\"LUN\")+1)+8","v":"2018-05-06"},"2018-05-07","2018-05-08","2018-05-09","2018-05-10","2018-05-11","2018-05-12"]
[null,null,{"$f":"IF(WEEKDAY(ZiCalendar)=ValoareÎnceputSăptămână,CONCATENATE(\"Săptămâna \",WEEKNUM(ZiCalendar),\"/Ziua \",ZiCalendar-DATE(YEAR(ZiCalendar),1,0)),CONCATENATE(\"Ziua \",ZiCalendar-DATE(YEAR(ZiCalendar),1,0)))","v":"Săptămâna 19/Ziua 126"},{"$f":"IF(WEEKDAY(ZiCalendar)=ValoareÎnceputSăptămână,CONCATENATE(\"Săptămâna \",WEEKNUM(ZiCalendar),\"/Ziua \",ZiCalendar-DATE(YEAR(ZiCalendar),1,0)),CONCATENATE(\"Ziua \",ZiCalendar-DATE(YEAR(ZiCalendar),1,0)))","v":"Ziua 127"},{"$f":"IF(WEEKDAY(ZiCalendar)=ValoareÎnceputSăptămână,CONCATENATE(\"Săptămâna \",WEEKNUM(ZiCalendar),\"/Ziua \",ZiCalendar-DATE(YEAR(ZiCalendar),1,0)),CONCATENATE(\"Ziua \",ZiCalendar-DATE(YEAR(ZiCalendar),1,0)))","v":"Ziua 128"},{"$f":"IF(WEEKDAY(ZiCalendar)=ValoareÎnceputSăptămână,CONCATENATE(\"Săptămâna \",WEEKNUM(ZiCalendar),\"/Ziua \",ZiCalendar-DATE(YEAR(ZiCalendar),1,0)),CONCATENATE(\"Ziua \",ZiCalendar-DATE(YEAR(ZiCalendar),1,0)))","v":"Ziua 129"},{"$f":"IF(WEEKDAY(ZiCalendar)=ValoareÎnceputSăptămână,CONCATENATE(\"Săptămâna \",WEEKNUM(ZiCalendar),\"/Ziua \",ZiCalendar-DATE(YEAR(ZiCalendar),1,0)),CONCATENATE(\"Ziua \",ZiCalendar-DATE(YEAR(ZiCalendar),1,0)))","v":"Ziua 130"},{"$f":"IF(WEEKDAY(ZiCalendar)=ValoareÎnceputSăptămână,CONCATENATE(\"Săptămâna \",WEEKNUM(ZiCalendar),\"/Ziua \",ZiCalendar-DATE(YEAR(ZiCalendar),1,0)),CONCATENATE(\"Ziua \",ZiCalendar-DATE(YEAR(ZiCalendar),1,0)))","v":"Ziua 131"},{"$f":"IF(WEEKDAY(ZiCalendar)=ValoareÎnceputSăptămână,CONCATENATE(\"Săptămâna \",WEEKNUM(ZiCalendar),\"/Ziua \",ZiCalendar-DATE(YEAR(ZiCalendar),1,0)),CONCATENATE(\"Ziua \",ZiCalendar-DATE(YEAR(ZiCalendar),1,0)))","v":"Ziua 132"}]
[]
[null,null,{"$f":"ZileȘiSăptămâni+DATE(AnCalendar,5,1)-WEEKDAY(DATE(AnCalendar,5,1),(ÎnceputSăptămână=\"LUN\")+1)+15","v":"2018-05-13"},"2018-05-14","2018-05-15","2018-05-16","2018-05-17","2018-05-18","2018-05-19"]
[null,null,{"$f":"IF(WEEKDAY(ZiCalendar)=ValoareÎnceputSăptămână,CONCATENATE(\"Săptămâna \",WEEKNUM(ZiCalendar),\"/Ziua \",ZiCalendar-DATE(YEAR(ZiCalendar),1,0)),CONCATENATE(\"Ziua \",ZiCalendar-DATE(YEAR(ZiCalendar),1,0)))","v":"Săptămâna 20/Ziua 133"},{"$f":"IF(WEEKDAY(ZiCalendar)=ValoareÎnceputSăptămână,CONCATENATE(\"Săptămâna \",WEEKNUM(ZiCalendar),\"/Ziua \",ZiCalendar-DATE(YEAR(ZiCalendar),1,0)),CONCATENATE(\"Ziua \",ZiCalendar-DATE(YEAR(ZiCalendar),1,0)))","v":"Ziua 134"},{"$f":"IF(WEEKDAY(ZiCalendar)=ValoareÎnceputSăptămână,CONCATENATE(\"Săptămâna \",WEEKNUM(ZiCalendar),\"/Ziua \",ZiCalendar-DATE(YEAR(ZiCalendar),1,0)),CONCATENATE(\"Ziua \",ZiCalendar-DATE(YEAR(ZiCalendar),1,0)))","v":"Ziua 135"},{"$f":"IF(WEEKDAY(ZiCalendar)=ValoareÎnceputSăptămână,CONCATENATE(\"Săptămâna \",WEEKNUM(ZiCalendar),\"/Ziua \",ZiCalendar-DATE(YEAR(ZiCalendar),1,0)),CONCATENATE(\"Ziua \",ZiCalendar-DATE(YEAR(ZiCalendar),1,0)))","v":"Ziua 136"},{"$f":"IF(WEEKDAY(ZiCalendar)=ValoareÎnceputSăptămână,CONCATENATE(\"Săptămâna \",WEEKNUM(ZiCalendar),\"/Ziua \",ZiCalendar-DATE(YEAR(ZiCalendar),1,0)),CONCATENATE(\"Ziua \",ZiCalendar-DATE(YEAR(ZiCalendar),1,0)))","v":"Ziua 137"},{"$f":"IF(WEEKDAY(ZiCalendar)=ValoareÎnceputSăptămână,CONCATENATE(\"Săptămâna \",WEEKNUM(ZiCalendar),\"/Ziua \",ZiCalendar-DATE(YEAR(ZiCalendar),1,0)),CONCATENATE(\"Ziua \",ZiCalendar-DATE(YEAR(ZiCalendar),1,0)))","v":"Ziua 138"},{"$f":"IF(WEEKDAY(ZiCalendar)=ValoareÎnceputSăptămână,CONCATENATE(\"Săptămâna \",WEEKNUM(ZiCalendar),\"/Ziua \",ZiCalendar-DATE(YEAR(ZiCalendar),1,0)),CONCATENATE(\"Ziua \",ZiCalendar-DATE(YEAR(ZiCalendar),1,0)))","v":"Ziua 139"}]
[]
[null,null,{"$f":"ZileȘiSăptămâni+DATE(AnCalendar,5,1)-WEEKDAY(DATE(AnCalendar,5,1),(ÎnceputSăptămână=\"LUN\")+1)+22","v":"2018-05-20"},"2018-05-21","2018-05-22","2018-05-23","2018-05-24","2018-05-25","2018-05-26"]
[null,null,{"$f":"IF(WEEKDAY(ZiCalendar)=ValoareÎnceputSăptămână,CONCATENATE(\"Săptămâna \",WEEKNUM(ZiCalendar),\"/Ziua \",ZiCalendar-DATE(YEAR(ZiCalendar),1,0)),CONCATENATE(\"Ziua \",ZiCalendar-DATE(YEAR(ZiCalendar),1,0)))","v":"Săptămâna 21/Ziua 140"},{"$f":"IF(WEEKDAY(ZiCalendar)=ValoareÎnceputSăptămână,CONCATENATE(\"Săptămâna \",WEEKNUM(ZiCalendar),\"/Ziua \",ZiCalendar-DATE(YEAR(ZiCalendar),1,0)),CONCATENATE(\"Ziua \",ZiCalendar-DATE(YEAR(ZiCalendar),1,0)))","v":"Ziua 141"},{"$f":"IF(WEEKDAY(ZiCalendar)=ValoareÎnceputSăptămână,CONCATENATE(\"Săptămâna \",WEEKNUM(ZiCalendar),\"/Ziua \",ZiCalendar-DATE(YEAR(ZiCalendar),1,0)),CONCATENATE(\"Ziua \",ZiCalendar-DATE(YEAR(ZiCalendar),1,0)))","v":"Ziua 142"},{"$f":"IF(WEEKDAY(ZiCalendar)=ValoareÎnceputSăptămână,CONCATENATE(\"Săptămâna \",WEEKNUM(ZiCalendar),\"/Ziua \",ZiCalendar-DATE(YEAR(ZiCalendar),1,0)),CONCATENATE(\"Ziua \",ZiCalendar-DATE(YEAR(ZiCalendar),1,0)))","v":"Ziua 143"},{"$f":"IF(WEEKDAY(ZiCalendar)=ValoareÎnceputSăptămână,CONCATENATE(\"Săptămâna \",WEEKNUM(ZiCalendar),\"/Ziua \",ZiCalendar-DATE(YEAR(ZiCalendar),1,0)),CONCATENATE(\"Ziua \",ZiCalendar-DATE(YEAR(ZiCalendar),1,0)))","v":"Ziua 144"},{"$f":"IF(WEEKDAY(ZiCalendar)=ValoareÎnceputSăptămână,CONCATENATE(\"Săptămâna \",WEEKNUM(ZiCalendar),\"/Ziua \",ZiCalendar-DATE(YEAR(ZiCalendar),1,0)),CONCATENATE(\"Ziua \",ZiCalendar-DATE(YEAR(ZiCalendar),1,0)))","v":"Ziua 145"},{"$f":"IF(WEEKDAY(ZiCalendar)=ValoareÎnceputSăptămână,CONCATENATE(\"Săptămâna \",WEEKNUM(ZiCalendar),\"/Ziua \",ZiCalendar-DATE(YEAR(ZiCalendar),1,0)),CONCATENATE(\"Ziua \",ZiCalendar-DATE(YEAR(ZiCalendar),1,0)))","v":"Ziua 146"}]
[]
[null,null,{"$f":"ZileȘiSăptămâni+DATE(AnCalendar,5,1)-WEEKDAY(DATE(AnCalendar,5,1),(ÎnceputSăptămână=\"LUN\")+1)+29","v":"2018-05-27"},"2018-05-28","2018-05-29","2018-05-30","2018-05-31","2018-06-01","2018-06-02"]
[null,null,{"$f":"IF(WEEKDAY(ZiCalendar)=ValoareÎnceputSăptămână,CONCATENATE(\"Săptămâna \",WEEKNUM(ZiCalendar),\"/Ziua \",ZiCalendar-DATE(YEAR(ZiCalendar),1,0)),CONCATENATE(\"Ziua \",ZiCalendar-DATE(YEAR(ZiCalendar),1,0)))","v":"Săptămâna 22/Ziua 147"},{"$f":"IF(WEEKDAY(ZiCalendar)=ValoareÎnceputSăptămână,CONCATENATE(\"Săptămâna \",WEEKNUM(ZiCalendar),\"/Ziua \",ZiCalendar-DATE(YEAR(ZiCalendar),1,0)),CONCATENATE(\"Ziua \",ZiCalendar-DATE(YEAR(ZiCalendar),1,0)))","v":"Ziua 148"},{"$f":"IF(WEEKDAY(ZiCalendar)=ValoareÎnceputSăptămână,CONCATENATE(\"Săptămâna \",WEEKNUM(ZiCalendar),\"/Ziua \",ZiCalendar-DATE(YEAR(ZiCalendar),1,0)),CONCATENATE(\"Ziua \",ZiCalendar-DATE(YEAR(ZiCalendar),1,0)))","v":"Ziua 149"},{"$f":"IF(WEEKDAY(ZiCalendar)=ValoareÎnceputSăptămână,CONCATENATE(\"Săptămâna \",WEEKNUM(ZiCalendar),\"/Ziua \",ZiCalendar-DATE(YEAR(ZiCalendar),1,0)),CONCATENATE(\"Ziua \",ZiCalendar-DATE(YEAR(ZiCalendar),1,0)))","v":"Ziua 150"},{"$f":"IF(WEEKDAY(ZiCalendar)=ValoareÎnceputSăptămână,CONCATENATE(\"Săptămâna \",WEEKNUM(ZiCalendar),\"/Ziua \",ZiCalendar-DATE(YEAR(ZiCalendar),1,0)),CONCATENATE(\"Ziua \",ZiCalendar-DATE(YEAR(ZiCalendar),1,0)))","v":"Ziua 151"},{"$f":"IF(WEEKDAY(ZiCalendar)=ValoareÎnceputSăptămână,CONCATENATE(\"Săptămâna \",WEEKNUM(ZiCalendar),\"/Ziua \",ZiCalendar-DATE(YEAR(ZiCalendar),1,0)),CONCATENATE(\"Ziua \",ZiCalendar-DATE(YEAR(ZiCalendar),1,0)))","v":"Ziua 152"},{"$f":"IF(WEEKDAY(ZiCalendar)=ValoareÎnceputSăptămână,CONCATENATE(\"Săptămâna \",WEEKNUM(ZiCalendar),\"/Ziua \",ZiCalendar-DATE(YEAR(ZiCalendar),1,0)),CONCATENATE(\"Ziua \",ZiCalendar-DATE(YEAR(ZiCalendar),1,0)))","v":"Ziua 153"}]
[{"$nulls":4},"NOTE"]
[]
[null,null,{"$f":"ZileȘiSăptămâni+DATE(AnCalendar,5,1)-WEEKDAY(DATE(AnCalendar,5,1),(ÎnceputSăptămână=\"LUN\")+1)+36","v":"2018-06-03"},"2018-06-04"]
[null,null,{"$f":"IF(WEEKDAY(ZiCalendar)=ValoareÎnceputSăptămână,CONCATENATE(\"Săptămâna \",WEEKNUM(ZiCalendar),\"/Ziua \",ZiCalendar-DATE(YEAR(ZiCalendar),1,0)),CONCATENATE(\"Ziua \",ZiCalendar-DATE(YEAR(ZiCalendar),1,0)))","v":"Săptămâna 23/Ziua 154"},{"$f":"IF(WEEKDAY(ZiCalendar)=ValoareÎnceputSăptămână,CONCATENATE(\"Săptămâna \",WEEKNUM(ZiCalendar),\"/Ziua \",ZiCalendar-DATE(YEAR(ZiCalendar),1,0)),CONCATENATE(\"Ziua \",ZiCalendar-DATE(YEAR(ZiCalendar),1,0)))","v":"Ziua 155"}]

{"sheet":"IUN","index":5,"n_rows":20,"n_cols":9,"rows_kept":20,"merged":[[16,2,17,2],[17,4,19,8]]}
[null,"IUN",{"$f":"UPPER(TEXT(ÎnceputSăptămână,\"ddd\"))","v":"DUM"},{"$f":"UPPER(TEXT(D3,\"aaa\"))","v":"LUN"},"MAR","MIE","JOI","VIN","SÂM"]
[null,{"$f":"AnCalendar","v":2018}]
[null,null,{"$f":"ZileȘiSăptămâni+DATE(AnCalendar,6,1)-WEEKDAY(DATE(AnCalendar,6,1),(ÎnceputSăptămână=\"LUN\")+1)+1","v":"2018-05-27"},"2018-05-28","2018-05-29","2018-05-30","2018-05-31","2018-06-01","2018-06-02"]
[null,null,{"$f":"IF(DAY(ZiCalendar)=1,CONCATENATE(\"Săptămâna \",WEEKNUM(ZiCalendar),\"/Ziua \",ZiCalendar-DATE(YEAR(ZiCalendar),1,0)),CONCATENATE(\"Ziua \",ZiCalendar-DATE(YEAR(ZiCalendar),1,0)))","v":"Ziua 147"},{"$f":"IF(DAY(ZiCalendar)=1,CONCATENATE(\"Săptămâna \",WEEKNUM(ZiCalendar),\"/Ziua \",ZiCalendar-DATE(YEAR(ZiCalendar),1,0)),CONCATENATE(\"Ziua \",ZiCalendar-DATE(YEAR(ZiCalendar),1,0)))","v":"Ziua 148"},{"$f":"IF(DAY(ZiCalendar)=1,CONCATENATE(\"Săptămâna \",WEEKNUM(ZiCalendar),\"/Ziua \",ZiCalendar-DATE(YEAR(ZiCalendar),1,0)),CONCATENATE(\"Ziua \",ZiCalendar-DATE(YEAR(ZiCalendar),1,0)))","v":"Ziua 149"},{"$f":"IF(DAY(ZiCalendar)=1,CONCATENATE(\"Săptămâna \",WEEKNUM(ZiCalendar),\"/Ziua \",ZiCalendar-DATE(YEAR(ZiCalendar),1,0)),CONCATENATE(\"Ziua \",ZiCalendar-DATE(YEAR(ZiCalendar),1,0)))","v":"Ziua 150"},{"$f":"IF(DAY(ZiCalendar)=1,CONCATENATE(\"Săptămâna \",WEEKNUM(ZiCalendar),\"/Ziua \",ZiCalendar-DATE(YEAR(ZiCalendar),1,0)),CONCATENATE(\"Ziua \",ZiCalendar-DATE(YEAR(ZiCalendar),1,0)))","v":"Ziua 151"},{"$f":"IF(DAY(ZiCalendar)=1,CONCATENATE(\"Săptămâna \",WEEKNUM(ZiCalendar),\"/Ziua \",ZiCalendar-DATE(YEAR(ZiCalendar),1,0)),CONCATENATE(\"Ziua \",ZiCalendar-DATE(YEAR(ZiCalendar),1,0)))","v":"Săptămâna 22/Ziua 152"},{"$f":"IF(DAY(ZiCalendar)=1,CONCATENATE(\"Săptămâna \",WEEKNUM(ZiCalendar),\"/Ziua \",ZiCalendar-DATE(YEAR(ZiCalendar),1,0)),CONCATENATE(\"Ziua \",ZiCalendar-DATE(YEAR(ZiCalendar),1,0)))","v":"Ziua 153"}]
[]
[null,null,{"$f":"ZileȘiSăptămâni+DATE(AnCalendar,6,1)-WEEKDAY(DATE(AnCalendar,6,1),(ÎnceputSăptămână=\"LUN\")+1)+8","v":"2018-06-03"},"2018-06-04","2018-06-05","2018-06-06","2018-06-07","2018-06-08","2018-06-09"]
[null,null,{"$f":"IF(WEEKDAY(ZiCalendar)=ValoareÎnceputSăptămână,CONCATENATE(\"Săptămâna \",WEEKNUM(ZiCalendar),\"/Ziua \",ZiCalendar-DATE(YEAR(ZiCalendar),1,0)),CONCATENATE(\"Ziua \",ZiCalendar-DATE(YEAR(ZiCalendar),1,0)))","v":"Săptămâna 23/Ziua 154"},{"$f":"IF(WEEKDAY(ZiCalendar)=ValoareÎnceputSăptămână,CONCATENATE(\"Săptămâna \",WEEKNUM(ZiCalendar),\"/Ziua \",ZiCalendar-DATE(YEAR(ZiCalendar),1,0)),CONCATENATE(\"Ziua \",ZiCalendar-DATE(YEAR(ZiCalendar),1,0)))","v":"Ziua 155"},{"$f":"IF(WEEKDAY(ZiCalendar)=ValoareÎnceputSăptămână,CONCATENATE(\"Săptămâna \",WEEKNUM(ZiCalendar),\"/Ziua \",ZiCalendar-DATE(YEAR(ZiCalendar),1,0)),CONCATENATE(\"Ziua \",ZiCalendar-DATE(YEAR(ZiCalendar),1,0)))","v":"Ziua 156"},{"$f":"IF(WEEKDAY(ZiCalendar)=ValoareÎnceputSăptămână,CONCATENATE(\"Săptămâna \",WEEKNUM(ZiCalendar),\"/Ziua \",ZiCalendar-DATE(YEAR(ZiCalendar),1,0)),CONCATENATE(\"Ziua \",ZiCalendar-DATE(YEAR(ZiCalendar),1,0)))","v":"Ziua 157"},{"$f":"IF(WEEKDAY(ZiCalendar)=ValoareÎnceputSăptămână,CONCATENATE(\"Săptămâna \",WEEKNUM(ZiCalendar),\"/Ziua \",ZiCalendar-DATE(YEAR(ZiCalendar),1,0)),CONCATENATE(\"Ziua \",ZiCalendar-DATE(YEAR(ZiCalendar),1,0)))","v":"Ziua 158"},{"$f":"IF(WEEKDAY(ZiCalendar)=ValoareÎnceputSăptămână,CONCATENATE(\"Săptămâna \",WEEKNUM(ZiCalendar),\"/Ziua \",ZiCalendar-DATE(YEAR(ZiCalendar),1,0)),CONCATENATE(\"Ziua \",ZiCalendar-DATE(YEAR(ZiCalendar),1,0)))","v":"Ziua 159"},{"$f":"IF(WEEKDAY(ZiCalendar)=ValoareÎnceputSăptămână,CONCATENATE(\"Săptămâna \",WEEKNUM(ZiCalendar),\"/Ziua \",ZiCalendar-DATE(YEAR(ZiCalendar),1,0)),CONCATENATE(\"Ziua \",ZiCalendar-DATE(YEAR(ZiCalendar),1,0)))","v":"Ziua 160"}]
[]
[null,null,{"$f":"ZileȘiSăptămâni+DATE(AnCalendar,6,1)-WEEKDAY(DATE(AnCalendar,6,1),(ÎnceputSăptămână=\"LUN\")+1)+15","v":"2018-06-10"},"2018-06-11","2018-06-12","2018-06-13","2018-06-14","2018-06-15","2018-06-16"]
[null,null,{"$f":"IF(WEEKDAY(ZiCalendar)=ValoareÎnceputSăptămână,CONCATENATE(\"Săptămâna \",WEEKNUM(ZiCalendar),\"/Ziua \",ZiCalendar-DATE(YEAR(ZiCalendar),1,0)),CONCATENATE(\"Ziua \",ZiCalendar-DATE(YEAR(ZiCalendar),1,0)))","v":"Săptămâna 24/Ziua 161"},{"$f":"IF(WEEKDAY(ZiCalendar)=ValoareÎnceputSăptămână,CONCATENATE(\"Săptămâna \",WEEKNUM(ZiCalendar),\"/Ziua \",ZiCalendar-DATE(YEAR(ZiCalendar),1,0)),CONCATENATE(\"Ziua \",ZiCalendar-DATE(YEAR(ZiCalendar),1,0)))","v":"Ziua 162"},{"$f":"IF(WEEKDAY(ZiCalendar)=ValoareÎnceputSăptămână,CONCATENATE(\"Săptămâna \",WEEKNUM(ZiCalendar),\"/Ziua \",ZiCalendar-DATE(YEAR(ZiCalendar),1,0)),CONCATENATE(\"Ziua \",ZiCalendar-DATE(YEAR(ZiCalendar),1,0)))","v":"Ziua 163"},{"$f":"IF(WEEKDAY(ZiCalendar)=ValoareÎnceputSăptămână,CONCATENATE(\"Săptămâna \",WEEKNUM(ZiCalendar),\"/Ziua \",ZiCalendar-DATE(YEAR(ZiCalendar),1,0)),CONCATENATE(\"Ziua \",ZiCalendar-DATE(YEAR(ZiCalendar),1,0)))","v":"Ziua 164"},{"$f":"IF(WEEKDAY(ZiCalendar)=ValoareÎnceputSăptămână,CONCATENATE(\"Săptămâna \",WEEKNUM(ZiCalendar),\"/Ziua \",ZiCalendar-DATE(YEAR(ZiCalendar),1,0)),CONCATENATE(\"Ziua \",ZiCalendar-DATE(YEAR(ZiCalendar),1,0)))","v":"Ziua 165"},{"$f":"IF(WEEKDAY(ZiCalendar)=ValoareÎnceputSăptămână,CONCATENATE(\"Săptămâna \",WEEKNUM(ZiCalendar),\"/Ziua \",ZiCalendar-DATE(YEAR(ZiCalendar),1,0)),CONCATENATE(\"Ziua \",ZiCalendar-DATE(YEAR(ZiCalendar),1,0)))","v":"Ziua 166"},{"$f":"IF(WEEKDAY(ZiCalendar)=ValoareÎnceputSăptămână,CONCATENATE(\"Săptămâna \",WEEKNUM(ZiCalendar),\"/Ziua \",ZiCalendar-DATE(YEAR(ZiCalendar),1,0)),CONCATENATE(\"Ziua \",ZiCalendar-DATE(YEAR(ZiCalendar),1,0)))","v":"Ziua 167"}]
[]
[null,null,{"$f":"ZileȘiSăptămâni+DATE(AnCalendar,6,1)-WEEKDAY(DATE(AnCalendar,6,1),(ÎnceputSăptămână=\"LUN\")+1)+22","v":"2018-06-17"},"2018-06-18","2018-06-19","2018-06-20","2018-06-21","2018-06-22","2018-06-23"]
[null,null,{"$f":"IF(WEEKDAY(ZiCalendar)=ValoareÎnceputSăptămână,CONCATENATE(\"Săptămâna \",WEEKNUM(ZiCalendar),\"/Ziua \",ZiCalendar-DATE(YEAR(ZiCalendar),1,0)),CONCATENATE(\"Ziua \",ZiCalendar-DATE(YEAR(ZiCalendar),1,0)))","v":"Săptămâna 25/Ziua 168"},{"$f":"IF(WEEKDAY(ZiCalendar)=ValoareÎnceputSăptămână,CONCATENATE(\"Săptămâna \",WEEKNUM(ZiCalendar),\"/Ziua \",ZiCalendar-DATE(YEAR(ZiCalendar),1,0)),CONCATENATE(\"Ziua \",ZiCalendar-DATE(YEAR(ZiCalendar),1,0)))","v":"Ziua 169"},{"$f":"IF(WEEKDAY(ZiCalendar)=ValoareÎnceputSăptămână,CONCATENATE(\"Săptămâna \",WEEKNUM(ZiCalendar),\"/Ziua \",ZiCalendar-DATE(YEAR(ZiCalendar),1,0)),CONCATENATE(\"Ziua \",ZiCalendar-DATE(YEAR(ZiCalendar),1,0)))","v":"Ziua 170"},{"$f":"IF(WEEKDAY(ZiCalendar)=ValoareÎnceputSăptămână,CONCATENATE(\"Săptămâna \",WEEKNUM(ZiCalendar),\"/Ziua \",ZiCalendar-DATE(YEAR(ZiCalendar),1,0)),CONCATENATE(\"Ziua \",ZiCalendar-DATE(YEAR(ZiCalendar),1,0)))","v":"Ziua 171"},{"$f":"IF(WEEKDAY(ZiCalendar)=ValoareÎnceputSăptămână,CONCATENATE(\"Săptămâna \",WEEKNUM(ZiCalendar),\"/Ziua \",ZiCalendar-DATE(YEAR(ZiCalendar),1,0)),CONCATENATE(\"Ziua \",ZiCalendar-DATE(YEAR(ZiCalendar),1,0)))","v":"Ziua 172"},{"$f":"IF(WEEKDAY(ZiCalendar)=ValoareÎnceputSăptămână,CONCATENATE(\"Săptămâna \",WEEKNUM(ZiCalendar),\"/Ziua \",ZiCalendar-DATE(YEAR(ZiCalendar),1,0)),CONCATENATE(\"Ziua \",ZiCalendar-DATE(YEAR(ZiCalendar),1,0)))","v":"Ziua 173"},{"$f":"IF(WEEKDAY(ZiCalendar)=ValoareÎnceputSăptămână,CONCATENATE(\"Săptămâna \",WEEKNUM(ZiCalendar),\"/Ziua \",ZiCalendar-DATE(YEAR(ZiCalendar),1,0)),CONCATENATE(\"Ziua \",ZiCalendar-DATE(YEAR(ZiCalendar),1,0)))","v":"Ziua 174"}]
[]
[null,null,{"$f":"ZileȘiSăptămâni+DATE(AnCalendar,6,1)-WEEKDAY(DATE(AnCalendar,6,1),(ÎnceputSăptămână=\"LUN\")+1)+29","v":"2018-06-24"},"2018-06-25","2018-06-26","2018-06-27","2018-06-28","2018-06-29","2018-06-30"]
[null,null,{"$f":"IF(WEEKDAY(ZiCalendar)=ValoareÎnceputSăptămână,CONCATENATE(\"Săptămâna \",WEEKNUM(ZiCalendar),\"/Ziua \",ZiCalendar-DATE(YEAR(ZiCalendar),1,0)),CONCATENATE(\"Ziua \",ZiCalendar-DATE(YEAR(ZiCalendar),1,0)))","v":"Săptămâna 26/Ziua 175"},{"$f":"IF(WEEKDAY(ZiCalendar)=ValoareÎnceputSăptămână,CONCATENATE(\"Săptămâna \",WEEKNUM(ZiCalendar),\"/Ziua \",ZiCalendar-DATE(YEAR(ZiCalendar),1,0)),CONCATENATE(\"Ziua \",ZiCalendar-DATE(YEAR(ZiCalendar),1,0)))","v":"Ziua 176"},{"$f":"IF(WEEKDAY(ZiCalendar)=ValoareÎnceputSăptămână,CONCATENATE(\"Săptămâna \",WEEKNUM(ZiCalendar),\"/Ziua \",ZiCalendar-DATE(YEAR(ZiCalendar),1,0)),CONCATENATE(\"Ziua \",ZiCalendar-DATE(YEAR(ZiCalendar),1,0)))","v":"Ziua 177"},{"$f":"IF(WEEKDAY(ZiCalendar)=ValoareÎnceputSăptămână,CONCATENATE(\"Săptămâna \",WEEKNUM(ZiCalendar),\"/Ziua \",ZiCalendar-DATE(YEAR(ZiCalendar),1,0)),CONCATENATE(\"Ziua \",ZiCalendar-DATE(YEAR(ZiCalendar),1,0)))","v":"Ziua 178"},{"$f":"IF(WEEKDAY(ZiCalendar)=ValoareÎnceputSăptămână,CONCATENATE(\"Săptămâna \",WEEKNUM(ZiCalendar),\"/Ziua \",ZiCalendar-DATE(YEAR(ZiCalendar),1,0)),CONCATENATE(\"Ziua \",ZiCalendar-DATE(YEAR(ZiCalendar),1,0)))","v":"Ziua 179"},{"$f":"IF(WEEKDAY(ZiCalendar)=ValoareÎnceputSăptămână,CONCATENATE(\"Săptămâna \",WEEKNUM(ZiCalendar),\"/Ziua \",ZiCalendar-DATE(YEAR(ZiCalendar),1,0)),CONCATENATE(\"Ziua \",ZiCalendar-DATE(YEAR(ZiCalendar),1,0)))","v":"Ziua 180"},{"$f":"IF(WEEKDAY(ZiCalendar)=ValoareÎnceputSăptămână,CONCATENATE(\"Săptămâna \",WEEKNUM(ZiCalendar),\"/Ziua \",ZiCalendar-DATE(YEAR(ZiCalendar),1,0)),CONCATENATE(\"Ziua \",ZiCalendar-DATE(YEAR(ZiCalendar),1,0)))","v":"Ziua 181"}]
[{"$nulls":4},"NOTE"]
[]
[null,null,{"$f":"ZileȘiSăptămâni+DATE(AnCalendar,6,1)-WEEKDAY(DATE(AnCalendar,6,1),(ÎnceputSăptămână=\"LUN\")+1)+36","v":"2018-07-01"},"2018-07-02"]
[null,null,{"$f":"IF(WEEKDAY(ZiCalendar)=ValoareÎnceputSăptămână,CONCATENATE(\"Săptămâna \",WEEKNUM(ZiCalendar),\"/Ziua \",ZiCalendar-DATE(YEAR(ZiCalendar),1,0)),CONCATENATE(\"Ziua \",ZiCalendar-DATE(YEAR(ZiCalendar),1,0)))","v":"Săptămâna 27/Ziua 182"},{"$f":"IF(WEEKDAY(ZiCalendar)=ValoareÎnceputSăptămână,CONCATENATE(\"Săptămâna \",WEEKNUM(ZiCalendar),\"/Ziua \",ZiCalendar-DATE(YEAR(ZiCalendar),1,0)),CONCATENATE(\"Ziua \",ZiCalendar-DATE(YEAR(ZiCalendar),1,0)))","v":"Ziua 183"}]

{"sheet":"IUL","index":6,"n_rows":20,"n_cols":9,"rows_kept":20,"merged":[[16,2,17,2],[17,4,19,8]]}
[null,"IUL",{"$f":"UPPER(TEXT(ÎnceputSăptămână,\"ddd\"))","v":"DUM"},{"$f":"UPPER(TEXT(D3,\"aaa\"))","v":"LUN"},"MAR","MIE","JOI","VIN","SÂM"]
[null,{"$f":"AnCalendar","v":2018}]
[null,null,{"$f":"ZileȘiSăptămâni+DATE(AnCalendar,7,1)-WEEKDAY(DATE(AnCalendar,7,1),(ÎnceputSăptămână=\"LUN\")+1)+1","v":"2018-07-01"},"2018-07-02","2018-07-03","2018-07-04","2018-07-05","2018-07-06","2018-07-07"]
[null,null,{"$f":"IF(DAY(ZiCalendar)=1,CONCATENATE(\"Săptămâna \",WEEKNUM(ZiCalendar),\"/Ziua \",ZiCalendar-DATE(YEAR(ZiCalendar),1,0)),CONCATENATE(\"Ziua \",ZiCalendar-DATE(YEAR(ZiCalendar),1,0)))","v":"Săptămâna 27/Ziua 182"},{"$f":"IF(DAY(ZiCalendar)=1,CONCATENATE(\"Săptămâna \",WEEKNUM(ZiCalendar),\"/Ziua \",ZiCalendar-DATE(YEAR(ZiCalendar),1,0)),CONCATENATE(\"Ziua \",ZiCalendar-DATE(YEAR(ZiCalendar),1,0)))","v":"Ziua 183"},{"$f":"IF(DAY(ZiCalendar)=1,CONCATENATE(\"Săptămâna \",WEEKNUM(ZiCalendar),\"/Ziua \",ZiCalendar-DATE(YEAR(ZiCalendar),1,0)),CONCATENATE(\"Ziua \",ZiCalendar-DATE(YEAR(ZiCalendar),1,0)))","v":"Ziua 184"},{"$f":"IF(DAY(ZiCalendar)=1,CONCATENATE(\"Săptămâna \",WEEKNUM(ZiCalendar),\"/Ziua \",ZiCalendar-DATE(YEAR(ZiCalendar),1,0)),CONCATENATE(\"Ziua \",ZiCalendar-DATE(YEAR(ZiCalendar),1,0)))","v":"Ziua 185"},{"$f":"IF(DAY(ZiCalendar)=1,CONCATENATE(\"Săptămâna \",WEEKNUM(ZiCalendar),\"/Ziua \",ZiCalendar-DATE(YEAR(ZiCalendar),1,0)),CONCATENATE(\"Ziua \",ZiCalendar-DATE(YEAR(ZiCalendar),1,0)))","v":"Ziua 186"},{"$f":"IF(DAY(ZiCalendar)=1,CONCATENATE(\"Săptămâna \",WEEKNUM(ZiCalendar),\"/Ziua \",ZiCalendar-DATE(YEAR(ZiCalendar),1,0)),CONCATENATE(\"Ziua \",ZiCalendar-DATE(YEAR(ZiCalendar),1,0)))","v":"Ziua 187"},{"$f":"IF(DAY(ZiCalendar)=1,CONCATENATE(\"Săptămâna \",WEEKNUM(ZiCalendar),\"/Ziua \",ZiCalendar-DATE(YEAR(ZiCalendar),1,0)),CONCATENATE(\"Ziua \",ZiCalendar-DATE(YEAR(ZiCalendar),1,0)))","v":"Ziua 188"}]
[]
[null,null,{"$f":"ZileȘiSăptămâni+DATE(AnCalendar,7,1)-WEEKDAY(DATE(AnCalendar,7,1),(ÎnceputSăptămână=\"LUN\")+1)+8","v":"2018-07-08"},"2018-07-09","2018-07-10","2018-07-11","2018-07-12","2018-07-13","2018-07-14"]
[null,null,{"$f":"IF(WEEKDAY(ZiCalendar)=ValoareÎnceputSăptămână,CONCATENATE(\"Săptămâna \",WEEKNUM(ZiCalendar),\"/Ziua \",ZiCalendar-DATE(YEAR(ZiCalendar),1,0)),CONCATENATE(\"Ziua \",ZiCalendar-DATE(YEAR(ZiCalendar),1,0)))","v":"Săptămâna 28/Ziua 189"},{"$f":"IF(WEEKDAY(ZiCalendar)=ValoareÎnceputSăptămână,CONCATENATE(\"Săptămâna \",WEEKNUM(ZiCalendar),\"/Ziua \",ZiCalendar-DATE(YEAR(ZiCalendar),1,0)),CONCATENATE(\"Ziua \",ZiCalendar-DATE(YEAR(ZiCalendar),1,0)))","v":"Ziua 190"},{"$f":"IF(WEEKDAY(ZiCalendar)=ValoareÎnceputSăptămână,CONCATENATE(\"Săptămâna \",WEEKNUM(ZiCalendar),\"/Ziua \",ZiCalendar-DATE(YEAR(ZiCalendar),1,0)),CONCATENATE(\"Ziua \",ZiCalendar-DATE(YEAR(ZiCalendar),1,0)))","v":"Ziua 191"},{"$f":"IF(WEEKDAY(ZiCalendar)=ValoareÎnceputSăptămână,CONCATENATE(\"Săptămâna \",WEEKNUM(ZiCalendar),\"/Ziua \",ZiCalendar-DATE(YEAR(ZiCalendar),1,0)),CONCATENATE(\"Ziua \",ZiCalendar-DATE(YEAR(ZiCalendar),1,0)))","v":"Ziua 192"},{"$f":"IF(WEEKDAY(ZiCalendar)=ValoareÎnceputSăptămână,CONCATENATE(\"Săptămâna \",WEEKNUM(ZiCalendar),\"/Ziua \",ZiCalendar-DATE(YEAR(ZiCalendar),1,0)),CONCATENATE(\"Ziua \",ZiCalendar-DATE(YEAR(ZiCalendar),1,0)))","v":"Ziua 193"},{"$f":"IF(WEEKDAY(ZiCalendar)=ValoareÎnceputSăptămână,CONCATENATE(\"Săptămâna \",WEEKNUM(ZiCalendar),\"/Ziua \",ZiCalendar-DATE(YEAR(ZiCalendar),1,0)),CONCATENATE(\"Ziua \",ZiCalendar-DATE(YEAR(ZiCalendar),1,0)))","v":"Ziua 194"},{"$f":"IF(WEEKDAY(ZiCalendar)=ValoareÎnceputSăptămână,CONCATENATE(\"Săptămâna \",WEEKNUM(ZiCalendar),\"/Ziua \",ZiCalendar-DATE(YEAR(ZiCalendar),1,0)),CONCATENATE(\"Ziua \",ZiCalendar-DATE(YEAR(ZiCalendar),1,0)))","v":"Ziua 195"}]
[]
[null,null,{"$f":"ZileȘiSăptămâni+DATE(AnCalendar,7,1)-WEEKDAY(DATE(AnCalendar,7,1),(ÎnceputSăptămână=\"LUN\")+1)+15","v":"2018-07-15"},"2018-07-16","2018-07-17","2018-07-18","2018-07-19","2018-07-20","2018-07-21"]
[null,null,{"$f":"IF(WEEKDAY(ZiCalendar)=ValoareÎnceputSăptămână,CONCATENATE(\"Săptămâna \",WEEKNUM(ZiCalendar),\"/Ziua \",ZiCalendar-DATE(YEAR(ZiCalendar),1,0)),CONCATENATE(\"Ziua \",ZiCalendar-DATE(YEAR(ZiCalendar),1,0)))","v":"Săptămâna 29/Ziua 196"},{"$f":"IF(WEEKDAY(ZiCalendar)=ValoareÎnceputSăptămână,CONCATENATE(\"Săptămâna \",WEEKNUM(ZiCalendar),\"/Ziua \",ZiCalendar-DATE(YEAR(ZiCalendar),1,0)),CONCATENATE(\"Ziua \",ZiCalendar-DATE(YEAR(ZiCalendar),1,0)))","v":"Ziua 197"},{"$f":"IF(WEEKDAY(ZiCalendar)=ValoareÎnceputSăptămână,CONCATENATE(\"Săptămâna \",WEEKNUM(ZiCalendar),\"/Ziua \",ZiCalendar-DATE(YEAR(ZiCalendar),1,0)),CONCATENATE(\"Ziua \",ZiCalendar-DATE(YEAR(ZiCalendar),1,0)))","v":"Ziua 198"},{"$f":"IF(WEEKDAY(ZiCalendar)=ValoareÎnceputSăptămână,CONCATENATE(\"Săptămâna \",WEEKNUM(ZiCalendar),\"/Ziua \",ZiCalendar-DATE(YEAR(ZiCalendar),1,0)),CONCATENATE(\"Ziua \",ZiCalendar-DATE(YEAR(ZiCalendar),1,0)))","v":"Ziua 199"},{"$f":"IF(WEEKDAY(ZiCalendar)=ValoareÎnceputSăptămână,CONCATENATE(\"Săptămâna \",WEEKNUM(ZiCalendar),\"/Ziua \",ZiCalendar-DATE(YEAR(ZiCalendar),1,0)),CONCATENATE(\"Ziua \",ZiCalendar-DATE(YEAR(ZiCalendar),1,0)))","v":"Ziua 200"},{"$f":"IF(WEEKDAY(ZiCalendar)=ValoareÎnceputSăptămână,CONCATENATE(\"Săptămâna \",WEEKNUM(ZiCalendar),\"/Ziua \",ZiCalendar-DATE(YEAR(ZiCalendar),1,0)),CONCATENATE(\"Ziua \",ZiCalendar-DATE(YEAR(ZiCalendar),1,0)))","v":"Ziua 201"},{"$f":"IF(WEEKDAY(ZiCalendar)=ValoareÎnceputSăptămână,CONCATENATE(\"Săptămâna \",WEEKNUM(ZiCalendar),\"/Ziua \",ZiCalendar-DATE(YEAR(ZiCalendar),1,0)),CONCATENATE(\"Ziua \",ZiCalendar-DATE(YEAR(ZiCalendar),1,0)))","v":"Ziua 202"}]
[]
[null,null,{"$f":"ZileȘiSăptămâni+DATE(AnCalendar,7,1)-WEEKDAY(DATE(AnCalendar,7,1),(ÎnceputSăptămână=\"LUN\")+1)+22","v":"2018-07-22"},"2018-07-23","2018-07-24","2018-07-25","2018-07-26","2018-07-27","2018-07-28"]
[null,null,{"$f":"IF(WEEKDAY(ZiCalendar)=ValoareÎnceputSăptămână,CONCATENATE(\"Săptămâna \",WEEKNUM(ZiCalendar),\"/Ziua \",ZiCalendar-DATE(YEAR(ZiCalendar),1,0)),CONCATENATE(\"Ziua \",ZiCalendar-DATE(YEAR(ZiCalendar),1,0)))","v":"Săptămâna 30/Ziua 203"},{"$f":"IF(WEEKDAY(ZiCalendar)=ValoareÎnceputSăptămână,CONCATENATE(\"Săptămâna \",WEEKNUM(ZiCalendar),\"/Ziua \",ZiCalendar-DATE(YEAR(ZiCalendar),1,0)),CONCATENATE(\"Ziua \",ZiCalendar-DATE(YEAR(ZiCalendar),1,0)))","v":"Ziua 204"},{"$f":"IF(WEEKDAY(ZiCalendar)=ValoareÎnceputSăptămână,CONCATENATE(\"Săptămâna \",WEEKNUM(ZiCalendar),\"/Ziua \",ZiCalendar-DATE(YEAR(ZiCalendar),1,0)),CONCATENATE(\"Ziua \",ZiCalendar-DATE(YEAR(ZiCalendar),1,0)))","v":"Ziua 205"},{"$f":"IF(WEEKDAY(ZiCalendar)=ValoareÎnceputSăptămână,CONCATENATE(\"Săptămâna \",WEEKNUM(ZiCalendar),\"/Ziua \",ZiCalendar-DATE(YEAR(ZiCalendar),1,0)),CONCATENATE(\"Ziua \",ZiCalendar-DATE(YEAR(ZiCalendar),1,0)))","v":"Ziua 206"},{"$f":"IF(WEEKDAY(ZiCalendar)=ValoareÎnceputSăptămână,CONCATENATE(\"Săptămâna \",WEEKNUM(ZiCalendar),\"/Ziua \",ZiCalendar-DATE(YEAR(ZiCalendar),1,0)),CONCATENATE(\"Ziua \",ZiCalendar-DATE(YEAR(ZiCalendar),1,0)))","v":"Ziua 207"},{"$f":"IF(WEEKDAY(ZiCalendar)=ValoareÎnceputSăptămână,CONCATENATE(\"Săptămâna \",WEEKNUM(ZiCalendar),\"/Ziua \",ZiCalendar-DATE(YEAR(ZiCalendar),1,0)),CONCATENATE(\"Ziua \",ZiCalendar-DATE(YEAR(ZiCalendar),1,0)))","v":"Ziua 208"},{"$f":"IF(WEEKDAY(ZiCalendar)=ValoareÎnceputSăptămână,CONCATENATE(\"Săptămâna \",WEEKNUM(ZiCalendar),\"/Ziua \",ZiCalendar-DATE(YEAR(ZiCalendar),1,0)),CONCATENATE(\"Ziua \",ZiCalendar-DATE(YEAR(ZiCalendar),1,0)))","v":"Ziua 209"}]
[]
[null,null,{"$f":"ZileȘiSăptămâni+DATE(AnCalendar,7,1)-WEEKDAY(DATE(AnCalendar,7,1),(ÎnceputSăptămână=\"LUN\")+1)+29","v":"2018-07-29"},"2018-07-30","2018-07-31","2018-08-01","2018-08-02","2018-08-03","2018-08-04"]
[null,null,{"$f":"IF(WEEKDAY(ZiCalendar)=ValoareÎnceputSăptămână,CONCATENATE(\"Săptămâna \",WEEKNUM(ZiCalendar),\"/Ziua \",ZiCalendar-DATE(YEAR(ZiCalendar),1,0)),CONCATENATE(\"Ziua \",ZiCalendar-DATE(YEAR(ZiCalendar),1,0)))","v":"Săptămâna 31/Ziua 210"},{"$f":"IF(WEEKDAY(ZiCalendar)=ValoareÎnceputSăptămână,CONCATENATE(\"Săptămâna \",WEEKNUM(ZiCalendar),\"/Ziua \",ZiCalendar-DATE(YEAR(ZiCalendar),1,0)),CONCATENATE(\"Ziua \",ZiCalendar-DATE(YEAR(ZiCalendar),1,0)))","v":"Ziua 211"},{"$f":"IF(WEEKDAY(ZiCalendar)=ValoareÎnceputSăptămână,CONCATENATE(\"Săptămâna \",WEEKNUM(ZiCalendar),\"/Ziua \",ZiCalendar-DATE(YEAR(ZiCalendar),1,0)),CONCATENATE(\"Ziua \",ZiCalendar-DATE(YEAR(ZiCalendar),1,0)))","v":"Ziua 212"},{"$f":"IF(WEEKDAY(ZiCalendar)=ValoareÎnceputSăptămână,CONCATENATE(\"Săptămâna \",WEEKNUM(ZiCalendar),\"/Ziua \",ZiCalendar-DATE(YEAR(ZiCalendar),1,0)),CONCATENATE(\"Ziua \",ZiCalendar-DATE(YEAR(ZiCalendar),1,0)))","v":"Ziua 213"},{"$f":"IF(WEEKDAY(ZiCalendar)=ValoareÎnceputSăptămână,CONCATENATE(\"Săptămâna \",WEEKNUM(ZiCalendar),\"/Ziua \",ZiCalendar-DATE(YEAR(ZiCalendar),1,0)),CONCATENATE(\"Ziua \",ZiCalendar-DATE(YEAR(ZiCalendar),1,0)))","v":"Ziua 214"},{"$f":"IF(WEEKDAY(ZiCalendar)=ValoareÎnceputSăptămână,CONCATENATE(\"Săptămâna \",WEEKNUM(ZiCalendar),\"/Ziua \",ZiCalendar-DATE(YEAR(ZiCalendar),1,0)),CONCATENATE(\"Ziua \",ZiCalendar-DATE(YEAR(ZiCalendar),1,0)))","v":"Ziua 215"},{"$f":"IF(WEEKDAY(ZiCalendar)=ValoareÎnceputSăptămână,CONCATENATE(\"Săptămâna \",WEEKNUM(ZiCalendar),\"/Ziua \",ZiCalendar-DATE(YEAR(ZiCalendar),1,0)),CONCATENATE(\"Ziua \",ZiCalendar-DATE(YEAR(ZiCalendar),1,0)))","v":"Ziua 216"}]
[{"$nulls":4},"NOTE"]
[]
[null,null,{"$f":"ZileȘiSăptămâni+DATE(AnCalendar,7,1)-WEEKDAY(DATE(AnCalendar,7,1),(ÎnceputSăptămână=\"LUN\")+1)+36","v":"2018-08-05"},"2018-08-06"]
[null,null,{"$f":"IF(WEEKDAY(ZiCalendar)=ValoareÎnceputSăptămână,CONCATENATE(\"Săptămâna \",WEEKNUM(ZiCalendar),\"/Ziua \",ZiCalendar-DATE(YEAR(ZiCalendar),1,0)),CONCATENATE(\"Ziua \",ZiCalendar-DATE(YEAR(ZiCalendar),1,0)))","v":"Săptămâna 32/Ziua 217"},{"$f":"IF(WEEKDAY(ZiCalendar)=ValoareÎnceputSăptămână,CONCATENATE(\"Săptămâna \",WEEKNUM(ZiCalendar),\"/Ziua \",ZiCalendar-DATE(YEAR(ZiCalendar),1,0)),CONCATENATE(\"Ziua \",ZiCalendar-DATE(YEAR(ZiCalendar),1,0)))","v":"Ziua 218"}]

{"sheet":"AUG","index":7,"n_rows":20,"n_cols":9,"rows_kept":20,"merged":[[16,2,17,2],[17,4,19,8]]}
[null,"AUG",{"$f":"UPPER(TEXT(ÎnceputSăptămână,\"ddd\"))","v":"DUM"},{"$f":"UPPER(TEXT(D3,\"aaa\"))","v":"LUN"},"MAR","MIE","JOI","VIN","SÂM"]
[null,{"$f":"AnCalendar","v":2018}]
[null,null,{"$f":"ZileȘiSăptămâni+DATE(AnCalendar,8,1)-WEEKDAY(DATE(AnCalendar,8,1),(ÎnceputSăptămână=\"LUN\")+1)+1","v":"2018-07-29"},"2018-07-30","2018-07-31","2018-08-01","2018-08-02","2018-08-03","2018-08-04"]
[null,null,{"$f":"IF(DAY(ZiCalendar)=1,CONCATENATE(\"Săptămâna \",WEEKNUM(ZiCalendar),\"/Ziua \",ZiCalendar-DATE(YEAR(ZiCalendar),1,0)),CONCATENATE(\"Ziua \",ZiCalendar-DATE(YEAR(ZiCalendar),1,0)))","v":"Ziua 210"},{"$f":"IF(DAY(ZiCalendar)=1,CONCATENATE(\"Săptămâna \",WEEKNUM(ZiCalendar),\"/Ziua \",ZiCalendar-DATE(YEAR(ZiCalendar),1,0)),CONCATENATE(\"Ziua \",ZiCalendar-DATE(YEAR(ZiCalendar),1,0)))","v":"Ziua 211"},{"$f":"IF(DAY(ZiCalendar)=1,CONCATENATE(\"Săptămâna \",WEEKNUM(ZiCalendar),\"/Ziua \",ZiCalendar-DATE(YEAR(ZiCalendar),1,0)),CONCATENATE(\"Ziua \",ZiCalendar-DATE(YEAR(ZiCalendar),1,0)))","v":"Ziua 212"},{"$f":"IF(DAY(ZiCalendar)=1,CONCATENATE(\"Săptămâna \",WEEKNUM(ZiCalendar),\"/Ziua \",ZiCalendar-DATE(YEAR(ZiCalendar),1,0)),CONCATENATE(\"Ziua \",ZiCalendar-DATE(YEAR(ZiCalendar),1,0)))","v":"Săptămâna 31/Ziua 213"},{"$f":"IF(DAY(ZiCalendar)=1,CONCATENATE(\"Săptămâna \",WEEKNUM(ZiCalendar),\"/Ziua \",ZiCalendar-DATE(YEAR(ZiCalendar),1,0)),CONCATENATE(\"Ziua \",ZiCalendar-DATE(YEAR(ZiCalendar),1,0)))","v":"Ziua 214"},{"$f":"IF(DAY(ZiCalendar)=1,CONCATENATE(\"Săptămâna \",WEEKNUM(ZiCalendar),\"/Ziua \",ZiCalendar-DATE(YEAR(ZiCalendar),1,0)),CONCATENATE(\"Ziua \",ZiCalendar-DATE(YEAR(ZiCalendar),1,0)))","v":"Ziua 215"},{"$f":"IF(DAY(ZiCalendar)=1,CONCATENATE(\"Săptămâna \",WEEKNUM(ZiCalendar),\"/Ziua \",ZiCalendar-DATE(YEAR(ZiCalendar),1,0)),CONCATENATE(\"Ziua \",ZiCalendar-DATE(YEAR(ZiCalendar),1,0)))","v":"Ziua 216"}]
[]
[null,null,{"$f":"ZileȘiSăptămâni+DATE(AnCalendar,8,1)-WEEKDAY(DATE(AnCalendar,8,1),(ÎnceputSăptămână=\"LUN\")+1)+8","v":"2018-08-05"},"2018-08-06","2018-08-07","2018-08-08","2018-08-09","2018-08-10","2018-08-11"]
[null,null,{"$f":"IF(WEEKDAY(ZiCalendar)=ValoareÎnceputSăptămână,CONCATENATE(\"Săptămâna \",WEEKNUM(ZiCalendar),\"/Ziua \",ZiCalendar-DATE(YEAR(ZiCalendar),1,0)),CONCATENATE(\"Ziua \",ZiCalendar-DATE(YEAR(ZiCalendar),1,0)))","v":"Săptămâna 32/Ziua 217"},{"$f":"IF(WEEKDAY(ZiCalendar)=ValoareÎnceputSăptămână,CONCATENATE(\"Săptămâna \",WEEKNUM(ZiCalendar),\"/Ziua \",ZiCalendar-DATE(YEAR(ZiCalendar),1,0)),CONCATENATE(\"Ziua \",ZiCalendar-DATE(YEAR(ZiCalendar),1,0)))","v":"Ziua 218"},{"$f":"IF(WEEKDAY(ZiCalendar)=ValoareÎnceputSăptămână,CONCATENATE(\"Săptămâna \",WEEKNUM(ZiCalendar),\"/Ziua \",ZiCalendar-DATE(YEAR(ZiCalendar),1,0)),CONCATENATE(\"Ziua \",ZiCalendar-DATE(YEAR(ZiCalendar),1,0)))","v":"Ziua 219"},{"$f":"IF(WEEKDAY(ZiCalendar)=ValoareÎnceputSăptămână,CONCATENATE(\"Săptămâna \",WEEKNUM(ZiCalendar),\"/Ziua \",ZiCalendar-DATE(YEAR(ZiCalendar),1,0)),CONCATENATE(\"Ziua \",ZiCalendar-DATE(YEAR(ZiCalendar),1,0)))","v":"Ziua 220"},{"$f":"IF(WEEKDAY(ZiCalendar)=ValoareÎnceputSăptămână,CONCATENATE(\"Săptămâna \",WEEKNUM(ZiCalendar),\"/Ziua \",ZiCalendar-DATE(YEAR(ZiCalendar),1,0)),CONCATENATE(\"Ziua \",ZiCalendar-DATE(YEAR(ZiCalendar),1,0)))","v":"Ziua 221"},{"$f":"IF(WEEKDAY(ZiCalendar)=ValoareÎnceputSăptămână,CONCATENATE(\"Săptămâna \",WEEKNUM(ZiCalendar),\"/Ziua \",ZiCalendar-DATE(YEAR(ZiCalendar),1,0)),CONCATENATE(\"Ziua \",ZiCalendar-DATE(YEAR(ZiCalendar),1,0)))","v":"Ziua 222"},{"$f":"IF(WEEKDAY(ZiCalendar)=ValoareÎnceputSăptămână,CONCATENATE(\"Săptămâna \",WEEKNUM(ZiCalendar),\"/Ziua \",ZiCalendar-DATE(YEAR(ZiCalendar),1,0)),CONCATENATE(\"Ziua \",ZiCalendar-DATE(YEAR(ZiCalendar),1,0)))","v":"Ziua 223"}]
[]
[null,null,{"$f":"ZileȘiSăptămâni+DATE(AnCalendar,8,1)-WEEKDAY(DATE(AnCalendar,8,1),(ÎnceputSăptămână=\"LUN\")+1)+15","v":"2018-08-12"},"2018-08-13","2018-08-14","2018-08-15","2018-08-16","2018-08-17","2018-08-18"]
[null,null,{"$f":"IF(WEEKDAY(ZiCalendar)=ValoareÎnceputSăptămână,CONCATENATE(\"Săptămâna \",WEEKNUM(ZiCalendar),\"/Ziua \",ZiCalendar-DATE(YEAR(ZiCalendar),1,0)),CONCATENATE(\"Ziua \",ZiCalendar-DATE(YEAR(ZiCalendar),1,0)))","v":"Săptămâna 33/Ziua 224"},{"$f":"IF(WEEKDAY(ZiCalendar)=ValoareÎnceputSăptămână,CONCATENATE(\"Săptămâna \",WEEKNUM(ZiCalendar),\"/Ziua \",ZiCalendar-DATE(YEAR(ZiCalendar),1,0)),CONCATENATE(\"Ziua \",ZiCalendar-DATE(YEAR(ZiCalendar),1,0)))","v":"Ziua 225"},{"$f":"IF(WEEKDAY(ZiCalendar)=ValoareÎnceputSăptămână,CONCATENATE(\"Săptămâna \",WEEKNUM(ZiCalendar),\"/Ziua \",ZiCalendar-DATE(YEAR(ZiCalendar),1,0)),CONCATENATE(\"Ziua \",ZiCalendar-DATE(YEAR(ZiCalendar),1,0)))","v":"Ziua 226"},{"$f":"IF(WEEKDAY(ZiCalendar)=ValoareÎnceputSăptămână,CONCATENATE(\"Săptămâna \",WEEKNUM(ZiCalendar),\"/Ziua \",ZiCalendar-DATE(YEAR(ZiCalendar),1,0)),CONCATENATE(\"Ziua \",ZiCalendar-DATE(YEAR(ZiCalendar),1,0)))","v":"Ziua 227"},{"$f":"IF(WEEKDAY(ZiCalendar)=ValoareÎnceputSăptămână,CONCATENATE(\"Săptămâna \",WEEKNUM(ZiCalendar),\"/Ziua \",ZiCalendar-DATE(YEAR(ZiCalendar),1,0)),CONCATENATE(\"Ziua \",ZiCalendar-DATE(YEAR(ZiCalendar),1,0)))","v":"Ziua 228"},{"$f":"IF(WEEKDAY(ZiCalendar)=ValoareÎnceputSăptămână,CONCATENATE(\"Săptămâna \",WEEKNUM(ZiCalendar),\"/Ziua \",ZiCalendar-DATE(YEAR(ZiCalendar),1,0)),CONCATENATE(\"Ziua \",ZiCalendar-DATE(YEAR(ZiCalendar),1,0)))","v":"Ziua 229"},{"$f":"IF(WEEKDAY(ZiCalendar)=ValoareÎnceputSăptămână,CONCATENATE(\"Săptămâna \",WEEKNUM(ZiCalendar),\"/Ziua \",ZiCalendar-DATE(YEAR(ZiCalendar),1,0)),CONCATENATE(\"Ziua \",ZiCalendar-DATE(YEAR(ZiCalendar),1,0)))","v":"Ziua 230"}]
[]
[null,null,{"$f":"ZileȘiSăptămâni+DATE(AnCalendar,8,1)-WEEKDAY(DATE(AnCalendar,8,1),(ÎnceputSăptămână=\"LUN\")+1)+22","v":"2018-08-19"},"2018-08-20","2018-08-21","2018-08-22","2018-08-23","2018-08-24","2018-08-25"]
[null,null,{"$f":"IF(WEEKDAY(ZiCalendar)=ValoareÎnceputSăptămână,CONCATENATE(\"Săptămâna \",WEEKNUM(ZiCalendar),\"/Ziua \",ZiCalendar-DATE(YEAR(ZiCalendar),1,0)),CONCATENATE(\"Ziua \",ZiCalendar-DATE(YEAR(ZiCalendar),1,0)))","v":"Săptămâna 34/Ziua 231"},{"$f":"IF(WEEKDAY(ZiCalendar)=ValoareÎnceputSăptămână,CONCATENATE(\"Săptămâna \",WEEKNUM(ZiCalendar),\"/Ziua \",ZiCalendar-DATE(YEAR(ZiCalendar),1,0)),CONCATENATE(\"Ziua \",ZiCalendar-DATE(YEAR(ZiCalendar),1,0)))","v":"Ziua 232"},{"$f":"IF(WEEKDAY(ZiCalendar)=ValoareÎnceputSăptămână,CONCATENATE(\"Săptămâna \",WEEKNUM(ZiCalendar),\"/Ziua \",ZiCalendar-DATE(YEAR(ZiCalendar),1,0)),CONCATENATE(\"Ziua \",ZiCalendar-DATE(YEAR(ZiCalendar),1,0)))","v":"Ziua 233"},{"$f":"IF(WEEKDAY(ZiCalendar)=ValoareÎnceputSăptămână,CONCATENATE(\"Săptămâna \",WEEKNUM(ZiCalendar),\"/Ziua \",ZiCalendar-DATE(YEAR(ZiCalendar),1,0)),CONCATENATE(\"Ziua \",ZiCalendar-DATE(YEAR(ZiCalendar),1,0)))","v":"Ziua 234"},{"$f":"IF(WEEKDAY(ZiCalendar)=ValoareÎnceputSăptămână,CONCATENATE(\"Săptămâna \",WEEKNUM(ZiCalendar),\"/Ziua \",ZiCalendar-DATE(YEAR(ZiCalendar),1,0)),CONCATENATE(\"Ziua \",ZiCalendar-DATE(YEAR(ZiCalendar),1,0)))","v":"Ziua 235"},{"$f":"IF(WEEKDAY(ZiCalendar)=ValoareÎnceputSăptămână,CONCATENATE(\"Săptămâna \",WEEKNUM(ZiCalendar),\"/Ziua \",ZiCalendar-DATE(YEAR(ZiCalendar),1,0)),CONCATENATE(\"Ziua \",ZiCalendar-DATE(YEAR(ZiCalendar),1,0)))","v":"Ziua 236"},{"$f":"IF(WEEKDAY(ZiCalendar)=ValoareÎnceputSăptămână,CONCATENATE(\"Săptămâna \",WEEKNUM(ZiCalendar),\"/Ziua \",ZiCalendar-DATE(YEAR(ZiCalendar),1,0)),CONCATENATE(\"Ziua \",ZiCalendar-DATE(YEAR(ZiCalendar),1,0)))","v":"Ziua 237"}]
[]
[null,null,{"$f":"ZileȘiSăptămâni+DATE(AnCalendar,8,1)-WEEKDAY(DATE(AnCalendar,8,1),(ÎnceputSăptămână=\"LUN\")+1)+29","v":"2018-08-26"},"2018-08-27","2018-08-28","2018-08-29","2018-08-30","2018-08-31","2018-09-01"]
[null,null,{"$f":"IF(WEEKDAY(ZiCalendar)=ValoareÎnceputSăptămână,CONCATENATE(\"Săptămâna \",WEEKNUM(ZiCalendar),\"/Ziua \",ZiCalendar-DATE(YEAR(ZiCalendar),1,0)),CONCATENATE(\"Ziua \",ZiCalendar-DATE(YEAR(ZiCalendar),1,0)))","v":"Săptămâna 35/Ziua 238"},{"$f":"IF(WEEKDAY(ZiCalendar)=ValoareÎnceputSăptămână,CONCATENATE(\"Săptămâna \",WEEKNUM(ZiCalendar),\"/Ziua \",ZiCalendar-DATE(YEAR(ZiCalendar),1,0)),CONCATENATE(\"Ziua \",ZiCalendar-DATE(YEAR(ZiCalendar),1,0)))","v":"Ziua 239"},{"$f":"IF(WEEKDAY(ZiCalendar)=ValoareÎnceputSăptămână,CONCATENATE(\"Săptămâna \",WEEKNUM(ZiCalendar),\"/Ziua \",ZiCalendar-DATE(YEAR(ZiCalendar),1,0)),CONCATENATE(\"Ziua \",ZiCalendar-DATE(YEAR(ZiCalendar),1,0)))","v":"Ziua 240"},{"$f":"IF(WEEKDAY(ZiCalendar)=ValoareÎnceputSăptămână,CONCATENATE(\"Săptămâna \",WEEKNUM(ZiCalendar),\"/Ziua \",ZiCalendar-DATE(YEAR(ZiCalendar),1,0)),CONCATENATE(\"Ziua \",ZiCalendar-DATE(YEAR(ZiCalendar),1,0)))","v":"Ziua 241"},{"$f":"IF(WEEKDAY(ZiCalendar)=ValoareÎnceputSăptămână,CONCATENATE(\"Săptămâna \",WEEKNUM(ZiCalendar),\"/Ziua \",ZiCalendar-DATE(YEAR(ZiCalendar),1,0)),CONCATENATE(\"Ziua \",ZiCalendar-DATE(YEAR(ZiCalendar),1,0)))","v":"Ziua 242"},{"$f":"IF(WEEKDAY(ZiCalendar)=ValoareÎnceputSăptămână,CONCATENATE(\"Săptămâna \",WEEKNUM(ZiCalendar),\"/Ziua \",ZiCalendar-DATE(YEAR(ZiCalendar),1,0)),CONCATENATE(\"Ziua \",ZiCalendar-DATE(YEAR(ZiCalendar),1,0)))","v":"Ziua 243"},{"$f":"IF(WEEKDAY(ZiCalendar)=ValoareÎnceputSăptămână,CONCATENATE(\"Săptămâna \",WEEKNUM(ZiCalendar),\"/Ziua \",ZiCalendar-DATE(YEAR(ZiCalendar),1,0)),CONCATENATE(\"Ziua \",ZiCalendar-DATE(YEAR(ZiCalendar),1,0)))","v":"Ziua 244"}]
[{"$nulls":4},"NOTE"]
[]
[null,null,{"$f":"ZileȘiSăptămâni+DATE(AnCalendar,8,1)-WEEKDAY(DATE(AnCalendar,8,1),(ÎnceputSăptămână=\"LUN\")+1)+36","v":"2018-09-02"},"2018-09-03"]
[null,null,{"$f":"IF(WEEKDAY(ZiCalendar)=ValoareÎnceputSăptămână,CONCATENATE(\"Săptămâna \",WEEKNUM(ZiCalendar),\"/Ziua \",ZiCalendar-DATE(YEAR(ZiCalendar),1,0)),CONCATENATE(\"Ziua \",ZiCalendar-DATE(YEAR(ZiCalendar),1,0)))","v":"Săptămâna 36/Ziua 245"},{"$f":"IF(WEEKDAY(ZiCalendar)=ValoareÎnceputSăptămână,CONCATENATE(\"Săptămâna \",WEEKNUM(ZiCalendar),\"/Ziua \",ZiCalendar-DATE(YEAR(ZiCalendar),1,0)),CONCATENATE(\"Ziua \",ZiCalendar-DATE(YEAR(ZiCalendar),1,0)))","v":"Ziua 246"}]

{"sheet":"SEP","index":8,"n_rows":20,"n_cols":9,"rows_kept":20,"merged":[[16,2,17,2],[17,4,19,8]]}
[null,"SEP",{"$f":"UPPER(TEXT(ÎnceputSăptămână,\"ddd\"))","v":"DUM"},{"$f":"UPPER(TEXT(D3,\"aaa\"))","v":"LUN"},"MAR","MIE","JOI","VIN","SÂM"]
[null,{"$f":"AnCalendar","v":2018}]
[null,null,{"$f":"ZileȘiSăptămâni+DATE(AnCalendar,9,1)-WEEKDAY(DATE(AnCalendar,9,1),(ÎnceputSăptămână=\"LUN\")+1)+1","v":"2018-08-26"},"2018-08-27","2018-08-28","2018-08-29","2018-08-30","2018-08-31","2018-09-01"]
[null,null,{"$f":"IF(DAY(ZiCalendar)=1,CONCATENATE(\"Săptămâna \",WEEKNUM(ZiCalendar),\"/Ziua \",ZiCalendar-DATE(YEAR(ZiCalendar),1,0)),CONCATENATE(\"Ziua \",ZiCalendar-DATE(YEAR(ZiCalendar),1,0)))","v":"Ziua 238"},{"$f":"IF(DAY(ZiCalendar)=1,CONCATENATE(\"Săptămâna \",WEEKNUM(ZiCalendar),\"/Ziua \",ZiCalendar-DATE(YEAR(ZiCalendar),1,0)),CONCATENATE(\"Ziua \",ZiCalendar-DATE(YEAR(ZiCalendar),1,0)))","v":"Ziua 239"},{"$f":"IF(DAY(ZiCalendar)=1,CONCATENATE(\"Săptămâna \",WEEKNUM(ZiCalendar),\"/Ziua \",ZiCalendar-DATE(YEAR(ZiCalendar),1,0)),CONCATENATE(\"Ziua \",ZiCalendar-DATE(YEAR(ZiCalendar),1,0)))","v":"Ziua 240"},{"$f":"IF(DAY(ZiCalendar)=1,CONCATENATE(\"Săptămâna \",WEEKNUM(ZiCalendar),\"/Ziua \",ZiCalendar-DATE(YEAR(ZiCalendar),1,0)),CONCATENATE(\"Ziua \",ZiCalendar-DATE(YEAR(ZiCalendar),1,0)))","v":"Ziua 241"},{"$f":"IF(DAY(ZiCalendar)=1,CONCATENATE(\"Săptămâna \",WEEKNUM(ZiCalendar),\"/Ziua \",ZiCalendar-DATE(YEAR(ZiCalendar),1,0)),CONCATENATE(\"Ziua \",ZiCalendar-DATE(YEAR(ZiCalendar),1,0)))","v":"Ziua 242"},{"$f":"IF(DAY(ZiCalendar)=1,CONCATENATE(\"Săptămâna \",WEEKNUM(ZiCalendar),\"/Ziua \",ZiCalendar-DATE(YEAR(ZiCalendar),1,0)),CONCATENATE(\"Ziua \",ZiCalendar-DATE(YEAR(ZiCalendar),1,0)))","v":"Ziua 243"},{"$f":"IF(DAY(ZiCalendar)=1,CONCATENATE(\"Săptămâna \",WEEKNUM(ZiCalendar),\"/Ziua \",ZiCalendar-DATE(YEAR(ZiCalendar),1,0)),CONCATENATE(\"Ziua \",ZiCalendar-DATE(YEAR(ZiCalendar),1,0)))","v":"Săptămâna 35/Ziua 244"}]
[]
[null,null,{"$f":"ZileȘiSăptămâni+DATE(AnCalendar,9,1)-WEEKDAY(DATE(AnCalendar,9,1),(ÎnceputSăptămână=\"LUN\")+1)+8","v":"2018-09-02"},"2018-09-03","2018-09-04","2018-09-05","2018-09-06","2018-09-07","2018-09-08"]
[null,null,{"$f":"IF(WEEKDAY(ZiCalendar)=ValoareÎnceputSăptămână,CONCATENATE(\"Săptămâna \",WEEKNUM(ZiCalendar),\"/Ziua \",ZiCalendar-DATE(YEAR(ZiCalendar),1,0)),CONCATENATE(\"Ziua \",ZiCalendar-DATE(YEAR(ZiCalendar),1,0)))","v":"Săptămâna 36/Ziua 245"},{"$f":"IF(WEEKDAY(ZiCalendar)=ValoareÎnceputSăptămână,CONCATENATE(\"Săptămâna \",WEEKNUM(ZiCalendar),\"/Ziua \",ZiCalendar-DATE(YEAR(ZiCalendar),1,0)),CONCATENATE(\"Ziua \",ZiCalendar-DATE(YEAR(ZiCalendar),1,0)))","v":"Ziua 246"},{"$f":"IF(WEEKDAY(ZiCalendar)=ValoareÎnceputSăptămână,CONCATENATE(\"Săptămâna \",WEEKNUM(ZiCalendar),\"/Ziua \",ZiCalendar-DATE(YEAR(ZiCalendar),1,0)),CONCATENATE(\"Ziua \",ZiCalendar-DATE(YEAR(ZiCalendar),1,0)))","v":"Ziua 247"},{"$f":"IF(WEEKDAY(ZiCalendar)=ValoareÎnceputSăptămână,CONCATENATE(\"Săptămâna \",WEEKNUM(ZiCalendar),\"/Ziua \",ZiCalendar-DATE(YEAR(ZiCalendar),1,0)),CONCATENATE(\"Ziua \",ZiCalendar-DATE(YEAR(ZiCalendar),1,0)))","v":"Ziua 248"},{"$f":"IF(WEEKDAY(ZiCalendar)=ValoareÎnceputSăptămână,CONCATENATE(\"Săptămâna \",WEEKNUM(ZiCalendar),\"/Ziua \",ZiCalendar-DATE(YEAR(ZiCalendar),1,0)),CONCATENATE(\"Ziua \",ZiCalendar-DATE(YEAR(ZiCalendar),1,0)))","v":"Ziua 249"},{"$f":"IF(WEEKDAY(ZiCalendar)=ValoareÎnceputSăptămână,CONCATENATE(\"Săptămâna \",WEEKNUM(ZiCalendar),\"/Ziua \",ZiCalendar-DATE(YEAR(ZiCalendar),1,0)),CONCATENATE(\"Ziua \",ZiCalendar-DATE(YEAR(ZiCalendar),1,0)))","v":"Ziua 250"},{"$f":"IF(WEEKDAY(ZiCalendar)=ValoareÎnceputSăptămână,CONCATENATE(\"Săptămâna \",WEEKNUM(ZiCalendar),\"/Ziua \",ZiCalendar-DATE(YEAR(ZiCalendar),1,0)),CONCATENATE(\"Ziua \",ZiCalendar-DATE(YEAR(ZiCalendar),1,0)))","v":"Ziua 251"}]
[]
[null,null,{"$f":"ZileȘiSăptămâni+DATE(AnCalendar,9,1)-WEEKDAY(DATE(AnCalendar,9,1),(ÎnceputSăptămână=\"LUN\")+1)+15","v":"2018-09-09"},"2018-09-10","2018-09-11","2018-09-12","2018-09-13","2018-09-14","2018-09-15"]
[null,null,{"$f":"IF(WEEKDAY(ZiCalendar)=ValoareÎnceputSăptămână,CONCATENATE(\"Săptămâna \",WEEKNUM(ZiCalendar),\"/Ziua \",ZiCalendar-DATE(YEAR(ZiCalendar),1,0)),CONCATENATE(\"Ziua \",ZiCalendar-DATE(YEAR(ZiCalendar),1,0)))","v":"Săptămâna 37/Ziua 252"},{"$f":"IF(WEEKDAY(ZiCalendar)=ValoareÎnceputSăptămână,CONCATENATE(\"Săptămâna \",WEEKNUM(ZiCalendar),\"/Ziua \",ZiCalendar-DATE(YEAR(ZiCalendar),1,0)),CONCATENATE(\"Ziua \",ZiCalendar-DATE(YEAR(ZiCalendar),1,0)))","v":"Ziua 253"},{"$f":"IF(WEEKDAY(ZiCalendar)=ValoareÎnceputSăptămână,CONCATENATE(\"Săptămâna \",WEEKNUM(ZiCalendar),\"/Ziua \",ZiCalendar-DATE(YEAR(ZiCalendar),1,0)),CONCATENATE(\"Ziua \",ZiCalendar-DATE(YEAR(ZiCalendar),1,0)))","v":"Ziua 254"},{"$f":"IF(WEEKDAY(ZiCalendar)=ValoareÎnceputSăptămână,CONCATENATE(\"Săptămâna \",WEEKNUM(ZiCalendar),\"/Ziua \",ZiCalendar-DATE(YEAR(ZiCalendar),1,0)),CONCATENATE(\"Ziua \",ZiCalendar-DATE(YEAR(ZiCalendar),1,0)))","v":"Ziua 255"},{"$f":"IF(WEEKDAY(ZiCalendar)=ValoareÎnceputSăptămână,CONCATENATE(\"Săptămâna \",WEEKNUM(ZiCalendar),\"/Ziua \",ZiCalendar-DATE(YEAR(ZiCalendar),1,0)),CONCATENATE(\"Ziua \",ZiCalendar-DATE(YEAR(ZiCalendar),1,0)))","v":"Ziua 256"},{"$f":"IF(WEEKDAY(ZiCalendar)=ValoareÎnceputSăptămână,CONCATENATE(\"Săptămâna \",WEEKNUM(ZiCalendar),\"/Ziua \",ZiCalendar-DATE(YEAR(ZiCalendar),1,0)),CONCATENATE(\"Ziua \",ZiCalendar-DATE(YEAR(ZiCalendar),1,0)))","v":"Ziua 257"},{"$f":"IF(WEEKDAY(ZiCalendar)=ValoareÎnceputSăptămână,CONCATENATE(\"Săptămâna \",WEEKNUM(ZiCalendar),\"/Ziua \",ZiCalendar-DATE(YEAR(ZiCalendar),1,0)),CONCATENATE(\"Ziua \",ZiCalendar-DATE(YEAR(ZiCalendar),1,0)))","v":"Ziua 258"}]
[]
[null,null,{"$f":"ZileȘiSăptămâni+DATE(AnCalendar,9,1)-WEEKDAY(DATE(AnCalendar,9,1),(ÎnceputSăptămână=\"LUN\")+1)+22","v":"2018-09-16"},"2018-09-17","2018-09-18","2018-09-19","2018-09-20","2018-09-21","2018-09-22"]
[null,null,{"$f":"IF(WEEKDAY(ZiCalendar)=ValoareÎnceputSăptămână,CONCATENATE(\"Săptămâna \",WEEKNUM(ZiCalendar),\"/Ziua \",ZiCalendar-DATE(YEAR(ZiCalendar),1,0)),CONCATENATE(\"Ziua \",ZiCalendar-DATE(YEAR(ZiCalendar),1,0)))","v":"Săptămâna 38/Ziua 259"},{"$f":"IF(WEEKDAY(ZiCalendar)=ValoareÎnceputSăptămână,CONCATENATE(\"Săptămâna \",WEEKNUM(ZiCalendar),\"/Ziua \",ZiCalendar-DATE(YEAR(ZiCalendar),1,0)),CONCATENATE(\"Ziua \",ZiCalendar-DATE(YEAR(ZiCalendar),1,0)))","v":"Ziua 260"},{"$f":"IF(WEEKDAY(ZiCalendar)=ValoareÎnceputSăptămână,CONCATENATE(\"Săptămâna \",WEEKNUM(ZiCalendar),\"/Ziua \",ZiCalendar-DATE(YEAR(ZiCalendar),1,0)),CONCATENATE(\"Ziua \",ZiCalendar-DATE(YEAR(ZiCalendar),1,0)))","v":"Ziua 261"},{"$f":"IF(WEEKDAY(ZiCalendar)=ValoareÎnceputSăptămână,CONCATENATE(\"Săptămâna \",WEEKNUM(ZiCalendar),\"/Ziua \",ZiCalendar-DATE(YEAR(ZiCalendar),1,0)),CONCATENATE(\"Ziua \",ZiCalendar-DATE(YEAR(ZiCalendar),1,0)))","v":"Ziua 262"},{"$f":"IF(WEEKDAY(ZiCalendar)=ValoareÎnceputSăptămână,CONCATENATE(\"Săptămâna \",WEEKNUM(ZiCalendar),\"/Ziua \",ZiCalendar-DATE(YEAR(ZiCalendar),1,0)),CONCATENATE(\"Ziua \",ZiCalendar-DATE(YEAR(ZiCalendar),1,0)))","v":"Ziua 263"},{"$f":"IF(WEEKDAY(ZiCalendar)=ValoareÎnceputSăptămână,CONCATENATE(\"Săptămâna \",WEEKNUM(ZiCalendar),\"/Ziua \",ZiCalendar-DATE(YEAR(ZiCalendar),1,0)),CONCATENATE(\"Ziua \",ZiCalendar-DATE(YEAR(ZiCalendar),1,0)))","v":"Ziua 264"},{"$f":"IF(WEEKDAY(ZiCalendar)=ValoareÎnceputSăptămână,CONCATENATE(\"Săptămâna \",WEEKNUM(ZiCalendar),\"/Ziua \",ZiCalendar-DATE(YEAR(ZiCalendar),1,0)),CONCATENATE(\"Ziua \",ZiCalendar-DATE(YEAR(ZiCalendar),1,0)))","v":"Ziua 265"}]
[]
[null,null,{"$f":"ZileȘiSăptămâni+DATE(AnCalendar,9,1)-WEEKDAY(DATE(AnCalendar,9,1),(ÎnceputSăptămână=\"LUN\")+1)+29","v":"2018-09-23"},"2018-09-24","2018-09-25","2018-09-26","2018-09-27","2018-09-28","2018-09-29"]
[null,null,{"$f":"IF(WEEKDAY(ZiCalendar)=ValoareÎnceputSăptămână,CONCATENATE(\"Săptămâna \",WEEKNUM(ZiCalendar),\"/Ziua \",ZiCalendar-DATE(YEAR(ZiCalendar),1,0)),CONCATENATE(\"Ziua \",ZiCalendar-DATE(YEAR(ZiCalendar),1,0)))","v":"Săptămâna 39/Ziua 266"},{"$f":"IF(WEEKDAY(ZiCalendar)=ValoareÎnceputSăptămână,CONCATENATE(\"Săptămâna \",WEEKNUM(ZiCalendar),\"/Ziua \",ZiCalendar-DATE(YEAR(ZiCalendar),1,0)),CONCATENATE(\"Ziua \",ZiCalendar-DATE(YEAR(ZiCalendar),1,0)))","v":"Ziua 267"},{"$f":"IF(WEEKDAY(ZiCalendar)=ValoareÎnceputSăptămână,CONCATENATE(\"Săptămâna \",WEEKNUM(ZiCalendar),\"/Ziua \",ZiCalendar-DATE(YEAR(ZiCalendar),1,0)),CONCATENATE(\"Ziua \",ZiCalendar-DATE(YEAR(ZiCalendar),1,0)))","v":"Ziua 268"},{"$f":"IF(WEEKDAY(ZiCalendar)=ValoareÎnceputSăptămână,CONCATENATE(\"Săptămâna \",WEEKNUM(ZiCalendar),\"/Ziua \",ZiCalendar-DATE(YEAR(ZiCalendar),1,0)),CONCATENATE(\"Ziua \",ZiCalendar-DATE(YEAR(ZiCalendar),1,0)))","v":"Ziua 269"},{"$f":"IF(WEEKDAY(ZiCalendar)=ValoareÎnceputSăptămână,CONCATENATE(\"Săptămâna \",WEEKNUM(ZiCalendar),\"/Ziua \",ZiCalendar-DATE(YEAR(ZiCalendar),1,0)),CONCATENATE(\"Ziua \",ZiCalendar-DATE(YEAR(ZiCalendar),1,0)))","v":"Ziua 270"},{"$f":"IF(WEEKDAY(ZiCalendar)=ValoareÎnceputSăptămână,CONCATENATE(\"Săptămâna \",WEEKNUM(ZiCalendar),\"/Ziua \",ZiCalendar-DATE(YEAR(ZiCalendar),1,0)),CONCATENATE(\"Ziua \",ZiCalendar-DATE(YEAR(ZiCalendar),1,0)))","v":"Ziua 271"},{"$f":"IF(WEEKDAY(ZiCalendar)=ValoareÎnceputSăptămână,CONCATENATE(\"Săptămâna \",WEEKNUM(ZiCalendar),\"/Ziua \",ZiCalendar-DATE(YEAR(ZiCalendar),1,0)),CONCATENATE(\"Ziua \",ZiCalendar-DATE(YEAR(ZiCalendar),1,0)))","v":"Ziua 272"}]
[{"$nulls":4},"NOTE"]
[]
[null,null,{"$f":"ZileȘiSăptămâni+DATE(AnCalendar,9,1)-WEEKDAY(DATE(AnCalendar,9,1),(ÎnceputSăptămână=\"LUN\")+1)+36","v":"2018-09-30"},"2018-10-01"]
[null,null,{"$f":"IF(WEEKDAY(ZiCalendar)=ValoareÎnceputSăptămână,CONCATENATE(\"Săptămâna \",WEEKNUM(ZiCalendar),\"/Ziua \",ZiCalendar-DATE(YEAR(ZiCalendar),1,0)),CONCATENATE(\"Ziua \",ZiCalendar-DATE(YEAR(ZiCalendar),1,0)))","v":"Săptămâna 40/Ziua 273"},{"$f":"IF(WEEKDAY(ZiCalendar)=ValoareÎnceputSăptămână,CONCATENATE(\"Săptămâna \",WEEKNUM(ZiCalendar),\"/Ziua \",ZiCalendar-DATE(YEAR(ZiCalendar),1,0)),CONCATENATE(\"Ziua \",ZiCalendar-DATE(YEAR(ZiCalendar),1,0)))","v":"Ziua 274"}]

{"sheet":"OCT","index":9,"n_rows":20,"n_cols":9,"rows_kept":20,"merged":[[16,2,17,2],[17,4,19,8]]}
[null,"OCT",{"$f":"UPPER(TEXT(ÎnceputSăptămână,\"ddd\"))","v":"DUM"},{"$f":"UPPER(TEXT(D3,\"aaa\"))","v":"LUN"},"MAR","MIE","JOI","VIN","SÂM"]
[null,{"$f":"AnCalendar","v":2018}]
[null,null,{"$f":"ZileȘiSăptămâni+DATE(AnCalendar,10,1)-WEEKDAY(DATE(AnCalendar,10,1),(ÎnceputSăptămână=\"LUN\")+1)+1","v":"2018-09-30"},"2018-10-01","2018-10-02","2018-10-03","2018-10-04","2018-10-05","2018-10-06"]
[null,null,{"$f":"IF(DAY(ZiCalendar)=1,CONCATENATE(\"Săptămâna \",WEEKNUM(ZiCalendar),\"/Ziua \",ZiCalendar-DATE(YEAR(ZiCalendar),1,0)),CONCATENATE(\"Ziua \",ZiCalendar-DATE(YEAR(ZiCalendar),1,0)))","v":"Ziua 273"},{"$f":"IF(DAY(ZiCalendar)=1,CONCATENATE(\"Săptămâna \",WEEKNUM(ZiCalendar),\"/Ziua \",ZiCalendar-DATE(YEAR(ZiCalendar),1,0)),CONCATENATE(\"Ziua \",ZiCalendar-DATE(YEAR(ZiCalendar),1,0)))","v":"Săptămâna 40/Ziua 274"},{"$f":"IF(DAY(ZiCalendar)=1,CONCATENATE(\"Săptămâna \",WEEKNUM(ZiCalendar),\"/Ziua \",ZiCalendar-DATE(YEAR(ZiCalendar),1,0)),CONCATENATE(\"Ziua \",ZiCalendar-DATE(YEAR(ZiCalendar),1,0)))","v":"Ziua 275"},{"$f":"IF(DAY(ZiCalendar)=1,CONCATENATE(\"Săptămâna \",WEEKNUM(ZiCalendar),\"/Ziua \",ZiCalendar-DATE(YEAR(ZiCalendar),1,0)),CONCATENATE(\"Ziua \",ZiCalendar-DATE(YEAR(ZiCalendar),1,0)))","v":"Ziua 276"},{"$f":"IF(DAY(ZiCalendar)=1,CONCATENATE(\"Săptămâna \",WEEKNUM(ZiCalendar),\"/Ziua \",ZiCalendar-DATE(YEAR(ZiCalendar),1,0)),CONCATENATE(\"Ziua \",ZiCalendar-DATE(YEAR(ZiCalendar),1,0)))","v":"Ziua 277"},{"$f":"IF(DAY(ZiCalendar)=1,CONCATENATE(\"Săptămâna \",WEEKNUM(ZiCalendar),\"/Ziua \",ZiCalendar-DATE(YEAR(ZiCalendar),1,0)),CONCATENATE(\"Ziua \",ZiCalendar-DATE(YEAR(ZiCalendar),1,0)))","v":"Ziua 278"},{"$f":"IF(DAY(ZiCalendar)=1,CONCATENATE(\"Săptămâna \",WEEKNUM(ZiCalendar),\"/Ziua \",ZiCalendar-DATE(YEAR(ZiCalendar),1,0)),CONCATENATE(\"Ziua \",ZiCalendar-DATE(YEAR(ZiCalendar),1,0)))","v":"Ziua 279"}]
[]
[null,null,{"$f":"ZileȘiSăptămâni+DATE(AnCalendar,10,1)-WEEKDAY(DATE(AnCalendar,10,1),(ÎnceputSăptămână=\"LUN\")+1)+8","v":"2018-10-07"},"2018-10-08","2018-10-09","2018-10-10","2018-10-11","2018-10-12","2018-10-13"]
[null,null,{"$f":"IF(WEEKDAY(ZiCalendar)=ValoareÎnceputSăptămână,CONCATENATE(\"Săptămâna \",WEEKNUM(ZiCalendar),\"/Ziua \",ZiCalendar-DATE(YEAR(ZiCalendar),1,0)),CONCATENATE(\"Ziua \",ZiCalendar-DATE(YEAR(ZiCalendar),1,0)))","v":"Săptămâna 41/Ziua 280"},{"$f":"IF(WEEKDAY(ZiCalendar)=ValoareÎnceputSăptămână,CONCATENATE(\"Săptămâna \",WEEKNUM(ZiCalendar),\"/Ziua \",ZiCalendar-DATE(YEAR(ZiCalendar),1,0)),CONCATENATE(\"Ziua \",ZiCalendar-DATE(YEAR(ZiCalendar),1,0)))","v":"Ziua 281"},{"$f":"IF(WEEKDAY(ZiCalendar)=ValoareÎnceputSăptămână,CONCATENATE(\"Săptămâna \",WEEKNUM(ZiCalendar),\"/Ziua \",ZiCalendar-DATE(YEAR(ZiCalendar),1,0)),CONCATENATE(\"Ziua \",ZiCalendar-DATE(YEAR(ZiCalendar),1,0)))","v":"Ziua 282"},{"$f":"IF(WEEKDAY(ZiCalendar)=ValoareÎnceputSăptămână,CONCATENATE(\"Săptămâna \",WEEKNUM(ZiCalendar),\"/Ziua \",ZiCalendar-DATE(YEAR(ZiCalendar),1,0)),CONCATENATE(\"Ziua \",ZiCalendar-DATE(YEAR(ZiCalendar),1,0)))","v":"Ziua 283"},{"$f":"IF(WEEKDAY(ZiCalendar)=ValoareÎnceputSăptămână,CONCATENATE(\"Săptămâna \",WEEKNUM(ZiCalendar),\"/Ziua \",ZiCalendar-DATE(YEAR(ZiCalendar),1,0)),CONCATENATE(\"Ziua \",ZiCalendar-DATE(YEAR(ZiCalendar),1,0)))","v":"Ziua 284"},{"$f":"IF(WEEKDAY(ZiCalendar)=ValoareÎnceputSăptămână,CONCATENATE(\"Săptămâna \",WEEKNUM(ZiCalendar),\"/Ziua \",ZiCalendar-DATE(YEAR(ZiCalendar),1,0)),CONCATENATE(\"Ziua \",ZiCalendar-DATE(YEAR(ZiCalendar),1,0)))","v":"Ziua 285"},{"$f":"IF(WEEKDAY(ZiCalendar)=ValoareÎnceputSăptămână,CONCATENATE(\"Săptămâna \",WEEKNUM(ZiCalendar),\"/Ziua \",ZiCalendar-DATE(YEAR(ZiCalendar),1,0)),CONCATENATE(\"Ziua \",ZiCalendar-DATE(YEAR(ZiCalendar),1,0)))","v":"Ziua 286"}]
[]
[null,null,{"$f":"ZileȘiSăptămâni+DATE(AnCalendar,10,1)-WEEKDAY(DATE(AnCalendar,10,1),(ÎnceputSăptămână=\"LUN\")+1)+15","v":"2018-10-14"},"2018-10-15","2018-10-16","2018-10-17","2018-10-18","2018-10-19","2018-10-20"]
[null,null,{"$f":"IF(WEEKDAY(ZiCalendar)=ValoareÎnceputSăptămână,CONCATENATE(\"Săptămâna \",WEEKNUM(ZiCalendar),\"/Ziua \",ZiCalendar-DATE(YEAR(ZiCalendar),1,0)),CONCATENATE(\"Ziua \",ZiCalendar-DATE(YEAR(ZiCalendar),1,0)))","v":"Săptămâna 42/Ziua 287"},{"$f":"IF(WEEKDAY(ZiCalendar)=ValoareÎnceputSăptămână,CONCATENATE(\"Săptămâna \",WEEKNUM(ZiCalendar),\"/Ziua \",ZiCalendar-DATE(YEAR(ZiCalendar),1,0)),CONCATENATE(\"Ziua \",ZiCalendar-DATE(YEAR(ZiCalendar),1,0)))","v":"Ziua 288"},{"$f":"IF(WEEKDAY(ZiCalendar)=ValoareÎnceputSăptămână,CONCATENATE(\"Săptămâna \",WEEKNUM(ZiCalendar),\"/Ziua \",ZiCalendar-DATE(YEAR(ZiCalendar),1,0)),CONCATENATE(\"Ziua \",ZiCalendar-DATE(YEAR(ZiCalendar),1,0)))","v":"Ziua 289"},{"$f":"IF(WEEKDAY(ZiCalendar)=ValoareÎnceputSăptămână,CONCATENATE(\"Săptămâna \",WEEKNUM(ZiCalendar),\"/Ziua \",ZiCalendar-DATE(YEAR(ZiCalendar),1,0)),CONCATENATE(\"Ziua \",ZiCalendar-DATE(YEAR(ZiCalendar),1,0)))","v":"Ziua 290"},{"$f":"IF(WEEKDAY(ZiCalendar)=ValoareÎnceputSăptămână,CONCATENATE(\"Săptămâna \",WEEKNUM(ZiCalendar),\"/Ziua \",ZiCalendar-DATE(YEAR(ZiCalendar),1,0)),CONCATENATE(\"Ziua \",ZiCalendar-DATE(YEAR(ZiCalendar),1,0)))","v":"Ziua 291"},{"$f":"IF(WEEKDAY(ZiCalendar)=ValoareÎnceputSăptămână,CONCATENATE(\"Săptămâna \",WEEKNUM(ZiCalendar),\"/Ziua \",ZiCalendar-DATE(YEAR(ZiCalendar),1,0)),CONCATENATE(\"Ziua \",ZiCalendar-DATE(YEAR(ZiCalendar),1,0)))","v":"Ziua 292"},{"$f":"IF(WEEKDAY(ZiCalendar)=ValoareÎnceputSăptămână,CONCATENATE(\"Săptămâna \",WEEKNUM(ZiCalendar),\"/Ziua \",ZiCalendar-DATE(YEAR(ZiCalendar),1,0)),CONCATENATE(\"Ziua \",ZiCalendar-DATE(YEAR(ZiCalendar),1,0)))","v":"Ziua 293"}]
[]
[null,null,{"$f":"ZileȘiSăptămâni+DATE(AnCalendar,10,1)-WEEKDAY(DATE(AnCalendar,10,1),(ÎnceputSăptămână=\"LUN\")+1)+22","v":"2018-10-21"},"2018-10-22","2018-10-23","2018-10-24","2018-10-25","2018-10-26","2018-10-27"]
[null,null,{"$f":"IF(WEEKDAY(ZiCalendar)=ValoareÎnceputSăptămână,CONCATENATE(\"Săptămâna \",WEEKNUM(ZiCalendar),\"/Ziua \",ZiCalendar-DATE(YEAR(ZiCalendar),1,0)),CONCATENATE(\"Ziua \",ZiCalendar-DATE(YEAR(ZiCalendar),1,0)))","v":"Săptămâna 43/Ziua 294"},{"$f":"IF(WEEKDAY(ZiCalendar)=ValoareÎnceputSăptămână,CONCATENATE(\"Săptămâna \",WEEKNUM(ZiCalendar),\"/Ziua \",ZiCalendar-DATE(YEAR(ZiCalendar),1,0)),CONCATENATE(\"Ziua \",ZiCalendar-DATE(YEAR(ZiCalendar),1,0)))","v":"Ziua 295"},{"$f":"IF(WEEKDAY(ZiCalendar)=ValoareÎnceputSăptămână,CONCATENATE(\"Săptămâna \",WEEKNUM(ZiCalendar),\"/Ziua \",ZiCalendar-DATE(YEAR(ZiCalendar),1,0)),CONCATENATE(\"Ziua \",ZiCalendar-DATE(YEAR(ZiCalendar),1,0)))","v":"Ziua 296"},{"$f":"IF(WEEKDAY(ZiCalendar)=ValoareÎnceputSăptămână,CONCATENATE(\"Săptămâna \",WEEKNUM(ZiCalendar),\"/Ziua \",ZiCalendar-DATE(YEAR(ZiCalendar),1,0)),CONCATENATE(\"Ziua \",ZiCalendar-DATE(YEAR(ZiCalendar),1,0)))","v":"Ziua 297"},{"$f":"IF(WEEKDAY(ZiCalendar)=ValoareÎnceputSăptămână,CONCATENATE(\"Săptămâna \",WEEKNUM(ZiCalendar),\"/Ziua \",ZiCalendar-DATE(YEAR(ZiCalendar),1,0)),CONCATENATE(\"Ziua \",ZiCalendar-DATE(YEAR(ZiCalendar),1,0)))","v":"Ziua 298"},{"$f":"IF(WEEKDAY(ZiCalendar)=ValoareÎnceputSăptămână,CONCATENATE(\"Săptămâna \",WEEKNUM(ZiCalendar),\"/Ziua \",ZiCalendar-DATE(YEAR(ZiCalendar),1,0)),CONCATENATE(\"Ziua \",ZiCalendar-DATE(YEAR(ZiCalendar),1,0)))","v":"Ziua 299"},{"$f":"IF(WEEKDAY(ZiCalendar)=ValoareÎnceputSăptămână,CONCATENATE(\"Săptămâna \",WEEKNUM(ZiCalendar),\"/Ziua \",ZiCalendar-DATE(YEAR(ZiCalendar),1,0)),CONCATENATE(\"Ziua \",ZiCalendar-DATE(YEAR(ZiCalendar),1,0)))","v":"Ziua 300"}]
[]
[null,null,{"$f":"ZileȘiSăptămâni+DATE(AnCalendar,10,1)-WEEKDAY(DATE(AnCalendar,10,1),(ÎnceputSăptămână=\"LUN\")+1)+29","v":"2018-10-28"},"2018-10-29","2018-10-30","2018-10-31","2018-11-01","2018-11-02","2018-11-03"]
[null,null,{"$f":"IF(WEEKDAY(ZiCalendar)=ValoareÎnceputSăptămână,CONCATENATE(\"Săptămâna \",WEEKNUM(ZiCalendar),\"/Ziua \",ZiCalendar-DATE(YEAR(ZiCalendar),1,0)),CONCATENATE(\"Ziua \",ZiCalendar-DATE(YEAR(ZiCalendar),1,0)))","v":"Săptămâna 44/Ziua 301"},{"$f":"IF(WEEKDAY(ZiCalendar)=ValoareÎnceputSăptămână,CONCATENATE(\"Săptămâna \",WEEKNUM(ZiCalendar),\"/Ziua \",ZiCalendar-DATE(YEAR(ZiCalendar),1,0)),CONCATENATE(\"Ziua \",ZiCalendar-DATE(YEAR(ZiCalendar),1,0)))","v":"Ziua 302"},{"$f":"IF(WEEKDAY(ZiCalendar)=ValoareÎnceputSăptămână,CONCATENATE(\"Săptămâna \",WEEKNUM(ZiCalendar),\"/Ziua \",ZiCalendar-DATE(YEAR(ZiCalendar),1,0)),CONCATENATE(\"Ziua \",ZiCalendar-DATE(YEAR(ZiCalendar),1,0)))","v":"Ziua 303"},{"$f":"IF(WEEKDAY(ZiCalendar)=ValoareÎnceputSăptămână,CONCATENATE(\"Săptămâna \",WEEKNUM(ZiCalendar),\"/Ziua \",ZiCalendar-DATE(YEAR(ZiCalendar),1,0)),CONCATENATE(\"Ziua \",ZiCalendar-DATE(YEAR(ZiCalendar),1,0)))","v":"Ziua 304"},{"$f":"IF(WEEKDAY(ZiCalendar)=ValoareÎnceputSăptămână,CONCATENATE(\"Săptămâna \",WEEKNUM(ZiCalendar),\"/Ziua \",ZiCalendar-DATE(YEAR(ZiCalendar),1,0)),CONCATENATE(\"Ziua \",ZiCalendar-DATE(YEAR(ZiCalendar),1,0)))","v":"Ziua 305"},{"$f":"IF(WEEKDAY(ZiCalendar)=ValoareÎnceputSăptămână,CONCATENATE(\"Săptămâna \",WEEKNUM(ZiCalendar),\"/Ziua \",ZiCalendar-DATE(YEAR(ZiCalendar),1,0)),CONCATENATE(\"Ziua \",ZiCalendar-DATE(YEAR(ZiCalendar),1,0)))","v":"Ziua 306"},{"$f":"IF(WEEKDAY(ZiCalendar)=ValoareÎnceputSăptămână,CONCATENATE(\"Săptămâna \",WEEKNUM(ZiCalendar),\"/Ziua \",ZiCalendar-DATE(YEAR(ZiCalendar),1,0)),CONCATENATE(\"Ziua \",ZiCalendar-DATE(YEAR(ZiCalendar),1,0)))","v":"Ziua 307"}]
[{"$nulls":4},"NOTE"]
[]
[null,null,{"$f":"ZileȘiSăptămâni+DATE(AnCalendar,10,1)-WEEKDAY(DATE(AnCalendar,10,1),(ÎnceputSăptămână=\"LUN\")+1)+36","v":"2018-11-04"},"2018-11-05"]
[null,null,{"$f":"IF(WEEKDAY(ZiCalendar)=ValoareÎnceputSăptămână,CONCATENATE(\"Săptămâna \",WEEKNUM(ZiCalendar),\"/Ziua \",ZiCalendar-DATE(YEAR(ZiCalendar),1,0)),CONCATENATE(\"Ziua \",ZiCalendar-DATE(YEAR(ZiCalendar),1,0)))","v":"Săptămâna 45/Ziua 308"},{"$f":"IF(WEEKDAY(ZiCalendar)=ValoareÎnceputSăptămână,CONCATENATE(\"Săptămâna \",WEEKNUM(ZiCalendar),\"/Ziua \",ZiCalendar-DATE(YEAR(ZiCalendar),1,0)),CONCATENATE(\"Ziua \",ZiCalendar-DATE(YEAR(ZiCalendar),1,0)))","v":"Ziua 309"}]

{"sheet":"NOV","index":10,"n_rows":20,"n_cols":9,"rows_kept":20,"merged":[[16,2,17,2],[17,4,19,8]]}
[null,"NOV",{"$f":"UPPER(TEXT(ÎnceputSăptămână,\"ddd\"))","v":"DUM"},{"$f":"UPPER(TEXT(D3,\"aaa\"))","v":"LUN"},"MAR","MIE","JOI","VIN","SÂM"]
[null,{"$f":"AnCalendar","v":2018}]
[null,null,{"$f":"ZileȘiSăptămâni+DATE(AnCalendar,11,1)-WEEKDAY(DATE(AnCalendar,11,1),(ÎnceputSăptămână=\"LUN\")+1)+1","v":"2018-10-28"},"2018-10-29","2018-10-30","2018-10-31","2018-11-01","2018-11-02","2018-11-03"]
[null,null,{"$f":"IF(DAY(ZiCalendar)=1,CONCATENATE(\"Săptămâna \",WEEKNUM(ZiCalendar),\"/Ziua \",ZiCalendar-DATE(YEAR(ZiCalendar),1,0)),CONCATENATE(\"Ziua \",ZiCalendar-DATE(YEAR(ZiCalendar),1,0)))","v":"Ziua 301"},{"$f":"IF(DAY(ZiCalendar)=1,CONCATENATE(\"Săptămâna \",WEEKNUM(ZiCalendar),\"/Ziua \",ZiCalendar-DATE(YEAR(ZiCalendar),1,0)),CONCATENATE(\"Ziua \",ZiCalendar-DATE(YEAR(ZiCalendar),1,0)))","v":"Ziua 302"},{"$f":"IF(DAY(ZiCalendar)=1,CONCATENATE(\"Săptămâna \",WEEKNUM(ZiCalendar),\"/Ziua \",ZiCalendar-DATE(YEAR(ZiCalendar),1,0)),CONCATENATE(\"Ziua \",ZiCalendar-DATE(YEAR(ZiCalendar),1,0)))","v":"Ziua 303"},{"$f":"IF(DAY(ZiCalendar)=1,CONCATENATE(\"Săptămâna \",WEEKNUM(ZiCalendar),\"/Ziua \",ZiCalendar-DATE(YEAR(ZiCalendar),1,0)),CONCATENATE(\"Ziua \",ZiCalendar-DATE(YEAR(ZiCalendar),1,0)))","v":"Ziua 304"},{"$f":"IF(DAY(ZiCalendar)=1,CONCATENATE(\"Săptămâna \",WEEKNUM(ZiCalendar),\"/Ziua \",ZiCalendar-DATE(YEAR(ZiCalendar),1,0)),CONCATENATE(\"Ziua \",ZiCalendar-DATE(YEAR(ZiCalendar),1,0)))","v":"Săptămâna 44/Ziua 305"},{"$f":"IF(DAY(ZiCalendar)=1,CONCATENATE(\"Săptămâna \",WEEKNUM(ZiCalendar),\"/Ziua \",ZiCalendar-DATE(YEAR(ZiCalendar),1,0)),CONCATENATE(\"Ziua \",ZiCalendar-DATE(YEAR(ZiCalendar),1,0)))","v":"Ziua 306"},{"$f":"IF(DAY(ZiCalendar)=1,CONCATENATE(\"Săptămâna \",WEEKNUM(ZiCalendar),\"/Ziua \",ZiCalendar-DATE(YEAR(ZiCalendar),1,0)),CONCATENATE(\"Ziua \",ZiCalendar-DATE(YEAR(ZiCalendar),1,0)))","v":"Ziua 307"}]
[]
[null,null,{"$f":"ZileȘiSăptămâni+DATE(AnCalendar,11,1)-WEEKDAY(DATE(AnCalendar,11,1),(ÎnceputSăptămână=\"LUN\")+1)+8","v":"2018-11-04"},"2018-11-05","2018-11-06","2018-11-07","2018-11-08","2018-11-09","2018-11-10"]
[null,null,{"$f":"IF(WEEKDAY(ZiCalendar)=ValoareÎnceputSăptămână,CONCATENATE(\"Săptămâna \",WEEKNUM(ZiCalendar),\"/Ziua \",ZiCalendar-DATE(YEAR(ZiCalendar),1,0)),CONCATENATE(\"Ziua \",ZiCalendar-DATE(YEAR(ZiCalendar),1,0)))","v":"Săptămâna 45/Ziua 308"},{"$f":"IF(WEEKDAY(ZiCalendar)=ValoareÎnceputSăptămână,CONCATENATE(\"Săptămâna \",WEEKNUM(ZiCalendar),\"/Ziua \",ZiCalendar-DATE(YEAR(ZiCalendar),1,0)),CONCATENATE(\"Ziua \",ZiCalendar-DATE(YEAR(ZiCalendar),1,0)))","v":"Ziua 309"},{"$f":"IF(WEEKDAY(ZiCalendar)=ValoareÎnceputSăptămână,CONCATENATE(\"Săptămâna \",WEEKNUM(ZiCalendar),\"/Ziua \",ZiCalendar-DATE(YEAR(ZiCalendar),1,0)),CONCATENATE(\"Ziua \",ZiCalendar-DATE(YEAR(ZiCalendar),1,0)))","v":"Ziua 310"},{"$f":"IF(WEEKDAY(ZiCalendar)=ValoareÎnceputSăptămână,CONCATENATE(\"Săptămâna \",WEEKNUM(ZiCalendar),\"/Ziua \",ZiCalendar-DATE(YEAR(ZiCalendar),1,0)),CONCATENATE(\"Ziua \",ZiCalendar-DATE(YEAR(ZiCalendar),1,0)))","v":"Ziua 311"},{"$f":"IF(WEEKDAY(ZiCalendar)=ValoareÎnceputSăptămână,CONCATENATE(\"Săptămâna \",WEEKNUM(ZiCalendar),\"/Ziua \",ZiCalendar-DATE(YEAR(ZiCalendar),1,0)),CONCATENATE(\"Ziua \",ZiCalendar-DATE(YEAR(ZiCalendar),1,0)))","v":"Ziua 312"},{"$f":"IF(WEEKDAY(ZiCalendar)=ValoareÎnceputSăptămână,CONCATENATE(\"Săptămâna \",WEEKNUM(ZiCalendar),\"/Ziua \",ZiCalendar-DATE(YEAR(ZiCalendar),1,0)),CONCATENATE(\"Ziua \",ZiCalendar-DATE(YEAR(ZiCalendar),1,0)))","v":"Ziua 313"},{"$f":"IF(WEEKDAY(ZiCalendar)=ValoareÎnceputSăptămână,CONCATENATE(\"Săptămâna \",WEEKNUM(ZiCalendar),\"/Ziua \",ZiCalendar-DATE(YEAR(ZiCalendar),1,0)),CONCATENATE(\"Ziua \",ZiCalendar-DATE(YEAR(ZiCalendar),1,0)))","v":"Ziua 314"}]
[]
[null,null,{"$f":"ZileȘiSăptămâni+DATE(AnCalendar,11,1)-WEEKDAY(DATE(AnCalendar,11,1),(ÎnceputSăptămână=\"LUN\")+1)+15","v":"2018-11-11"},"2018-11-12","2018-11-13","2018-11-14","2018-11-15","2018-11-16","2018-11-17"]
[null,null,{"$f":"IF(WEEKDAY(ZiCalendar)=ValoareÎnceputSăptămână,CONCATENATE(\"Săptămâna \",WEEKNUM(ZiCalendar),\"/Ziua \",ZiCalendar-DATE(YEAR(ZiCalendar),1,0)),CONCATENATE(\"Ziua \",ZiCalendar-DATE(YEAR(ZiCalendar),1,0)))","v":"Săptămâna 46/Ziua 315"},{"$f":"IF(WEEKDAY(ZiCalendar)=ValoareÎnceputSăptămână,CONCATENATE(\"Săptămâna \",WEEKNUM(ZiCalendar),\"/Ziua \",ZiCalendar-DATE(YEAR(ZiCalendar),1,0)),CONCATENATE(\"Ziua \",ZiCalendar-DATE(YEAR(ZiCalendar),1,0)))","v":"Ziua 316"},{"$f":"IF(WEEKDAY(ZiCalendar)=ValoareÎnceputSăptămână,CONCATENATE(\"Săptămâna \",WEEKNUM(ZiCalendar),\"/Ziua \",ZiCalendar-DATE(YEAR(ZiCalendar),1,0)),CONCATENATE(\"Ziua \",ZiCalendar-DATE(YEAR(ZiCalendar),1,0)))","v":"Ziua 317"},{"$f":"IF(WEEKDAY(ZiCalendar)=ValoareÎnceputSăptămână,CONCATENATE(\"Săptămâna \",WEEKNUM(ZiCalendar),\"/Ziua \",ZiCalendar-DATE(YEAR(ZiCalendar),1,0)),CONCATENATE(\"Ziua \",ZiCalendar-DATE(YEAR(ZiCalendar),1,0)))","v":"Ziua 318"},{"$f":"IF(WEEKDAY(ZiCalendar)=ValoareÎnceputSăptămână,CONCATENATE(\"Săptămâna \",WEEKNUM(ZiCalendar),\"/Ziua \",ZiCalendar-DATE(YEAR(ZiCalendar),1,0)),CONCATENATE(\"Ziua \",ZiCalendar-DATE(YEAR(ZiCalendar),1,0)))","v":"Ziua 319"},{"$f":"IF(WEEKDAY(ZiCalendar)=ValoareÎnceputSăptămână,CONCATENATE(\"Săptămâna \",WEEKNUM(ZiCalendar),\"/Ziua \",ZiCalendar-DATE(YEAR(ZiCalendar),1,0)),CONCATENATE(\"Ziua \",ZiCalendar-DATE(YEAR(ZiCalendar),1,0)))","v":"Ziua 320"},{"$f":"IF(WEEKDAY(ZiCalendar)=ValoareÎnceputSăptămână,CONCATENATE(\"Săptămâna \",WEEKNUM(ZiCalendar),\"/Ziua \",ZiCalendar-DATE(YEAR(ZiCalendar),1,0)),CONCATENATE(\"Ziua \",ZiCalendar-DATE(YEAR(ZiCalendar),1,0)))","v":"Ziua 321"}]
[]
[null,null,{"$f":"ZileȘiSăptămâni+DATE(AnCalendar,11,1)-WEEKDAY(DATE(AnCalendar,11,1),(ÎnceputSăptămână=\"LUN\")+1)+22","v":"2018-11-18"},"2018-11-19","2018-11-20","2018-11-21","2018-11-22","2018-11-23","2018-11-24"]
[null,null,{"$f":"IF(WEEKDAY(ZiCalendar)=ValoareÎnceputSăptămână,CONCATENATE(\"Săptămâna \",WEEKNUM(ZiCalendar),\"/Ziua \",ZiCalendar-DATE(YEAR(ZiCalendar),1,0)),CONCATENATE(\"Ziua \",ZiCalendar-DATE(YEAR(ZiCalendar),1,0)))","v":"Săptămâna 47/Ziua 322"},{"$f":"IF(WEEKDAY(ZiCalendar)=ValoareÎnceputSăptămână,CONCATENATE(\"Săptămâna \",WEEKNUM(ZiCalendar),\"/Ziua \",ZiCalendar-DATE(YEAR(ZiCalendar),1,0)),CONCATENATE(\"Ziua \",ZiCalendar-DATE(YEAR(ZiCalendar),1,0)))","v":"Ziua 323"},{"$f":"IF(WEEKDAY(ZiCalendar)=ValoareÎnceputSăptămână,CONCATENATE(\"Săptămâna \",WEEKNUM(ZiCalendar),\"/Ziua \",ZiCalendar-DATE(YEAR(ZiCalendar),1,0)),CONCATENATE(\"Ziua \",ZiCalendar-DATE(YEAR(ZiCalendar),1,0)))","v":"Ziua 324"},{"$f":"IF(WEEKDAY(ZiCalendar)=ValoareÎnceputSăptămână,CONCATENATE(\"Săptămâna \",WEEKNUM(ZiCalendar),\"/Ziua \",ZiCalendar-DATE(YEAR(ZiCalendar),1,0)),CONCATENATE(\"Ziua \",ZiCalendar-DATE(YEAR(ZiCalendar),1,0)))","v":"Ziua 325"},{"$f":"IF(WEEKDAY(ZiCalendar)=ValoareÎnceputSăptămână,CONCATENATE(\"Săptămâna \",WEEKNUM(ZiCalendar),\"/Ziua \",ZiCalendar-DATE(YEAR(ZiCalendar),1,0)),CONCATENATE(\"Ziua \",ZiCalendar-DATE(YEAR(ZiCalendar),1,0)))","v":"Ziua 326"},{"$f":"IF(WEEKDAY(ZiCalendar)=ValoareÎnceputSăptămână,CONCATENATE(\"Săptămâna \",WEEKNUM(ZiCalendar),\"/Ziua \",ZiCalendar-DATE(YEAR(ZiCalendar),1,0)),CONCATENATE(\"Ziua \",ZiCalendar-DATE(YEAR(ZiCalendar),1,0)))","v":"Ziua 327"},{"$f":"IF(WEEKDAY(ZiCalendar)=ValoareÎnceputSăptămână,CONCATENATE(\"Săptămâna \",WEEKNUM(ZiCalendar),\"/Ziua \",ZiCalendar-DATE(YEAR(ZiCalendar),1,0)),CONCATENATE(\"Ziua \",ZiCalendar-DATE(YEAR(ZiCalendar),1,0)))","v":"Ziua 328"}]
[]
[null,null,{"$f":"ZileȘiSăptămâni+DATE(AnCalendar,11,1)-WEEKDAY(DATE(AnCalendar,11,1),(ÎnceputSăptămână=\"LUN\")+1)+29","v":"2018-11-25"},"2018-11-26","2018-11-27","2018-11-28","2018-11-29","2018-11-30","2018-12-01"]
[null,null,{"$f":"IF(WEEKDAY(ZiCalendar)=ValoareÎnceputSăptămână,CONCATENATE(\"Săptămâna \",WEEKNUM(ZiCalendar),\"/Ziua \",ZiCalendar-DATE(YEAR(ZiCalendar),1,0)),CONCATENATE(\"Ziua \",ZiCalendar-DATE(YEAR(ZiCalendar),1,0)))","v":"Săptămâna 48/Ziua 329"},{"$f":"IF(WEEKDAY(ZiCalendar)=ValoareÎnceputSăptămână,CONCATENATE(\"Săptămâna \",WEEKNUM(ZiCalendar),\"/Ziua \",ZiCalendar-DATE(YEAR(ZiCalendar),1,0)),CONCATENATE(\"Ziua \",ZiCalendar-DATE(YEAR(ZiCalendar),1,0)))","v":"Ziua 330"},{"$f":"IF(WEEKDAY(ZiCalendar)=ValoareÎnceputSăptămână,CONCATENATE(\"Săptămâna \",WEEKNUM(ZiCalendar),\"/Ziua \",ZiCalendar-DATE(YEAR(ZiCalendar),1,0)),CONCATENATE(\"Ziua \",ZiCalendar-DATE(YEAR(ZiCalendar),1,0)))","v":"Ziua 331"},{"$f":"IF(WEEKDAY(ZiCalendar)=ValoareÎnceputSăptămână,CONCATENATE(\"Săptămâna \",WEEKNUM(ZiCalendar),\"/Ziua \",ZiCalendar-DATE(YEAR(ZiCalendar),1,0)),CONCATENATE(\"Ziua \",ZiCalendar-DATE(YEAR(ZiCalendar),1,0)))","v":"Ziua 332"},{"$f":"IF(WEEKDAY(ZiCalendar)=ValoareÎnceputSăptămână,CONCATENATE(\"Săptămâna \",WEEKNUM(ZiCalendar),\"/Ziua \",ZiCalendar-DATE(YEAR(ZiCalendar),1,0)),CONCATENATE(\"Ziua \",ZiCalendar-DATE(YEAR(ZiCalendar),1,0)))","v":"Ziua 333"},{"$f":"IF(WEEKDAY(ZiCalendar)=ValoareÎnceputSăptămână,CONCATENATE(\"Săptămâna \",WEEKNUM(ZiCalendar),\"/Ziua \",ZiCalendar-DATE(YEAR(ZiCalendar),1,0)),CONCATENATE(\"Ziua \",ZiCalendar-DATE(YEAR(ZiCalendar),1,0)))","v":"Ziua 334"},{"$f":"IF(WEEKDAY(ZiCalendar)=ValoareÎnceputSăptămână,CONCATENATE(\"Săptămâna \",WEEKNUM(ZiCalendar),\"/Ziua \",ZiCalendar-DATE(YEAR(ZiCalendar),1,0)),CONCATENATE(\"Ziua \",ZiCalendar-DATE(YEAR(ZiCalendar),1,0)))","v":"Ziua 335"}]
[{"$nulls":4},"NOTE"]
[]
[null,null,{"$f":"ZileȘiSăptămâni+DATE(AnCalendar,11,1)-WEEKDAY(DATE(AnCalendar,11,1),(ÎnceputSăptămână=\"LUN\")+1)+36","v":"2018-12-02"},"2018-12-03"]
[null,null,{"$f":"IF(WEEKDAY(ZiCalendar)=ValoareÎnceputSăptămână,CONCATENATE(\"Săptămâna \",WEEKNUM(ZiCalendar),\"/Ziua \",ZiCalendar-DATE(YEAR(ZiCalendar),1,0)),CONCATENATE(\"Ziua \",ZiCalendar-DATE(YEAR(ZiCalendar),1,0)))","v":"Săptămâna 49/Ziua 336"},{"$f":"IF(WEEKDAY(ZiCalendar)=ValoareÎnceputSăptămână,CONCATENATE(\"Săptămâna \",WEEKNUM(ZiCalendar),\"/Ziua \",ZiCalendar-DATE(YEAR(ZiCalendar),1,0)),CONCATENATE(\"Ziua \",ZiCalendar-DATE(YEAR(ZiCalendar),1,0)))","v":"Ziua 337"}]

{"sheet":"DEC","index":11,"n_rows":20,"n_cols":9,"rows_kept":20,"merged":[[16,2,17,2],[17,4,19,8]]}
[null,"DEC",{"$f":"UPPER(TEXT(ÎnceputSăptămână,\"ddd\"))","v":"DUM"},{"$f":"UPPER(TEXT(D3,\"aaa\"))","v":"LUN"},"MAR","MIE","JOI","VIN","SÂM"]
[null,{"$f":"AnCalendar","v":2018}]
[null,null,{"$f":"ZileȘiSăptămâni+DATE(AnCalendar,12,1)-WEEKDAY(DATE(AnCalendar,12,1),(ÎnceputSăptămână=\"LUN\")+1)+1","v":"2018-11-25"},"2018-11-26","2018-11-27","2018-11-28","2018-11-29","2018-11-30","2018-12-01"]
[null,null,{"$f":"IF(DAY(ZiCalendar)=1,CONCATENATE(\"Săptămâna \",WEEKNUM(ZiCalendar),\"/Ziua \",ZiCalendar-DATE(YEAR(ZiCalendar),1,0)),CONCATENATE(\"Ziua \",ZiCalendar-DATE(YEAR(ZiCalendar),1,0)))","v":"Ziua 329"},{"$f":"IF(DAY(ZiCalendar)=1,CONCATENATE(\"Săptămâna \",WEEKNUM(ZiCalendar),\"/Ziua \",ZiCalendar-DATE(YEAR(ZiCalendar),1,0)),CONCATENATE(\"Ziua \",ZiCalendar-DATE(YEAR(ZiCalendar),1,0)))","v":"Ziua 330"},{"$f":"IF(DAY(ZiCalendar)=1,CONCATENATE(\"Săptămâna \",WEEKNUM(ZiCalendar),\"/Ziua \",ZiCalendar-DATE(YEAR(ZiCalendar),1,0)),CONCATENATE(\"Ziua \",ZiCalendar-DATE(YEAR(ZiCalendar),1,0)))","v":"Ziua 331"},{"$f":"IF(DAY(ZiCalendar)=1,CONCATENATE(\"Săptămâna \",WEEKNUM(ZiCalendar),\"/Ziua \",ZiCalendar-DATE(YEAR(ZiCalendar),1,0)),CONCATENATE(\"Ziua \",ZiCalendar-DATE(YEAR(ZiCalendar),1,0)))","v":"Ziua 332"},{"$f":"IF(DAY(ZiCalendar)=1,CONCATENATE(\"Săptămâna \",WEEKNUM(ZiCalendar),\"/Ziua \",ZiCalendar-DATE(YEAR(ZiCalendar),1,0)),CONCATENATE(\"Ziua \",ZiCalendar-DATE(YEAR(ZiCalendar),1,0)))","v":"Ziua 333"},{"$f":"IF(DAY(ZiCalendar)=1,CONCATENATE(\"Săptămâna \",WEEKNUM(ZiCalendar),\"/Ziua \",ZiCalendar-DATE(YEAR(ZiCalendar),1,0)),CONCATENATE(\"Ziua \",ZiCalendar-DATE(YEAR(ZiCalendar),1,0)))","v":"Ziua 334"},{"$f":"IF(DAY(ZiCalendar)=1,CONCATENATE(\"Săptămâna \",WEEKNUM(ZiCalendar),\"/Ziua \",ZiCalendar-DATE(YEAR(ZiCalendar),1,0)),CONCATENATE(\"Ziua \",ZiCalendar-DATE(YEAR(ZiCalendar),1,0)))","v":"Săptămâna 48/Ziua 335"}]
[]
[null,null,{"$f":"ZileȘiSăptămâni+DATE(AnCalendar,12,1)-WEEKDAY(DATE(AnCalendar,12,1),(ÎnceputSăptămână=\"LUN\")+1)+8","v":"2018-12-02"},"2018-12-03","2018-12-04","2018-12-05","2018-12-06","2018-12-07","2018-12-08"]
[null,null,{"$f":"IF(WEEKDAY(ZiCalendar)=ValoareÎnceputSăptămână,CONCATENATE(\"Săptămâna \",WEEKNUM(ZiCalendar),\"/Ziua \",ZiCalendar-DATE(YEAR(ZiCalendar),1,0)),CONCATENATE(\"Ziua \",ZiCalendar-DATE(YEAR(ZiCalendar),1,0)))","v":"Săptămâna 49/Ziua 336"},{"$f":"IF(WEEKDAY(ZiCalendar)=ValoareÎnceputSăptămână,CONCATENATE(\"Săptămâna \",WEEKNUM(ZiCalendar),\"/Ziua \",ZiCalendar-DATE(YEAR(ZiCalendar),1,0)),CONCATENATE(\"Ziua \",ZiCalendar-DATE(YEAR(ZiCalendar),1,0)))","v":"Ziua 337"},{"$f":"IF(WEEKDAY(ZiCalendar)=ValoareÎnceputSăptămână,CONCATENATE(\"Săptămâna \",WEEKNUM(ZiCalendar),\"/Ziua \",ZiCalendar-DATE(YEAR(ZiCalendar),1,0)),CONCATENATE(\"Ziua \",ZiCalendar-DATE(YEAR(ZiCalendar),1,0)))","v":"Ziua 338"},{"$f":"IF(WEEKDAY(ZiCalendar)=ValoareÎnceputSăptămână,CONCATENATE(\"Săptămâna \",WEEKNUM(ZiCalendar),\"/Ziua \",ZiCalendar-DATE(YEAR(ZiCalendar),1,0)),CONCATENATE(\"Ziua \",ZiCalendar-DATE(YEAR(ZiCalendar),1,0)))","v":"Ziua 339"},{"$f":"IF(WEEKDAY(ZiCalendar)=ValoareÎnceputSăptămână,CONCATENATE(\"Săptămâna \",WEEKNUM(ZiCalendar),\"/Ziua \",ZiCalendar-DATE(YEAR(ZiCalendar),1,0)),CONCATENATE(\"Ziua \",ZiCalendar-DATE(YEAR(ZiCalendar),1,0)))","v":"Ziua 340"},{"$f":"IF(WEEKDAY(ZiCalendar)=ValoareÎnceputSăptămână,CONCATENATE(\"Săptămâna \",WEEKNUM(ZiCalendar),\"/Ziua \",ZiCalendar-DATE(YEAR(ZiCalendar),1,0)),CONCATENATE(\"Ziua \",ZiCalendar-DATE(YEAR(ZiCalendar),1,0)))","v":"Ziua 341"},{"$f":"IF(WEEKDAY(ZiCalendar)=ValoareÎnceputSăptămână,CONCATENATE(\"Săptămâna \",WEEKNUM(ZiCalendar),\"/Ziua \",ZiCalendar-DATE(YEAR(ZiCalendar),1,0)),CONCATENATE(\"Ziua \",ZiCalendar-DATE(YEAR(ZiCalendar),1,0)))","v":"Ziua 342"}]
[]
[null,null,{"$f":"ZileȘiSăptămâni+DATE(AnCalendar,12,1)-WEEKDAY(DATE(AnCalendar,12,1),(ÎnceputSăptămână=\"LUN\")+1)+15","v":"2018-12-09"},"2018-12-10","2018-12-11","2018-12-12","2018-12-13","2018-12-14","2018-12-15"]
[null,null,{"$f":"IF(WEEKDAY(ZiCalendar)=ValoareÎnceputSăptămână,CONCATENATE(\"Săptămâna \",WEEKNUM(ZiCalendar),\"/Ziua \",ZiCalendar-DATE(YEAR(ZiCalendar),1,0)),CONCATENATE(\"Ziua \",ZiCalendar-DATE(YEAR(ZiCalendar),1,0)))","v":"Săptămâna 50/Ziua 343"},{"$f":"IF(WEEKDAY(ZiCalendar)=ValoareÎnceputSăptămână,CONCATENATE(\"Săptămâna \",WEEKNUM(ZiCalendar),\"/Ziua \",ZiCalendar-DATE(YEAR(ZiCalendar),1,0)),CONCATENATE(\"Ziua \",ZiCalendar-DATE(YEAR(ZiCalendar),1,0)))","v":"Ziua 344"},{"$f":"IF(WEEKDAY(ZiCalendar)=ValoareÎnceputSăptămână,CONCATENATE(\"Săptămâna \",WEEKNUM(ZiCalendar),\"/Ziua \",ZiCalendar-DATE(YEAR(ZiCalendar),1,0)),CONCATENATE(\"Ziua \",ZiCalendar-DATE(YEAR(ZiCalendar),1,0)))","v":"Ziua 345"},{"$f":"IF(WEEKDAY(ZiCalendar)=ValoareÎnceputSăptămână,CONCATENATE(\"Săptămâna \",WEEKNUM(ZiCalendar),\"/Ziua \",ZiCalendar-DATE(YEAR(ZiCalendar),1,0)),CONCATENATE(\"Ziua \",ZiCalendar-DATE(YEAR(ZiCalendar),1,0)))","v":"Ziua 346"},{"$f":"IF(WEEKDAY(ZiCalendar)=ValoareÎnceputSăptămână,CONCATENATE(\"Săptămâna \",WEEKNUM(ZiCalendar),\"/Ziua \",ZiCalendar-DATE(YEAR(ZiCalendar),1,0)),CONCATENATE(\"Ziua \",ZiCalendar-DATE(YEAR(ZiCalendar),1,0)))","v":"Ziua 347"},{"$f":"IF(WEEKDAY(ZiCalendar)=ValoareÎnceputSăptămână,CONCATENATE(\"Săptămâna \",WEEKNUM(ZiCalendar),\"/Ziua \",ZiCalendar-DATE(YEAR(ZiCalendar),1,0)),CONCATENATE(\"Ziua \",ZiCalendar-DATE(YEAR(ZiCalendar),1,0)))","v":"Ziua 348"},{"$f":"IF(WEEKDAY(ZiCalendar)=ValoareÎnceputSăptămână,CONCATENATE(\"Săptămâna \",WEEKNUM(ZiCalendar),\"/Ziua \",ZiCalendar-DATE(YEAR(ZiCalendar),1,0)),CONCATENATE(\"Ziua \",ZiCalendar-DATE(YEAR(ZiCalendar),1,0)))","v":"Ziua 349"}]
[]
[null,null,{"$f":"ZileȘiSăptămâni+DATE(AnCalendar,12,1)-WEEKDAY(DATE(AnCalendar,12,1),(ÎnceputSăptămână=\"LUN\")+1)+22","v":"2018-12-16"},"2018-12-17","2018-12-18","2018-12-19","2018-12-20","2018-12-21","2018-12-22"]
[null,null,{"$f":"IF(WEEKDAY(ZiCalendar)=ValoareÎnceputSăptămână,CONCATENATE(\"Săptămâna \",WEEKNUM(ZiCalendar),\"/Ziua \",ZiCalendar-DATE(YEAR(ZiCalendar),1,0)),CONCATENATE(\"Ziua \",ZiCalendar-DATE(YEAR(ZiCalendar),1,0)))","v":"Săptămâna 51/Ziua 350"},{"$f":"IF(WEEKDAY(ZiCalendar)=ValoareÎnceputSăptămână,CONCATENATE(\"Săptămâna \",WEEKNUM(ZiCalendar),\"/Ziua \",ZiCalendar-DATE(YEAR(ZiCalendar),1,0)),CONCATENATE(\"Ziua \",ZiCalendar-DATE(YEAR(ZiCalendar),1,0)))","v":"Ziua 351"},{"$f":"IF(WEEKDAY(ZiCalendar)=ValoareÎnceputSăptămână,CONCATENATE(\"Săptămâna \",WEEKNUM(ZiCalendar),\"/Ziua \",ZiCalendar-DATE(YEAR(ZiCalendar),1,0)),CONCATENATE(\"Ziua \",ZiCalendar-DATE(YEAR(ZiCalendar),1,0)))","v":"Ziua 352"},{"$f":"IF(WEEKDAY(ZiCalendar)=ValoareÎnceputSăptămână,CONCATENATE(\"Săptămâna \",WEEKNUM(ZiCalendar),\"/Ziua \",ZiCalendar-DATE(YEAR(ZiCalendar),1,0)),CONCATENATE(\"Ziua \",ZiCalendar-DATE(YEAR(ZiCalendar),1,0)))","v":"Ziua 353"},{"$f":"IF(WEEKDAY(ZiCalendar)=ValoareÎnceputSăptămână,CONCATENATE(\"Săptămâna \",WEEKNUM(ZiCalendar),\"/Ziua \",ZiCalendar-DATE(YEAR(ZiCalendar),1,0)),CONCATENATE(\"Ziua \",ZiCalendar-DATE(YEAR(ZiCalendar),1,0)))","v":"Ziua 354"},{"$f":"IF(WEEKDAY(ZiCalendar)=ValoareÎnceputSăptămână,CONCATENATE(\"Săptămâna \",WEEKNUM(ZiCalendar),\"/Ziua \",ZiCalendar-DATE(YEAR(ZiCalendar),1,0)),CONCATENATE(\"Ziua \",ZiCalendar-DATE(YEAR(ZiCalendar),1,0)))","v":"Ziua 355"},{"$f":"IF(WEEKDAY(ZiCalendar)=ValoareÎnceputSăptămână,CONCATENATE(\"Săptămâna \",WEEKNUM(ZiCalendar),\"/Ziua \",ZiCalendar-DATE(YEAR(ZiCalendar),1,0)),CONCATENATE(\"Ziua \",ZiCalendar-DATE(YEAR(ZiCalendar),1,0)))","v":"Ziua 356"}]
[]
[null,null,{"$f":"ZileȘiSăptămâni+DATE(AnCalendar,12,1)-WEEKDAY(DATE(AnCalendar,12,1),(ÎnceputSăptămână=\"LUN\")+1)+29","v":"2018-12-23"},"2018-12-24","2018-12-25","2018-12-26","2018-12-27","2018-12-28","2018-12-29"]
[null,null,{"$f":"IF(WEEKDAY(ZiCalendar)=ValoareÎnceputSăptămână,CONCATENATE(\"Săptămâna \",WEEKNUM(ZiCalendar),\"/Ziua \",ZiCalendar-DATE(YEAR(ZiCalendar),1,0)),CONCATENATE(\"Ziua \",ZiCalendar-DATE(YEAR(ZiCalendar),1,0)))","v":"Săptămâna 52/Ziua 357"},{"$f":"IF(WEEKDAY(ZiCalendar)=ValoareÎnceputSăptămână,CONCATENATE(\"Săptămâna \",WEEKNUM(ZiCalendar),\"/Ziua \",ZiCalendar-DATE(YEAR(ZiCalendar),1,0)),CONCATENATE(\"Ziua \",ZiCalendar-DATE(YEAR(ZiCalendar),1,0)))","v":"Ziua 358"},{"$f":"IF(WEEKDAY(ZiCalendar)=ValoareÎnceputSăptămână,CONCATENATE(\"Săptămâna \",WEEKNUM(ZiCalendar),\"/Ziua \",ZiCalendar-DATE(YEAR(ZiCalendar),1,0)),CONCATENATE(\"Ziua \",ZiCalendar-DATE(YEAR(ZiCalendar),1,0)))","v":"Ziua 359"},{"$f":"IF(WEEKDAY(ZiCalendar)=ValoareÎnceputSăptămână,CONCATENATE(\"Săptămâna \",WEEKNUM(ZiCalendar),\"/Ziua \",ZiCalendar-DATE(YEAR(ZiCalendar),1,0)),CONCATENATE(\"Ziua \",ZiCalendar-DATE(YEAR(ZiCalendar),1,0)))","v":"Ziua 360"},{"$f":"IF(WEEKDAY(ZiCalendar)=ValoareÎnceputSăptămână,CONCATENATE(\"Săptămâna \",WEEKNUM(ZiCalendar),\"/Ziua \",ZiCalendar-DATE(YEAR(ZiCalendar),1,0)),CONCATENATE(\"Ziua \",ZiCalendar-DATE(YEAR(ZiCalendar),1,0)))","v":"Ziua 361"},{"$f":"IF(WEEKDAY(ZiCalendar)=ValoareÎnceputSăptămână,CONCATENATE(\"Săptămâna \",WEEKNUM(ZiCalendar),\"/Ziua \",ZiCalendar-DATE(YEAR(ZiCalendar),1,0)),CONCATENATE(\"Ziua \",ZiCalendar-DATE(YEAR(ZiCalendar),1,0)))","v":"Ziua 362"},{"$f":"IF(WEEKDAY(ZiCalendar)=ValoareÎnceputSăptămână,CONCATENATE(\"Săptămâna \",WEEKNUM(ZiCalendar),\"/Ziua \",ZiCalendar-DATE(YEAR(ZiCalendar),1,0)),CONCATENATE(\"Ziua \",ZiCalendar-DATE(YEAR(ZiCalendar),1,0)))","v":"Ziua 363"}]
[{"$nulls":4},"NOTE"]
[]
[null,null,{"$f":"ZileȘiSăptămâni+DATE(AnCalendar,12,1)-WEEKDAY(DATE(AnCalendar,12,1),(ÎnceputSăptămână=\"LUN\")+1)+36","v":"2018-12-30"},"2018-12-31"]
[null,null,{"$f":"IF(WEEKDAY(ZiCalendar)=ValoareÎnceputSăptămână,CONCATENATE(\"Săptămâna \",WEEKNUM(ZiCalendar),\"/Ziua \",ZiCalendar-DATE(YEAR(ZiCalendar),1,0)),CONCATENATE(\"Ziua \",ZiCalendar-DATE(YEAR(ZiCalendar),1,0)))","v":"Săptămâna 53/Ziua 364"},{"$f":"IF(WEEKDAY(ZiCalendar)=ValoareÎnceputSăptămână,CONCATENATE(\"Săptămâna \",WEEKNUM(ZiCalendar),\"/Ziua \",ZiCalendar-DATE(YEAR(ZiCalendar),1,0)),CONCATENATE(\"Ziua \",ZiCalendar-DATE(YEAR(ZiCalendar),1,0)))","v":"Ziua 365"}]